 Batch Number,Vendor Name,Invoice Number, Line,Line Amount,Account Description,Issue Date ,Total Amount Paid,Department,Proclass
210815H,HEALTH MANAGEMENT LIMITED=====,0000135183,1,"100,532.30",OHS CONTRACT,01/09/15,"100,532.30",HR Management,Healthcare
140815M,NORTHERN DIVER (INTERNATIONAL),0000162874,1,30.00,OPERATIONAL EQUIP-PURCHASE,01/09/15,830.00,Technical And Service Support,Fire & Rescue
140815M,NORTHERN DIVER (INTERNATIONAL),0000162874,2,55.00,OPERATIONAL EQUIP-PURCHASE,01/09/15,,Technical And Service Support,Fire & Rescue
140815M,NORTHERN DIVER (INTERNATIONAL),0000162874,3,140.00,OPERATIONAL EQUIP-PURCHASE,01/09/15,,Technical And Service Support,Fire & Rescue
140815M,NORTHERN DIVER (INTERNATIONAL),0000162874,4,140.00,OPERATIONAL EQUIP-PURCHASE,01/09/15,,Technical And Service Support,Fire & Rescue
140815M,NORTHERN DIVER (INTERNATIONAL),0000162874,5,140.00,OPERATIONAL EQUIP-PURCHASE,01/09/15,,Technical And Service Support,Fire & Rescue
140815M,NORTHERN DIVER (INTERNATIONAL),0000162874,6,55.00,OPERATIONAL EQUIP-PURCHASE,01/09/15,,Technical And Service Support,Fire & Rescue
140815M,NORTHERN DIVER (INTERNATIONAL),0000162874,7,115.00,OPERATIONAL EQUIP-PURCHASE,01/09/15,,Technical And Service Support,Fire & Rescue
140815M,NORTHERN DIVER (INTERNATIONAL),0000162874,8,25.00,OPERATIONAL EQUIP-PURCHASE,01/09/15,,Technical And Service Support,Fire & Rescue
140815M,NORTHERN DIVER (INTERNATIONAL),0000162874,9,115.00,OPERATIONAL EQUIP-PURCHASE,01/09/15,,Technical And Service Support,Fire & Rescue
140815M,NORTHERN DIVER (INTERNATIONAL),0000162874,10,15.00,OPERATIONAL EQUIP-PURCHASE,01/09/15,,Technical And Service Support,Fire & Rescue
260815H,STEELCASE SOLUTIONS===========,0050144,1,617.35,OFFICE FURNITURE,01/09/15,617.35,Operational Directorates Support Group,Furniture
260815H,STEELCASE SOLUTIONS===========,0050145,1,617.35,OFFICE FURNITURE,01/09/15,617.35,Technical And Service Support,Furniture
800065261,*JAMES HUNTER (OUTFITTERS) LTD,108283,1,293.13,CLOTHING,01/09/15,293.13,Operations Fire Stations,Clothing
250815M,CORE IMS LTD==================,15/258,1,"1,936.00",CONSULTANTS,01/09/15,"1,936.00",HR Management,Human Resources
240815M,KENT FIRE & RESCUE SERVICE,201535,1,"4,462.16",FIRE AUTHORITIES,01/09/15,"4,462.16",National Operational Guidance Project,Statutory Bodies
141160,MISS KITTY ST AUBYN,229385*,1,700.00,PROFESSIONAL FEES ENFORCEMENT,01/09/15,700.00,Legal & Democratic Services,Legal Services
260815H,B NOKES CONTRACTS LTD,2855,1,"1,294.00",TACTICAL DAY TO DAY,01/09/15,"1,294.00",Technical And Service Support,"Works - Construction, R&M"
260815H,B NOKES CONTRACTS LTD,2856,1,420.00,TACTICAL DAY TO DAY,01/09/15,420.00,Technical And Service Support,"Works - Construction, R&M"
260815H,B NOKES CONTRACTS LTD,2857,1,340.50,TACTICAL DAY TO DAY,01/09/15,340.50,Technical And Service Support,"Works - Construction, R&M"
260815H,B NOKES CONTRACTS LTD,2858,1,627.00,TACTICAL DAY TO DAY,01/09/15,627.00,Technical And Service Support,"Works - Construction, R&M"
260815H,DRAEGER SAFETY UK LIMITED=====,2910024794,1,277.00,PROTECTIVE EQUIPT - PARTS,01/09/15,277.00,Technical and Service Support,Fire & Rescue
260815H,DRAEGER SAFETY UK LIMITED=====,2910025058,1,"3,992.00",PROTECTIVE EQUIPT - PARTS,01/09/15,"3,992.00",Technical and Service Support,Fire & Rescue
141160,FINANCIAL REPORTING COUNCIL,30016906,1,914.00,CONSULTANTS,01/09/15,914.00,Finance Services,Financial Services
250815M,FIRE HOSETECH LIMITED=========,3421,1,252.54,OPERATIONAL EQUIP-PURCHASE,01/09/15,265.04,Technical And Service Support,Fire & Rescue
250815M,FIRE HOSETECH LIMITED=========,3421,2,12.50,OPERATIONAL EQUIP-PURCHASE,01/09/15,,Technical And Service Support,Fire & Rescue
250815M,MCGRATH BROS (WASTE CONTROL) L,370497/376160,1,255.32,REFUSE COLLECTION,01/09/15,255.32,Technical And Service Support,Environmental Services
140815H,COMPUTACENTRE================,3880594014,1,"2,873.22",ACQUISITIONS,01/09/15,"2,873.22",Information and Communication Technology,ICT
260815H,CARPETS & FLOOR COVERS DIRECT=,3993,1,496.22,TACTICAL DAY TO DAY,01/09/15,496.22,Technical And Service Support,Building Constr Materials
141160,MR STEVEN SNOWDEN=============,423540,1,"1,750.00",COUNSELS FEES,01/09/15,"1,750.00",Compensation Budgets,Legal Services
250815M,SPORTSAFE UK LTD==============,475916,1,180.66,GYM EQUIPMENT,01/09/15,499.29,Technical And Service Support,Sports & Playground Equip
250815M,SPORTSAFE UK LTD==============,475916,2,318.63,GYM EQUIPMENT,01/09/15,,Technical And Service Support,Sports & Playground Equip
260815H,FAHEY BUILDERS LTD============,5285,1,"8,016.00",STRATEGIC (NON CYCLICAL),01/09/15,"8,016.00",Technical and Service Support,"Works - Construction, R&M"
130815M,CAPITA SECURE INFO SOLUTIONS,6060005396,1,"63,595.11",CAMS CONTRACT,01/09/15,"63,595.11",CAMS Project,ICT
141160,TRAUMA CLINIC LTD.,7558,1,624.00,DOCTORS/MEDICAL FEES,01/09/15,624.00,Compensation Budgets,Legal Services
250815M,CANON (UK) LTD===============,770536305,1,390.86,OFFICE EQUIPMENT,01/09/15,390.86,Technical And Service Support,ICT
250815M,CANON (UK) LTD===============,770536312,1,390.86,OFFICE EQUIPMENT,01/09/15,390.86,Technical And Service Support,ICT
240815M,ANGUS FIRE LIMITED,8031530,1,"2,456.40",OPERATIONAL EQUIP-PURCHASE,01/09/15,"5,559.90",Technical And Service Support,Fire & Rescue
240815M,ANGUS FIRE LIMITED,8031530,2,"3,024.50",OPERATIONAL EQUIP-PURCHASE,01/09/15,,Technical And Service Support,Fire & Rescue
240815M,ANGUS FIRE LIMITED,8031530,3,79.00,OPERATIONAL EQUIP-PURCHASE,01/09/15,,Technical And Service Support,Fire & Rescue
250815M,FIRE SERVICE COLLEGE LTD======,804058,1,587.50,PROFESSIONAL DEVELOPMENT,01/09/15,587.50,National Operational Guidance Project,Human Resources
190815M,*OFFICE DEPOT UK LTD,965857441,1,416.40,STATIONERY CONSUMABLES,01/09/15,416.40,Communications,Stationery
260815H,E&S B DAVIS LTD,DAV/56996,1,295.00,OPERATIONAL EQUIP-PURCHASE,01/09/15,295.00,Operations Fire Stations,Environmental Services
250815M,HALL FUELS,I07773036,1,"1,767.00",FUEL,01/09/15,"1,767.00",Operations Fire Stations,Vehicle Management
130815M,SECURITAS SECURITY SERVICES LT,S-SIN0343765,1,"329,131.34",GENERAL,01/09/15,"329,131.34",Procurement,Fire & Rescue
130815M,SECURITAS SECURITY SERVICES LT,S-SIN0343766,1,"33,121.25",GENERAL,01/09/15,"33,121.25",Procurement,Fire & Rescue
130815M,SECURITAS SECURITY SERVICES LT,S-SIN0343767,1,"90,797.76",GENERAL,01/09/15,"90,797.76",Business Continuity,Fire & Rescue
250815M,GROUND CONTROL LIMITED,SIN058570,1,5.83,GROUNDS MAINTENANCE,01/09/15,835.24,Technical And Service Support,"Works - Construction, R&M"
250815M,GROUND CONTROL LIMITED,SIN058570,2,25.42,GROUNDS MAINTENANCE,01/09/15,,Technical And Service Support,"Works - Construction, R&M"
250815M,GROUND CONTROL LIMITED,SIN058570,3,4.17,GROUNDS MAINTENANCE,01/09/15,,Technical And Service Support,"Works - Construction, R&M"
250815M,GROUND CONTROL LIMITED,SIN058570,4,43.75,GROUNDS MAINTENANCE,01/09/15,,Technical And Service Support,"Works - Construction, R&M"
250815M,GROUND CONTROL LIMITED,SIN058570,5,79.17,GROUNDS MAINTENANCE,01/09/15,,Technical And Service Support,"Works - Construction, R&M"
250815M,GROUND CONTROL LIMITED,SIN058570,6,16.25,GROUNDS MAINTENANCE,01/09/15,,Technical And Service Support,"Works - Construction, R&M"
250815M,GROUND CONTROL LIMITED,SIN058570,7,23.33,GROUNDS MAINTENANCE,01/09/15,,Technical And Service Support,"Works - Construction, R&M"
250815M,GROUND CONTROL LIMITED,SIN058570,8,42.33,GROUNDS MAINTENANCE,01/09/15,,Technical And Service Support,"Works - Construction, R&M"
250815M,GROUND CONTROL LIMITED,SIN058570,9,9.58,GROUNDS MAINTENANCE,01/09/15,,Technical And Service Support,"Works - Construction, R&M"
250815M,GROUND CONTROL LIMITED,SIN058570,10,6.25,GROUNDS MAINTENANCE,01/09/15,,Technical And Service Support,"Works - Construction, R&M"
250815M,GROUND CONTROL LIMITED,SIN058570,11,33.75,GROUNDS MAINTENANCE,01/09/15,,Technical And Service Support,"Works - Construction, R&M"
250815M,GROUND CONTROL LIMITED,SIN058570,12,17.08,GROUNDS MAINTENANCE,01/09/15,,Technical And Service Support,"Works - Construction, R&M"
250815M,GROUND CONTROL LIMITED,SIN058570,13,42.50,GROUNDS MAINTENANCE,01/09/15,,Technical And Service Support,"Works - Construction, R&M"
250815M,GROUND CONTROL LIMITED,SIN058570,14,6.25,GROUNDS MAINTENANCE,01/09/15,,Technical And Service Support,"Works - Construction, R&M"
250815M,GROUND CONTROL LIMITED,SIN058570,15,7.50,GROUNDS MAINTENANCE,01/09/15,,Technical And Service Support,"Works - Construction, R&M"
250815M,GROUND CONTROL LIMITED,SIN058570,16,12.50,GROUNDS MAINTENANCE,01/09/15,,Technical And Service Support,"Works - Construction, R&M"
250815M,GROUND CONTROL LIMITED,SIN058570,17,39.58,GROUNDS MAINTENANCE,01/09/15,,Technical And Service Support,"Works - Construction, R&M"
250815M,GROUND CONTROL LIMITED,SIN058570,18,12.92,GROUNDS MAINTENANCE,01/09/15,,Technical And Service Support,"Works - Construction, R&M"
250815M,GROUND CONTROL LIMITED,SIN058570,19,12.50,GROUNDS MAINTENANCE,01/09/15,,Technical And Service Support,"Works - Construction, R&M"
250815M,GROUND CONTROL LIMITED,SIN058570,20,33.75,GROUNDS MAINTENANCE,01/09/15,,Technical And Service Support,"Works - Construction, R&M"
250815M,GROUND CONTROL LIMITED,SIN058570,21,12.50,GROUNDS MAINTENANCE,01/09/15,,Technical And Service Support,"Works - Construction, R&M"
250815M,GROUND CONTROL LIMITED,SIN058570,22,5.83,GROUNDS MAINTENANCE,01/09/15,,Technical And Service Support,"Works - Construction, R&M"
250815M,GROUND CONTROL LIMITED,SIN058570,23,7.08,GROUNDS MAINTENANCE,01/09/15,,Technical And Service Support,"Works - Construction, R&M"
250815M,GROUND CONTROL LIMITED,SIN058570,24,67.92,GROUNDS MAINTENANCE,01/09/15,,Technical And Service Support,"Works - Construction, R&M"
250815M,GROUND CONTROL LIMITED,SIN058570,25,36.67,GROUNDS MAINTENANCE,01/09/15,,Technical And Service Support,"Works - Construction, R&M"
250815M,GROUND CONTROL LIMITED,SIN058570,26,6.25,GROUNDS MAINTENANCE,01/09/15,,Technical And Service Support,"Works - Construction, R&M"
250815M,GROUND CONTROL LIMITED,SIN058570,27,27.92,GROUNDS MAINTENANCE,01/09/15,,Technical And Service Support,"Works - Construction, R&M"
250815M,GROUND CONTROL LIMITED,SIN058570,28,17.08,GROUNDS MAINTENANCE,01/09/15,,Technical And Service Support,"Works - Construction, R&M"
250815M,GROUND CONTROL LIMITED,SIN058570,29,25.42,GROUNDS MAINTENANCE,01/09/15,,Technical And Service Support,"Works - Construction, R&M"
250815M,GROUND CONTROL LIMITED,SIN058570,30,42.50,GROUNDS MAINTENANCE,01/09/15,,Technical And Service Support,"Works - Construction, R&M"
250815M,GROUND CONTROL LIMITED,SIN058570,31,56.25,GROUNDS MAINTENANCE,01/09/15,,Technical And Service Support,"Works - Construction, R&M"
250815M,GROUND CONTROL LIMITED,SIN058570,32,39.58,GROUNDS MAINTENANCE,01/09/15,,Technical And Service Support,"Works - Construction, R&M"
250815M,GROUND CONTROL LIMITED,SIN058570,33,7.50,GROUNDS MAINTENANCE,01/09/15,,Technical And Service Support,"Works - Construction, R&M"
250815M,GROUND CONTROL LIMITED,SIN058570,34,8.33,GROUNDS MAINTENANCE,01/09/15,,Technical And Service Support,"Works - Construction, R&M"
250815M,GROUND CONTROL LIMITED,SIN059311,1,135.83,GROUNDS MAINTENANCE,01/09/15,"1,047.21",Technical And Service Support,"Works - Construction, R&M"
250815M,GROUND CONTROL LIMITED,SIN059311,2,25.42,GROUNDS MAINTENANCE,01/09/15,,Technical And Service Support,"Works - Construction, R&M"
250815M,GROUND CONTROL LIMITED,SIN059311,3,118.75,GROUNDS MAINTENANCE,01/09/15,,Technical And Service Support,"Works - Construction, R&M"
250815M,GROUND CONTROL LIMITED,SIN059311,4,33.75,GROUNDS MAINTENANCE,01/09/15,,Technical And Service Support,"Works - Construction, R&M"
250815M,GROUND CONTROL LIMITED,SIN059311,5,20.00,GROUNDS MAINTENANCE,01/09/15,,Technical And Service Support,"Works - Construction, R&M"
250815M,GROUND CONTROL LIMITED,SIN059311,6,50.71,GROUNDS MAINTENANCE,01/09/15,,Technical And Service Support,"Works - Construction, R&M"
250815M,GROUND CONTROL LIMITED,SIN059311,7,56.38,GROUNDS MAINTENANCE,01/09/15,,Technical And Service Support,"Works - Construction, R&M"
250815M,GROUND CONTROL LIMITED,SIN059311,8,15.83,GROUNDS MAINTENANCE,01/09/15,,Technical And Service Support,"Works - Construction, R&M"
250815M,GROUND CONTROL LIMITED,SIN059311,9,15.83,GROUNDS MAINTENANCE,01/09/15,,Technical And Service Support,"Works - Construction, R&M"
250815M,GROUND CONTROL LIMITED,SIN059311,10,33.92,GROUNDS MAINTENANCE,01/09/15,,Technical And Service Support,"Works - Construction, R&M"
250815M,GROUND CONTROL LIMITED,SIN059311,11,42.29,GROUNDS MAINTENANCE,01/09/15,,Technical And Service Support,"Works - Construction, R&M"
250815M,GROUND CONTROL LIMITED,SIN059311,12,16.25,GROUNDS MAINTENANCE,01/09/15,,Technical And Service Support,"Works - Construction, R&M"
250815M,GROUND CONTROL LIMITED,SIN059311,13,10.83,GROUNDS MAINTENANCE,01/09/15,,Technical And Service Support,"Works - Construction, R&M"
250815M,GROUND CONTROL LIMITED,SIN059311,14,6.33,GROUNDS MAINTENANCE,01/09/15,,Technical And Service Support,"Works - Construction, R&M"
250815M,GROUND CONTROL LIMITED,SIN059311,15,10.83,GROUNDS MAINTENANCE,01/09/15,,Technical And Service Support,"Works - Construction, R&M"
250815M,GROUND CONTROL LIMITED,SIN059311,16,76.25,GROUNDS MAINTENANCE,01/09/15,,Technical And Service Support,"Works - Construction, R&M"
250815M,GROUND CONTROL LIMITED,SIN059311,17,32.50,GROUNDS MAINTENANCE,01/09/15,,Technical And Service Support,"Works - Construction, R&M"
250815M,GROUND CONTROL LIMITED,SIN059311,18,25.42,GROUNDS MAINTENANCE,01/09/15,,Technical And Service Support,"Works - Construction, R&M"
250815M,GROUND CONTROL LIMITED,SIN059311,19,50.83,GROUNDS MAINTENANCE,01/09/15,,Technical And Service Support,"Works - Construction, R&M"
250815M,GROUND CONTROL LIMITED,SIN059311,20,67.92,GROUNDS MAINTENANCE,01/09/15,,Technical And Service Support,"Works - Construction, R&M"
250815M,GROUND CONTROL LIMITED,SIN059311,21,42.50,GROUNDS MAINTENANCE,01/09/15,,Technical And Service Support,"Works - Construction, R&M"
250815M,GROUND CONTROL LIMITED,SIN059311,22,6.33,GROUNDS MAINTENANCE,01/09/15,,Technical And Service Support,"Works - Construction, R&M"
250815M,GROUND CONTROL LIMITED,SIN059311,23,31.67,GROUNDS MAINTENANCE,01/09/15,,Technical And Service Support,"Works - Construction, R&M"
250815M,GROUND CONTROL LIMITED,SIN059311,24,25.42,GROUNDS MAINTENANCE,01/09/15,,Technical And Service Support,"Works - Construction, R&M"
250815M,GROUND CONTROL LIMITED,SIN059311,25,25.42,GROUNDS MAINTENANCE,01/09/15,,Technical And Service Support,"Works - Construction, R&M"
250815M,GROUND CONTROL LIMITED,SIN059311,26,8.33,GROUNDS MAINTENANCE,01/09/15,,Technical And Service Support,"Works - Construction, R&M"
250815M,GROUND CONTROL LIMITED,SIN059311,27,19.17,GROUNDS MAINTENANCE,01/09/15,,Technical And Service Support,"Works - Construction, R&M"
250815M,GROUND CONTROL LIMITED,SIN059311,28,42.50,GROUNDS MAINTENANCE,01/09/15,,Technical And Service Support,"Works - Construction, R&M"
010915M,VCG KESTREL LIMITED===========,0000001381,1,460.00,PRINTING,04/09/15,460.00,Technical And Service Support,Facilities & Management S
270815H,*HUNTER APPAREL SOLUTIONS LTD,066405,1,448.80,UNIFORMS - POMS,04/09/15,561.00,Procurement,Clothing
270815H,*HUNTER APPAREL SOLUTIONS LTD,066405,2,112.20,UNIFORMS - POMS,04/09/15,,Procurement,Clothing
270815H,*HUNTER APPAREL SOLUTIONS LTD,066406,1,336.60,UNIFORMS - POMS,04/09/15,756.60,Procurement,Clothing
270815H,*HUNTER APPAREL SOLUTIONS LTD,066406,2,420.00,UNIFORMS - POMS,04/09/15,,Procurement,Clothing
270815H,*HUNTER APPAREL SOLUTIONS LTD,066407,1,524.50,UNIFORMS - POMS,04/09/15,692.80,Procurement,Clothing
270815H,*HUNTER APPAREL SOLUTIONS LTD,066407,2,112.20,UNIFORMS - POMS,04/09/15,,Procurement,Clothing
270815H,*HUNTER APPAREL SOLUTIONS LTD,066407,3,56.10,UNIFORMS - POMS,04/09/15,,Procurement,Clothing
800062318,*JAMES HUNTER (OUTFITTERS) LTD,108119,1,362.23,CLOTHING,04/09/15,362.23,Operations Fire Stations,Clothing
800065259,*JAMES HUNTER (OUTFITTERS) LTD,108281,1,69.41,CLOTHING,04/09/15,527.96,Operations Non Fire Stations,Clothing
800065259,*JAMES HUNTER (OUTFITTERS) LTD,108281,2,72.87,CLOTHING,04/09/15,,Operations Non Fire Stations,Clothing
800065259,*JAMES HUNTER (OUTFITTERS) LTD,108281,3,30.99,CLOTHING,04/09/15,,Operations Non Fire Stations,Clothing
800065259,*JAMES HUNTER (OUTFITTERS) LTD,108281,4,354.69,CLOTHING,04/09/15,,Operations Non Fire Stations,Clothing
800065263,*JAMES HUNTER (OUTFITTERS) LTD,108285,1,231.56,CLOTHING,04/09/15,293.35,Operations Fire Stations,Clothing
800065263,*JAMES HUNTER (OUTFITTERS) LTD,108285,2,61.79,CLOTHING,04/09/15,,Operations Fire Stations,Clothing
800065270,*JAMES HUNTER (OUTFITTERS) LTD,108292,1,293.13,CLOTHING,04/09/15,293.13,Operations Fire Stations,Clothing
270815H,DISCLOSURE SCOTLAND===========,1464771,1,"2,975.00",CRB CHECKS,04/09/15,"2,975.00",HR Management,Human Resources
210815H,H FINE & SON LTD==============,150253,1,818.27,UNIFORMS - POMS,04/09/15,818.27,Procurement,Clothing
010915M,RESPIREX======================,152385,1,"6,750.00",GENERAL,04/09/15,"6,750.00",Gas Tight Suits,Clothing
280815H,ENTEL UK LTD==================,167224,1,9.00,RADIO,04/09/15,"1,509.00",Information and Communication Technology,ICT
280815H,ENTEL UK LTD==================,167224,2,"1,275.00",RADIO,04/09/15,,Information and Communication Technology,ICT
280815H,ENTEL UK LTD==================,167224,3,225.00,RADIO,04/09/15,,Information and Communication Technology,ICT
180815H,GREATER LONDON AUTHORITY======,1800005062,1,"10,000.00",CONSULTANTS,04/09/15,"10,000.00",Communications,Fire & Rescue
190815M,DYSLEXIA ACTION,192311,1,"1,920.00",LEARNING SUPPORT,04/09/15,"1,920.00",Development and Training,Human Resources
902557,WORLD RESCUE CHALLENGE,2005 WRC,1,"1,805.91",PROFESSIONAL DEVELOPMENT,04/09/15,"1,805.91",Challenge Team,Fire & Rescue
141162,BRITISH GAS BUSINESS==========,2209712141,1,691.37,ELECTRICITY,04/09/15,"21,010.12",Technical And Service Support,Utilities
141162,BRITISH GAS BUSINESS==========,2209712141,2,685.32,ELECTRICITY,04/09/15,,Technical And Service Support,Utilities
141162,BRITISH GAS BUSINESS==========,2209712141,3,"1,376.41",ELECTRICITY,04/09/15,,Technical And Service Support,Utilities
141162,BRITISH GAS BUSINESS==========,2209712141,4,217.36,ELECTRICITY,04/09/15,,Technical And Service Support,Utilities
141162,BRITISH GAS BUSINESS==========,2209712141,5,181.33,ELECTRICITY,04/09/15,,Technical And Service Support,Utilities
141162,BRITISH GAS BUSINESS==========,2209712141,6,704.90,ELECTRICITY,04/09/15,,Technical And Service Support,Utilities
141162,BRITISH GAS BUSINESS==========,2209712141,7,563.85,ELECTRICITY,04/09/15,,Technical And Service Support,Utilities
141162,BRITISH GAS BUSINESS==========,2209712141,8,244.88,ELECTRICITY,04/09/15,,Technical And Service Support,Utilities
141162,BRITISH GAS BUSINESS==========,2209712141,9,516.05,ELECTRICITY,04/09/15,,Technical And Service Support,Utilities
141162,BRITISH GAS BUSINESS==========,2209712141,10,"1,462.30",ELECTRICITY,04/09/15,,Technical And Service Support,Utilities
141162,BRITISH GAS BUSINESS==========,2209712141,11,597.62,ELECTRICITY,04/09/15,,Technical And Service Support,Utilities
141162,BRITISH GAS BUSINESS==========,2209712141,12,405.18,ELECTRICITY,04/09/15,,Technical And Service Support,Utilities
141162,BRITISH GAS BUSINESS==========,2209712141,13,251.42,ELECTRICITY,04/09/15,,Technical And Service Support,Utilities
141162,BRITISH GAS BUSINESS==========,2209712141,14,239.53,ELECTRICITY,04/09/15,,Technical And Service Support,Utilities
141162,BRITISH GAS BUSINESS==========,2209712141,15,486.57,ELECTRICITY,04/09/15,,Technical And Service Support,Utilities
141162,BRITISH GAS BUSINESS==========,2209712141,16,981.75,ELECTRICITY,04/09/15,,Technical And Service Support,Utilities
141162,BRITISH GAS BUSINESS==========,2209712141,17,197.67,ELECTRICITY,04/09/15,,Technical And Service Support,Utilities
141162,BRITISH GAS BUSINESS==========,2209712141,18,478.00,ELECTRICITY,04/09/15,,Technical And Service Support,Utilities
141162,BRITISH GAS BUSINESS==========,2209712141,19,883.90,ELECTRICITY,04/09/15,,Technical And Service Support,Utilities
141162,BRITISH GAS BUSINESS==========,2209712141,20,832.14,ELECTRICITY,04/09/15,,Technical And Service Support,Utilities
141162,BRITISH GAS BUSINESS==========,2209712141,21,423.76,ELECTRICITY,04/09/15,,Technical And Service Support,Utilities
141162,BRITISH GAS BUSINESS==========,2209712141,22,592.53,ELECTRICITY,04/09/15,,Technical And Service Support,Utilities
141162,BRITISH GAS BUSINESS==========,2209712141,23,843.19,ELECTRICITY,04/09/15,,Technical And Service Support,Utilities
141162,BRITISH GAS BUSINESS==========,2209712141,24,627.04,ELECTRICITY,04/09/15,,Technical And Service Support,Utilities
141162,BRITISH GAS BUSINESS==========,2209712141,25,782.37,ELECTRICITY,04/09/15,,Technical And Service Support,Utilities
141162,BRITISH GAS BUSINESS==========,2209712141,26,174.28,ELECTRICITY,04/09/15,,Technical And Service Support,Utilities
141162,BRITISH GAS BUSINESS==========,2209712141,27,438.76,ELECTRICITY,04/09/15,,Technical And Service Support,Utilities
141162,BRITISH GAS BUSINESS==========,2209712141,28,"1,589.67",ELECTRICITY,04/09/15,,Technical And Service Support,Utilities
141162,BRITISH GAS BUSINESS==========,2209712141,29,19.67,ELECTRICITY,04/09/15,,Technical And Service Support,Utilities
141162,BRITISH GAS BUSINESS==========,2209712141,30,590.62,ELECTRICITY,04/09/15,,Technical And Service Support,Utilities
141162,BRITISH GAS BUSINESS==========,2209712141,31,100.70,ELECTRICITY,04/09/15,,Technical And Service Support,Utilities
141162,BRITISH GAS BUSINESS==========,2209712141,32,510.00,ELECTRICITY,04/09/15,,Technical And Service Support,Utilities
141162,BRITISH GAS BUSINESS==========,2209712141,33,531.63,ELECTRICITY,04/09/15,,Technical And Service Support,Utilities
141162,BRITISH GAS BUSINESS==========,2209712141,34,549.76,ELECTRICITY,04/09/15,,Technical And Service Support,Utilities
141162,BRITISH GAS BUSINESS==========,2209712141,35,480.89,ELECTRICITY,04/09/15,,Technical And Service Support,Utilities
141162,BRITISH GAS BUSINESS==========,2209712141,36,757.70,ELECTRICITY,04/09/15,,Technical And Service Support,Utilities
141163,BRITISH GAS BUSINESS==========,2209712142,1,317.92,ELECTRICITY,04/09/15,"22,666.24",Technical And Service Support,Utilities
141163,BRITISH GAS BUSINESS==========,2209712142,2,178.93,ELECTRICITY,04/09/15,,Technical And Service Support,Utilities
141163,BRITISH GAS BUSINESS==========,2209712142,3,535.51,ELECTRICITY,04/09/15,,Technical And Service Support,Utilities
141163,BRITISH GAS BUSINESS==========,2209712142,4,388.57,ELECTRICITY,04/09/15,,Technical And Service Support,Utilities
141163,BRITISH GAS BUSINESS==========,2209712142,5,712.50,ELECTRICITY,04/09/15,,Technical And Service Support,Utilities
141163,BRITISH GAS BUSINESS==========,2209712142,6,187.49,ELECTRICITY,04/09/15,,Technical And Service Support,Utilities
141163,BRITISH GAS BUSINESS==========,2209712142,7,288.88,ELECTRICITY,04/09/15,,Technical And Service Support,Utilities
141163,BRITISH GAS BUSINESS==========,2209712142,8,373.95,ELECTRICITY,04/09/15,,Technical And Service Support,Utilities
141163,BRITISH GAS BUSINESS==========,2209712142,9,"1,326.90",ELECTRICITY,04/09/15,,Technical And Service Support,Utilities
141163,BRITISH GAS BUSINESS==========,2209712142,10,910.12,ELECTRICITY,04/09/15,,Technical And Service Support,Utilities
141163,BRITISH GAS BUSINESS==========,2209712142,11,281.09,ELECTRICITY,04/09/15,,Technical And Service Support,Utilities
141163,BRITISH GAS BUSINESS==========,2209712142,12,877.33,ELECTRICITY,04/09/15,,Technical And Service Support,Utilities
141163,BRITISH GAS BUSINESS==========,2209712142,13,804.35,ELECTRICITY,04/09/15,,Technical And Service Support,Utilities
141163,BRITISH GAS BUSINESS==========,2209712142,14,559.96,ELECTRICITY,04/09/15,,Technical And Service Support,Utilities
141163,BRITISH GAS BUSINESS==========,2209712142,15,"2,762.21",ELECTRICITY,04/09/15,,Technical And Service Support,Utilities
141163,BRITISH GAS BUSINESS==========,2209712142,16,377.86,ELECTRICITY,04/09/15,,Technical And Service Support,Utilities
141163,BRITISH GAS BUSINESS==========,2209712142,17,639.45,ELECTRICITY,04/09/15,,Technical And Service Support,Utilities
141163,BRITISH GAS BUSINESS==========,2209712142,18,788.78,ELECTRICITY,04/09/15,,Technical And Service Support,Utilities
141163,BRITISH GAS BUSINESS==========,2209712142,19,481.12,ELECTRICITY,04/09/15,,Technical And Service Support,Utilities
141163,BRITISH GAS BUSINESS==========,2209712142,20,595.83,ELECTRICITY,04/09/15,,Technical And Service Support,Utilities
141163,BRITISH GAS BUSINESS==========,2209712142,21,378.08,ELECTRICITY,04/09/15,,Technical And Service Support,Utilities
141163,BRITISH GAS BUSINESS==========,2209712142,22,728.70,ELECTRICITY,04/09/15,,Technical And Service Support,Utilities
141163,BRITISH GAS BUSINESS==========,2209712142,23,324.93,ELECTRICITY,04/09/15,,Technical And Service Support,Utilities
141163,BRITISH GAS BUSINESS==========,2209712142,24,626.50,ELECTRICITY,04/09/15,,Technical And Service Support,Utilities
141163,BRITISH GAS BUSINESS==========,2209712142,25,409.32,ELECTRICITY,04/09/15,,Technical And Service Support,Utilities
141163,BRITISH GAS BUSINESS==========,2209712142,26,615.54,ELECTRICITY,04/09/15,,Technical And Service Support,Utilities
141163,BRITISH GAS BUSINESS==========,2209712142,27,527.11,ELECTRICITY,04/09/15,,Technical And Service Support,Utilities
141163,BRITISH GAS BUSINESS==========,2209712142,28,"1,545.05",ELECTRICITY,04/09/15,,Technical And Service Support,Utilities
141163,BRITISH GAS BUSINESS==========,2209712142,29,362.88,ELECTRICITY,04/09/15,,Technical And Service Support,Utilities
141163,BRITISH GAS BUSINESS==========,2209712142,30,138.06,ELECTRICITY,04/09/15,,Technical And Service Support,Utilities
141163,BRITISH GAS BUSINESS==========,2209712142,31,555.51,ELECTRICITY,04/09/15,,Technical And Service Support,Utilities
141163,BRITISH GAS BUSINESS==========,2209712142,32,813.73,ELECTRICITY,04/09/15,,Technical And Service Support,Utilities
141163,BRITISH GAS BUSINESS==========,2209712142,33,536.94,ELECTRICITY,04/09/15,,Technical And Service Support,Utilities
141163,BRITISH GAS BUSINESS==========,2209712142,34,916.59,ELECTRICITY,04/09/15,,Technical And Service Support,Utilities
141163,BRITISH GAS BUSINESS==========,2209712142,35,428.83,ELECTRICITY,04/09/15,,Technical And Service Support,Utilities
141163,BRITISH GAS BUSINESS==========,2209712142,36,369.72,ELECTRICITY,04/09/15,,Technical And Service Support,Utilities
141164,BRITISH GAS BUSINESS==========,2209712143,1,290.76,ELECTRICITY,04/09/15,"2,593.13",Technical And Service Support,Utilities
141164,BRITISH GAS BUSINESS==========,2209712143,2,586.89,ELECTRICITY,04/09/15,,Technical And Service Support,Utilities
141164,BRITISH GAS BUSINESS==========,2209712143,3,517.51,ELECTRICITY,04/09/15,,Technical And Service Support,Utilities
141164,BRITISH GAS BUSINESS==========,2209712143,4,426.80,ELECTRICITY,04/09/15,,Technical And Service Support,Utilities
141164,BRITISH GAS BUSINESS==========,2209712143,5,522.99,ELECTRICITY,04/09/15,,Technical And Service Support,Utilities
141164,BRITISH GAS BUSINESS==========,2209712143,6,248.18,ELECTRICITY,04/09/15,,Technical And Service Support,Utilities
270815H,B NOKES CONTRACTS LTD,2849,1,320.00,REFUSE COLLECTION,04/09/15,320.00,Technical And Service Support,"Works - Construction, R&M"
270815H,B NOKES CONTRACTS LTD,2850,1,"2,870.00",STRATEGIC (NON CYCLICAL),04/09/15,"2,870.00",Technical and Service Support,"Works - Construction, R&M"
270815H,B NOKES CONTRACTS LTD,2852,1,"6,580.25",STRATEGIC (NON CYCLICAL),04/09/15,"6,580.25",Technical and Service Support,"Works - Construction, R&M"
280815H,B NOKES CONTRACTS LTD,2859,1,807.00,TACTICAL DAY TO DAY,04/09/15,807.00,Technical And Service Support,"Works - Construction, R&M"
180815H,THE UTILITIES EXCHANGE LTD====,2909,1,"2,243.75",CONSULTANTS,04/09/15,"2,243.75",Technical And Service Support,Environmental Services
270815H,DRAEGER SAFETY UK LIMITED=====,2910024489,1,567.40,PROTECTIVE EQUIPT - PARTS,04/09/15,"4,981.25",Technical and Service Support,Fire & Rescue
270815H,DRAEGER SAFETY UK LIMITED=====,2910024489,2,"1,707.90",PROTECTIVE EQUIPT - PARTS,04/09/15,,Technical and Service Support,Fire & Rescue
270815H,DRAEGER SAFETY UK LIMITED=====,2910024489,3,699.30,PROTECTIVE EQUIPT - PARTS,04/09/15,,Technical and Service Support,Fire & Rescue
270815H,DRAEGER SAFETY UK LIMITED=====,2910024489,4,531.00,PROTECTIVE EQUIPT - PARTS,04/09/15,,Technical and Service Support,Fire & Rescue
270815H,DRAEGER SAFETY UK LIMITED=====,2910024489,5,760.40,PROTECTIVE EQUIPT - PARTS,04/09/15,,Technical and Service Support,Fire & Rescue
270815H,DRAEGER SAFETY UK LIMITED=====,2910024489,6,358.75,PROTECTIVE EQUIPT - PARTS,04/09/15,,Technical and Service Support,Fire & Rescue
270815H,DRAEGER SAFETY UK LIMITED=====,2910024489,7,356.50,PROTECTIVE EQUIPT - PARTS,04/09/15,,Technical and Service Support,Fire & Rescue
010915M,DRAEGER SAFETY UK LIMITED=====,2910025768,1,851.10,PROTECTIVE EQUIPT - PARTS,04/09/15,851.10,Technical and Service Support,Fire & Rescue
010915M,DRAEGER SAFETY UK LIMITED=====,2910025769,1,358.75,PROTECTIVE EQUIPT - PARTS,04/09/15,"1,254.35",Technical and Service Support,Fire & Rescue
010915M,DRAEGER SAFETY UK LIMITED=====,2910025769,2,567.40,PROTECTIVE EQUIPT - PARTS,04/09/15,,Technical and Service Support,Fire & Rescue
010915M,DRAEGER SAFETY UK LIMITED=====,2910025769,3,265.50,PROTECTIVE EQUIPT - PARTS,04/09/15,,Technical and Service Support,Fire & Rescue
010915M,DRAEGER SAFETY UK LIMITED=====,2910025769,4,62.70,PROTECTIVE EQUIPT - PARTS,04/09/15,,Technical and Service Support,Fire & Rescue
010915M,DRAEGER SAFETY UK LIMITED=====,2910025898,1,407.70,PROTECTIVE EQUIPT - PARTS,04/09/15,407.70,Technical and Service Support,Fire & Rescue
010915M,STORM TECHNOLOGIES============,346106,1,700.00,ACQUISITIONS,04/09/15,700.00,Information and Communication Technology,ICT
280815H,CARPETS & FLOOR COVERS DIRECT=,4000,1,"5,237.00",STRATEGIC (NON CYCLICAL),04/09/15,"10,474.00",Technical and Service Support,Building Constr Materials
280815H,CARPETS & FLOOR COVERS DIRECT=,4000,2,"5,237.00",STRATEGIC (NON CYCLICAL),04/09/15,,Technical and Service Support,Building Constr Materials
190815M,UNDERSTANDING RECRUITMENT,4163,1,"8,050.00",FRS STAFF AGENCY,04/09/15,"8,050.00",Information and Communication Technology,Human Resources
141166,THAMES WATER UTILITIES LTD====,4746934238H,1,980.87,WATER & SEWERAGE RATES,04/09/15,980.87,Technical And Service Support,Utilities
280815H,SPORTSAFE UK LTD==============,475917,1,258.10,GYM EQUIPMENT,04/09/15,258.10,Technical And Service Support,Sports & Playground Equip
280815H,SPORTSAFE UK LTD==============,475987,1,73.14,GYM EQUIPMENT,04/09/15,436.80,Technical And Service Support,Sports & Playground Equip
280815H,SPORTSAFE UK LTD==============,475987,2,25.42,GYM EQUIPMENT,04/09/15,,Technical And Service Support,Sports & Playground Equip
280815H,SPORTSAFE UK LTD==============,475987,3,83.74,GYM EQUIPMENT,04/09/15,,Technical And Service Support,Sports & Playground Equip
280815H,SPORTSAFE UK LTD==============,475987,4,67.50,GYM EQUIPMENT,04/09/15,,Technical And Service Support,Sports & Playground Equip
280815H,SPORTSAFE UK LTD==============,475987,5,138.00,GYM EQUIPMENT,04/09/15,,Technical And Service Support,Sports & Playground Equip
280815H,SPORTSAFE UK LTD==============,475987,6,49.00,GYM EQUIPMENT,04/09/15,,Technical And Service Support,Sports & Playground Equip
141166,THAMES WATER UTILITIES LTD====,5044799354H,1,500.47,WATER & SEWERAGE RATES,04/09/15,500.47,Technical And Service Support,Utilities
141166,THAMES WATER UTILITIES LTD====,5123443448H,1,"1,298.09",WATER & SEWERAGE RATES,04/09/15,"1,298.09",Technical And Service Support,Utilities
141166,THAMES WATER UTILITIES LTD====,7215806346H,1,250.08,WATER & SEWERAGE RATES,04/09/15,250.08,Technical And Service Support,Utilities
010915M,*SUPPLIES TEAM================,7569532,1,478.00,OPERATIONAL EQUIP-PURCHASE,04/09/15,478.00,Corporate Management Team,ICT
010915M,*SUPPLIES TEAM================,7608961,1,330.00,STATIONERY CONSUMABLES,04/09/15,330.00,Exercise Unified Response,ICT
010915M,WEST SUSSEX COUNTY COUNCIL,8007707355,1,"5,955.00",FIRE AUTHORITIES,04/09/15,"5,955.00",National Operational Guidance Project,Financial Services
010915M,TWO SERVICES LTD==============,83707,1,725.50,CATERING EQUIPMENT,04/09/15,725.50,Operations Fire Stations,Catering
010915M,STALLION PLANT SERVICES LTD,8869,1,280.00,REPAIR & MAINTENANCE,04/09/15,280.00,Technical And Service Support,Fire & Rescue
141166,THAMES WATER UTILITIES LTD====,8903905446H,1,360.94,WATER & SEWERAGE RATES,04/09/15,360.94,Technical And Service Support,Utilities
240815M,ASTEC SURVEYS LIMITED=========,ASL-15-234,1,345.00,DEVELOPMENT  EXPENSES-CONTRACT,04/09/15,345.00,Technical and Service Support,Environmental Services
010915M,HARDY MEDIA,AW15079,1,520.00,BOOKS & JOURNALS,04/09/15,520.00,Communications,Human Resources
280815H,SURVITEC SERVICE &DISTRIBUTION,CD30825001,1,700.00,OPERATIONAL EQUIP-PURCHASE,04/09/15,708.00,Technical And Service Support,Fire & Rescue
280815H,SURVITEC SERVICE &DISTRIBUTION,CD30825001,2,8.00,OPERATIONAL EQUIP-PURCHASE,04/09/15,,Technical And Service Support,Fire & Rescue
010915M,SURVITEC SERVICE &DISTRIBUTION,CD30828840,1,228.00,PROTECTIVE EQUIPT - PARTS,04/09/15,965.50,Technical and Service Support,Fire & Rescue
010915M,SURVITEC SERVICE &DISTRIBUTION,CD30828840,2,228.00,PROTECTIVE EQUIPT - PARTS,04/09/15,,Technical and Service Support,Fire & Rescue
010915M,SURVITEC SERVICE &DISTRIBUTION,CD30828840,3,228.00,PROTECTIVE EQUIPT - PARTS,04/09/15,,Technical and Service Support,Fire & Rescue
010915M,SURVITEC SERVICE &DISTRIBUTION,CD30828840,4,70.20,PROTECTIVE EQUIPT - PARTS,04/09/15,,Technical and Service Support,Fire & Rescue
010915M,SURVITEC SERVICE &DISTRIBUTION,CD30828840,5,196.30,PROTECTIVE EQUIPT - PARTS,04/09/15,,Technical and Service Support,Fire & Rescue
010915M,SURVITEC SERVICE &DISTRIBUTION,CD30828840,6,15.00,REPAIR & MAINTENANCE,04/09/15,,Technical And Service Support,Fire & Rescue
010915M,SURVITEC SERVICE &DISTRIBUTION,CD30828941,1,"1,221.00",PROTECTIVE EQUIPT - PARTS,04/09/15,"1,231.00",Technical and Service Support,Fire & Rescue
010915M,SURVITEC SERVICE &DISTRIBUTION,CD30828941,2,10.00,REPAIR & MAINTENANCE,04/09/15,,Technical And Service Support,Fire & Rescue
280815H,SURVITEC SERVICE &DISTRIBUTION,CD30829669,1,"1,416.60",PURCHASE,04/09/15,"1,416.60",Technical And Service Support,Fire & Rescue
270815H,E&S B DAVIS LTD,DAV/57872,1,590.00,OPERATIONAL EQUIP-PURCHASE,04/09/15,590.00,Operations Fire Stations,Environmental Services
270815H,TRAUMA & RESUSCITATION SERVICE,DEL/T/15/1104/VA,1,255.00,PROFESSIONAL DEVELOPMENT,04/09/15,255.00,Operational Policy,Human Resources
141166,KEMSLEY LLP=================,FALCON07-9,1,860.77,RENTS,04/09/15,860.77,Technical and Service Support,Financial Services
141166,KEMSLEY LLP=================,FALCON08-9,1,947.07,RENTS,04/09/15,947.07,Technical and Service Support,Financial Services
141166,KEMSLEY LLP=================,FALCON09-9,1,856.86,RENTS,04/09/15,856.86,Technical and Service Support,Financial Services
200815M,QAS SYSTEMS LTD===============,HEX67000543169,1,"5,000.00",MAINTENANCE & SUPPORT,04/09/15,"5,000.00",Information and Communication Technology,ICT
270815H,HALL FUELS,I07773600,1,"3,534.00",FUEL,04/09/15,"3,534.00",Operations Fire Stations,Vehicle Management
270815H,JV FACILITY LIMITED,INV1508003,1,"39,648.56",GENERAL,04/09/15,"39,648.56",EU Fired-Up Project,Fire & Rescue
010915M,CANNON'S MSA LTD,NV1088098,1,499.00,TACTICAL DAY TO DAY,04/09/15,499.00,Technical And Service Support,Vehicle Management
010915M,CANNON'S MSA LTD,NV1088550,1,369.99,TACTICAL DAY TO DAY,04/09/15,369.99,Technical And Service Support,Vehicle Management
140815M,KCOM GROUP====================,PA173791,1,625.00,STRATEGIC (NON CYCLICAL),04/09/15,625.00,Technical and Service Support,ICT
141166,VEOLIA WATER PROJECTS LTD=====,SI-15-0004251,1,"2,888.08",ELECTRICITY,04/09/15,"2,888.08",Technical And Service Support,Utilities
250815M,GROUND CONTROL LIMITED,SIN058964,1,345.00,GROUNDS MAINTENANCE,04/09/15,345.00,Technical And Service Support,"Works - Construction, R&M"
240815M,GROUND CONTROL LIMITED,SIN058965,1,653.20,GROUNDS MAINTENANCE,04/09/15,653.20,Technical And Service Support,"Works - Construction, R&M"
210815H,NATIONWIDE WINDSCREEN SERVICES,SIN159598,1,272.77,WINDSCREEN & TYRE CHARGES,04/09/15,272.77,Procurement,Vehicle Management
270815H,WESTMINSTER BUSINESS FORUM,W95945-700,1,420.00,PROFESSIONAL DEVELOPMENT,04/09/15,420.00,Fire Safety Regulation,Human Resources
020915M,LE MAITRE LTD=================,003362,1,500.00,PROTECTIVE EQUIPT - PARTS,10/09/15,500.00,Technical and Service Support,Facilities & Management S
250815M,AIRWAVE SOLUTIONS LTD=========,0941000028-011,1,"2,633.40",ACQUISITIONS,10/09/15,"2,645.40",Information and Communication Technology,ICT
250815M,AIRWAVE SOLUTIONS LTD=========,0941000028-011,2,12.00,ACQUISITIONS,10/09/15,,Information and Communication Technology,ICT
020915H,AFFINITY WATER,101063879,1,520.00,CURRENT HYDRANT COSTS,10/09/15,520.00,Operational Resilience,Utilities
020915H,AFFINITY WATER,101063880,1,520.00,CURRENT HYDRANT COSTS,10/09/15,520.00,Operational Resilience,Utilities
070915M,KJA- ARTISTS,1030,1,"1,000.00",PRINTING,10/09/15,"1,000.00",Communications,Facilities & Management S
800065260,*JAMES HUNTER (OUTFITTERS) LTD,108282,1,293.13,CLOTHING,10/09/15,293.13,Operations Fire Stations,Clothing
800065266,*JAMES HUNTER (OUTFITTERS) LTD,108288,1,231.56,CLOTHING,10/09/15,293.35,Operations Fire Stations,Clothing
800065266,*JAMES HUNTER (OUTFITTERS) LTD,108288,2,61.79,CLOTHING,10/09/15,,Operations Fire Stations,Clothing
040915M,G WORRALL & SON LIMITED=======,112079,1,25.00,GENERAL CONSUMABLES,10/09/15,265.00,Procurement,Facilities & Management S
040915M,G WORRALL & SON LIMITED=======,112079,2,150.00,GENERAL CONSUMABLES,10/09/15,,Procurement,Facilities & Management S
040915M,G WORRALL & SON LIMITED=======,112079,3,90.00,GENERAL CONSUMABLES,10/09/15,,Procurement,Facilities & Management S
040915M,VISTA LANDSCAPE MANAGEMENT LTD,121129,1,95.83,GROUNDS MAINTENANCE,10/09/15,"2,232.46",Technical And Service Support,"Works - Construction, R&M"
040915M,VISTA LANDSCAPE MANAGEMENT LTD,121129,2,23.00,GROUNDS MAINTENANCE,10/09/15,,Technical And Service Support,"Works - Construction, R&M"
040915M,VISTA LANDSCAPE MANAGEMENT LTD,121129,3,22.12,GROUNDS MAINTENANCE,10/09/15,,Technical And Service Support,"Works - Construction, R&M"
040915M,VISTA LANDSCAPE MANAGEMENT LTD,121129,4,24.94,GROUNDS MAINTENANCE,10/09/15,,Technical And Service Support,"Works - Construction, R&M"
040915M,VISTA LANDSCAPE MANAGEMENT LTD,121129,5,75.00,GROUNDS MAINTENANCE,10/09/15,,Technical And Service Support,"Works - Construction, R&M"
040915M,VISTA LANDSCAPE MANAGEMENT LTD,121129,6,17.25,GROUNDS MAINTENANCE,10/09/15,,Technical And Service Support,"Works - Construction, R&M"
040915M,VISTA LANDSCAPE MANAGEMENT LTD,121129,7,25.77,GROUNDS MAINTENANCE,10/09/15,,Technical And Service Support,"Works - Construction, R&M"
040915M,VISTA LANDSCAPE MANAGEMENT LTD,121129,8,17.25,GROUNDS MAINTENANCE,10/09/15,,Technical And Service Support,"Works - Construction, R&M"
040915M,VISTA LANDSCAPE MANAGEMENT LTD,121129,9,46.00,GROUNDS MAINTENANCE,10/09/15,,Technical And Service Support,"Works - Construction, R&M"
040915M,VISTA LANDSCAPE MANAGEMENT LTD,121129,10,11.50,GROUNDS MAINTENANCE,10/09/15,,Technical And Service Support,"Works - Construction, R&M"
040915M,VISTA LANDSCAPE MANAGEMENT LTD,121129,11,109.25,GROUNDS MAINTENANCE,10/09/15,,Technical And Service Support,"Works - Construction, R&M"
040915M,VISTA LANDSCAPE MANAGEMENT LTD,121129,12,11.50,GROUNDS MAINTENANCE,10/09/15,,Technical And Service Support,"Works - Construction, R&M"
040915M,VISTA LANDSCAPE MANAGEMENT LTD,121129,13,82.52,GROUNDS MAINTENANCE,10/09/15,,Technical And Service Support,"Works - Construction, R&M"
040915M,VISTA LANDSCAPE MANAGEMENT LTD,121129,14,22.05,GROUNDS MAINTENANCE,10/09/15,,Technical And Service Support,"Works - Construction, R&M"
040915M,VISTA LANDSCAPE MANAGEMENT LTD,121129,15,17.25,GROUNDS MAINTENANCE,10/09/15,,Technical And Service Support,"Works - Construction, R&M"
040915M,VISTA LANDSCAPE MANAGEMENT LTD,121129,16,127.05,GROUNDS MAINTENANCE,10/09/15,,Technical And Service Support,"Works - Construction, R&M"
040915M,VISTA LANDSCAPE MANAGEMENT LTD,121129,17,11.50,GROUNDS MAINTENANCE,10/09/15,,Technical And Service Support,"Works - Construction, R&M"
040915M,VISTA LANDSCAPE MANAGEMENT LTD,121129,18,17.25,GROUNDS MAINTENANCE,10/09/15,,Technical And Service Support,"Works - Construction, R&M"
040915M,VISTA LANDSCAPE MANAGEMENT LTD,121129,19,11.50,GROUNDS MAINTENANCE,10/09/15,,Technical And Service Support,"Works - Construction, R&M"
040915M,VISTA LANDSCAPE MANAGEMENT LTD,121129,20,17.25,GROUNDS MAINTENANCE,10/09/15,,Technical And Service Support,"Works - Construction, R&M"
040915M,VISTA LANDSCAPE MANAGEMENT LTD,121129,21,22.36,GROUNDS MAINTENANCE,10/09/15,,Technical And Service Support,"Works - Construction, R&M"
040915M,VISTA LANDSCAPE MANAGEMENT LTD,121129,22,11.50,GROUNDS MAINTENANCE,10/09/15,,Technical And Service Support,"Works - Construction, R&M"
040915M,VISTA LANDSCAPE MANAGEMENT LTD,121129,23,11.50,GROUNDS MAINTENANCE,10/09/15,,Technical And Service Support,"Works - Construction, R&M"
040915M,VISTA LANDSCAPE MANAGEMENT LTD,121129,24,79.85,GROUNDS MAINTENANCE,10/09/15,,Technical And Service Support,"Works - Construction, R&M"
040915M,VISTA LANDSCAPE MANAGEMENT LTD,121129,25,83.96,GROUNDS MAINTENANCE,10/09/15,,Technical And Service Support,"Works - Construction, R&M"
040915M,VISTA LANDSCAPE MANAGEMENT LTD,121129,26,17.25,GROUNDS MAINTENANCE,10/09/15,,Technical And Service Support,"Works - Construction, R&M"
040915M,VISTA LANDSCAPE MANAGEMENT LTD,121129,27,256.21,GROUNDS MAINTENANCE,10/09/15,,Technical And Service Support,"Works - Construction, R&M"
040915M,VISTA LANDSCAPE MANAGEMENT LTD,121129,28,17.26,GROUNDS MAINTENANCE,10/09/15,,Technical And Service Support,"Works - Construction, R&M"
040915M,VISTA LANDSCAPE MANAGEMENT LTD,121129,29,63.14,GROUNDS MAINTENANCE,10/09/15,,Technical And Service Support,"Works - Construction, R&M"
040915M,VISTA LANDSCAPE MANAGEMENT LTD,121129,30,11.50,GROUNDS MAINTENANCE,10/09/15,,Technical And Service Support,"Works - Construction, R&M"
040915M,VISTA LANDSCAPE MANAGEMENT LTD,121129,31,11.50,GROUNDS MAINTENANCE,10/09/15,,Technical And Service Support,"Works - Construction, R&M"
040915M,VISTA LANDSCAPE MANAGEMENT LTD,121129,32,16.63,GROUNDS MAINTENANCE,10/09/15,,Technical And Service Support,"Works - Construction, R&M"
040915M,VISTA LANDSCAPE MANAGEMENT LTD,121129,33,73.18,GROUNDS MAINTENANCE,10/09/15,,Technical And Service Support,"Works - Construction, R&M"
040915M,VISTA LANDSCAPE MANAGEMENT LTD,121129,34,118.23,GROUNDS MAINTENANCE,10/09/15,,Technical And Service Support,"Works - Construction, R&M"
040915M,VISTA LANDSCAPE MANAGEMENT LTD,121129,35,555.00,GROUNDS MAINTENANCE,10/09/15,,Technical And Service Support,"Works - Construction, R&M"
040915M,VISTA LANDSCAPE MANAGEMENT LTD,121129,36,20.83,GROUNDS MAINTENANCE,10/09/15,,Technical And Service Support,"Works - Construction, R&M"
040915M,VISTA LANDSCAPE MANAGEMENT LTD,121129,37,64.28,GROUNDS MAINTENANCE,10/09/15,,Technical And Service Support,"Works - Construction, R&M"
040915M,VISTA LANDSCAPE MANAGEMENT LTD,121129,38,12.50,GROUNDS MAINTENANCE,10/09/15,,Technical And Service Support,"Works - Construction, R&M"
020915H,SURREY BLIND & CURTAIN CO=====,14753,1,264.00,FIXTURES & FITTINGS,10/09/15,264.00,Technical And Service Support,"Works - Construction, R&M"
020915M,TORQUE CALIBRATION LTD,150835,1,35.00,REPAIR & MAINTENANCE,10/09/15,417.13,Technical And Service Support,Building Constr Materials
020915M,TORQUE CALIBRATION LTD,150835,2,35.00,REPAIR & MAINTENANCE,10/09/15,,Technical And Service Support,Building Constr Materials
020915M,TORQUE CALIBRATION LTD,150835,3,35.00,REPAIR & MAINTENANCE,10/09/15,,Technical And Service Support,Building Constr Materials
020915M,TORQUE CALIBRATION LTD,150835,4,35.00,REPAIR & MAINTENANCE,10/09/15,,Technical And Service Support,Building Constr Materials
020915M,TORQUE CALIBRATION LTD,150835,5,35.00,REPAIR & MAINTENANCE,10/09/15,,Technical And Service Support,Building Constr Materials
020915M,TORQUE CALIBRATION LTD,150835,6,35.00,REPAIR & MAINTENANCE,10/09/15,,Technical And Service Support,Building Constr Materials
020915M,TORQUE CALIBRATION LTD,150835,7,35.00,REPAIR & MAINTENANCE,10/09/15,,Technical And Service Support,Building Constr Materials
020915M,TORQUE CALIBRATION LTD,150835,8,15.00,REPAIR & MAINTENANCE,10/09/15,,Technical And Service Support,Building Constr Materials
020915M,TORQUE CALIBRATION LTD,150835,9,157.13,PURCHASE,10/09/15,,Technical And Service Support,Building Constr Materials
070915M,HARRIS INSTALLATION SERVICES,18137,1,462.69,REMOVALS,10/09/15,462.69,Technical And Service Support,Facilities & Management S
070915M,HARRIS INSTALLATION SERVICES,18417,1,347.80,TACTICAL DAY TO DAY,10/09/15,347.80,Technical And Service Support,Facilities & Management S
070915M,BDG WORKFUTURES LTD===========,201402136,1,"8,390.00",PROFESSIONAL SERVICES,10/09/15,"8,390.00",Technical And Service Support,Consultancy
040915M,GRADIENT CONSULTANTS LLP======,2402,1,245.00,ASBESTOS,10/09/15,"1,470.00",Technical and Service Support,"Works - Construction, R&M"
040915M,GRADIENT CONSULTANTS LLP======,2402,2,245.00,ASBESTOS,10/09/15,,Technical and Service Support,"Works - Construction, R&M"
040915M,GRADIENT CONSULTANTS LLP======,2402,3,245.00,ASBESTOS,10/09/15,,Technical and Service Support,"Works - Construction, R&M"
040915M,GRADIENT CONSULTANTS LLP======,2402,4,245.00,ASBESTOS,10/09/15,,Technical and Service Support,"Works - Construction, R&M"
040915M,GRADIENT CONSULTANTS LLP======,2402,5,245.00,ASBESTOS,10/09/15,,Technical and Service Support,"Works - Construction, R&M"
040915M,GRADIENT CONSULTANTS LLP======,2402,6,245.00,ASBESTOS,10/09/15,,Technical and Service Support,"Works - Construction, R&M"
800063283,ADECCO UK LIMITED=============,27104433,1,624.40,FRS STAFF AGENCY,10/09/15,624.40,Procurement,Human Resources
800065499,ADECCO UK LIMITED=============,27207020,1,922.25,FRS STAFF AGENCY,10/09/15,922.25,Technical And Service Support,Human Resources
800065469,ADECCO UK LIMITED=============,27207024,1,690.08,FRS STAFF AGENCY,10/09/15,690.08,Technical And Service Support,Human Resources
800065579,ADECCO UK LIMITED=============,27207026,1,900.20,FRS STAFF AGENCY,10/09/15,900.20,Strategy & Inclusion,Human Resources
800065557,ADECCO UK LIMITED=============,27207028,1,364.24,FRS STAFF AGENCY,10/09/15,364.24,HR Management,Human Resources
800065345,ADECCO UK LIMITED=============,27207029,1,554.75,FRS STAFF AGENCY,10/09/15,554.75,Communications,Human Resources
800065526,ADECCO UK LIMITED=============,27207030,1,797.32,FRS STAFF AGENCY,10/09/15,797.32,National Operational Guidance Project,Human Resources
800065441,ADECCO UK LIMITED=============,27207032,1,439.60,FRS STAFF AGENCY,10/09/15,439.60,Technical And Service Support,Human Resources
800065373,ADECCO UK LIMITED=============,27207033,1,523.54,FRS STAFF AGENCY,10/09/15,523.54,National Operational Guidance Project,Human Resources
800065408,ADECCO UK LIMITED=============,27207034,1,704.90,FRS STAFF AGENCY,10/09/15,704.90,HR Management,Human Resources
800065338,ADECCO UK LIMITED=============,27207035,1,499.52,FRS STAFF AGENCY,10/09/15,499.52,Procurement,Human Resources
800065429,ADECCO UK LIMITED=============,27207037,1,554.75,FRS STAFF AGENCY,10/09/15,554.75,Exercise Unified Response,Human Resources
800065480,ADECCO UK LIMITED=============,27207039,1,602.10,FRS STAFF AGENCY,10/09/15,602.10,Fire Safety Regulation,Human Resources
800065450,ADECCO UK LIMITED=============,27207040,1,624.40,FRS STAFF AGENCY,10/09/15,624.40,Finance Services,Human Resources
800065352,ADECCO UK LIMITED=============,27207041,1,439.60,FRS STAFF AGENCY,10/09/15,439.60,Technical And Service Support,Human Resources
800065532,ADECCO UK LIMITED=============,27207043,1,899.25,FRS STAFF AGENCY,10/09/15,899.25,National Operational Guidance Project,Human Resources
800065531,ADECCO UK LIMITED=============,27207044,1,322.00,FRS STAFF AGENCY,10/09/15,322.00,National Operational Guidance Project,Human Resources
800065363,ADECCO UK LIMITED=============,27207045,1,624.40,FRS STAFF AGENCY,10/09/15,624.40,Procurement,Human Resources
800065565,ADECCO UK LIMITED=============,27207046,1,900.20,FRS STAFF AGENCY,10/09/15,900.20,National Operational Guidance Project,Human Resources
800065436,ADECCO UK LIMITED=============,27207047,1,606.56,FRS STAFF AGENCY,10/09/15,606.56,Operations Non Fire Stations,Human Resources
800065380,ADECCO UK LIMITED=============,27207048,1,624.40,FRS STAFF AGENCY,10/09/15,624.40,Fire Safety Regulation,Human Resources
800065544,ADECCO UK LIMITED=============,27207049,1,374.64,FRS STAFF AGENCY,10/09/15,374.64,Fire Safety Regulation,Human Resources
800065369,ADECCO UK LIMITED=============,27207051,1,499.52,FRS STAFF AGENCY,10/09/15,499.52,Development and Training,Human Resources
800065550,ADECCO UK LIMITED=============,27207053,1,408.20,FRS STAFF AGENCY,10/09/15,408.20,HR Management,Human Resources
800065492,ADECCO UK LIMITED=============,27207054,1,439.60,FRS STAFF AGENCY,10/09/15,439.60,HR Management,Human Resources
800065463,ADECCO UK LIMITED=============,27207055,1,942.20,FRS STAFF AGENCY,10/09/15,942.20,Technical And Service Support,Human Resources
800065485,ADECCO UK LIMITED=============,27207056,1,942.20,FRS STAFF AGENCY,10/09/15,942.20,Technical And Service Support,Human Resources
800065403,ADECCO UK LIMITED=============,27207057,1,554.75,FRS STAFF AGENCY,10/09/15,554.75,Strategy & Inclusion,Human Resources
800065457,ADECCO UK LIMITED=============,27207058,1,624.40,FRS STAFF AGENCY,10/09/15,624.40,Information Management,Human Resources
800065563,ADECCO UK LIMITED=============,27207059,1,624.40,FRS STAFF AGENCY,10/09/15,624.40,HR Management,Human Resources
800065346,ADECCO UK LIMITED=============,27213748,1,554.75,FRS STAFF AGENCY,10/09/15,554.75,Communications,Human Resources
800065442,ADECCO UK LIMITED=============,27213752,1,439.60,FRS STAFF AGENCY,10/09/15,439.60,Technical And Service Support,Human Resources
800065374,ADECCO UK LIMITED=============,27213753,1,523.54,FRS STAFF AGENCY,10/09/15,523.54,National Operational Guidance Project,Human Resources
800065409,ADECCO UK LIMITED=============,27213754,1,704.90,FRS STAFF AGENCY,10/09/15,704.90,HR Management,Human Resources
800065339,ADECCO UK LIMITED=============,27213755,1,499.52,FRS STAFF AGENCY,10/09/15,499.52,Procurement,Human Resources
800065430,ADECCO UK LIMITED=============,27213756,1,443.80,FRS STAFF AGENCY,10/09/15,443.80,Exercise Unified Response,Human Resources
800065451,ADECCO UK LIMITED=============,27213758,1,374.64,FRS STAFF AGENCY,10/09/15,374.64,Finance Services,Human Resources
800065364,ADECCO UK LIMITED=============,27213762,1,624.40,FRS STAFF AGENCY,10/09/15,624.40,Procurement,Human Resources
800065437,ADECCO UK LIMITED=============,27213764,1,624.40,FRS STAFF AGENCY,10/09/15,624.40,Operations Non Fire Stations,Human Resources
800065381,ADECCO UK LIMITED=============,27213765,1,624.40,FRS STAFF AGENCY,10/09/15,624.40,Fire Safety Regulation,Human Resources
800065370,ADECCO UK LIMITED=============,27213767,1,561.96,FRS STAFF AGENCY,10/09/15,561.96,Development and Training,Human Resources
800065493,ADECCO UK LIMITED=============,27213770,1,439.60,FRS STAFF AGENCY,10/09/15,439.60,HR Management,Human Resources
800065464,ADECCO UK LIMITED=============,27213771,1,942.20,FRS STAFF AGENCY,10/09/15,942.20,Technical And Service Support,Human Resources
800065486,ADECCO UK LIMITED=============,27213772,1,942.20,FRS STAFF AGENCY,10/09/15,942.20,Technical And Service Support,Human Resources
800065353,ADECCO UK LIMITED=============,27213773,1,351.68,FRS STAFF AGENCY,10/09/15,351.68,Technical And Service Support,Human Resources
800065470,ADECCO UK LIMITED=============,27213777,1,862.60,FRS STAFF AGENCY,10/09/15,862.60,Technical And Service Support,Human Resources
800065404,ADECCO UK LIMITED=============,27213779,1,554.75,FRS STAFF AGENCY,10/09/15,554.75,Strategy & Inclusion,Human Resources
800065458,ADECCO UK LIMITED=============,27213780,1,624.40,FRS STAFF AGENCY,10/09/15,624.40,Information Management,Human Resources
800065509,ADECCO UK LIMITED=============,27213782,1,427.04,PURCHASES-COMPUTER/EQUIPMENT,10/09/15,427.04,Information and Communication Technology,Human Resources
800065572,ADECCO UK LIMITED=============,27217214,1,"1,331.84",FRS STAFF AGENCY,10/09/15,"1,331.84",Technical and Service Support,Human Resources
800065523,ADECCO UK LIMITED=============,27220218,1,"1,445.40",FRS STAFF AGENCY,10/09/15,"1,445.40",National Operational Guidance Project,Human Resources
800065443,ADECCO UK LIMITED=============,27220221,1,439.60,FRS STAFF AGENCY,10/09/15,439.60,Technical And Service Support,Human Resources
800065375,ADECCO UK LIMITED=============,27220222,1,523.54,FRS STAFF AGENCY,10/09/15,523.54,National Operational Guidance Project,Human Resources
800065410,ADECCO UK LIMITED=============,27220223,1,704.90,FRS STAFF AGENCY,10/09/15,704.90,HR Management,Human Resources
800065340,ADECCO UK LIMITED=============,27220224,1,624.40,FRS STAFF AGENCY,10/09/15,624.40,Procurement,Human Resources
800065360,ADECCO UK LIMITED=============,27220225,1,843.15,FRS STAFF AGENCY,10/09/15,843.15,Communications,Human Resources
800065431,ADECCO UK LIMITED=============,27220226,1,554.75,FRS STAFF AGENCY,10/09/15,554.75,Exercise Unified Response,Human Resources
800065398,ADECCO UK LIMITED=============,27220228,1,"1,339.80",FRS STAFF AGENCY,10/09/15,"1,339.80",Legal & Democratic Services,Human Resources
800065482,ADECCO UK LIMITED=============,27220230,1,615.48,FRS STAFF AGENCY,10/09/15,615.48,Fire Safety Regulation,Human Resources
800065452,ADECCO UK LIMITED=============,27220231,1,624.40,FRS STAFF AGENCY,10/09/15,624.40,Finance Services,Human Resources
800065365,ADECCO UK LIMITED=============,27220235,1,499.52,FRS STAFF AGENCY,10/09/15,499.52,Procurement,Human Resources
800065438,ADECCO UK LIMITED=============,27220237,1,624.40,FRS STAFF AGENCY,10/09/15,624.40,Operations Non Fire Stations,Human Resources
800065382,ADECCO UK LIMITED=============,27220238,1,624.40,FRS STAFF AGENCY,10/09/15,624.40,Fire Safety Regulation,Human Resources
800065465,ADECCO UK LIMITED=============,27220245,1,753.76,FRS STAFF AGENCY,10/09/15,753.76,Technical And Service Support,Human Resources
800065405,ADECCO UK LIMITED=============,27220253,1,523.05,FRS STAFF AGENCY,10/09/15,523.05,Strategy & Inclusion,Human Resources
800065459,ADECCO UK LIMITED=============,27220254,1,624.40,FRS STAFF AGENCY,10/09/15,624.40,Information Management,Human Resources
800065475,ADECCO UK LIMITED=============,27220261,1,351.68,FRS STAFF AGENCY,10/09/15,351.68,Operations Non Fire Stations,Human Resources
800065387,ADECCO UK LIMITED=============,27220263,1,439.60,FRS STAFF AGENCY,10/09/15,439.60,Technical And Service Support,Human Resources
800065399,ADECCO UK LIMITED=============,27226555,1,"1,295.14",FRS STAFF AGENCY,10/09/15,"1,295.14",Legal & Democratic Services,Human Resources
800065476,ADECCO UK LIMITED=============,27226581,1,439.60,FRS STAFF AGENCY,10/09/15,439.60,Operations Non Fire Stations,Human Resources
800065388,ADECCO UK LIMITED=============,27226583,1,401.92,FRS STAFF AGENCY,10/09/15,401.92,Technical And Service Support,Human Resources
800065355,ADECCO UK LIMITED=============,27226584,1,263.76,FRS STAFF AGENCY,10/09/15,263.76,Operations Non Fire Stations,Human Resources
800065400,ADECCO UK LIMITED=============,27233165,1,"1,384.46",FRS STAFF AGENCY,10/09/15,"1,384.46",Legal & Democratic Services,Human Resources
800065440,ADECCO UK LIMITED=============,27233168,1,624.40,FRS STAFF AGENCY,10/09/15,624.40,Operations Non Fire Stations,Human Resources
800065419,ADECCO UK LIMITED=============,27233180,1,624.40,FRS STAFF AGENCY,10/09/15,624.40,Technical And Service Support,Human Resources
800065477,ADECCO UK LIMITED=============,27233187,1,439.60,FRS STAFF AGENCY,10/09/15,439.60,Operations Non Fire Stations,Human Resources
800065389,ADECCO UK LIMITED=============,27233189,1,439.60,FRS STAFF AGENCY,10/09/15,439.60,Technical And Service Support,Human Resources
800065356,ADECCO UK LIMITED=============,27233194,1,439.60,FRS STAFF AGENCY,10/09/15,439.60,Operations Non Fire Stations,Human Resources
800065349,ADECCO UK LIMITED=============,27233196,1,605.64,FRS STAFF AGENCY,10/09/15,605.64,Communications,Human Resources
800065506,ADECCO UK LIMITED=============,27233197,1,439.60,FRS STAFF AGENCY,10/09/15,439.60,Communications,Human Resources
800065515,ADECCO UK LIMITED=============,27233198,1,554.75,FRS STAFF AGENCY,10/09/15,554.75,Information and Communication Technology,Human Resources
800065395,ADECCO UK LIMITED=============,27233199,1,735.42,FRS STAFF AGENCY,10/09/15,735.42,Communications,Human Resources
800065350,ADECCO UK LIMITED=============,27239192,1,757.05,FRS STAFF AGENCY,10/09/15,757.05,Communications,Human Resources
800065396,ADECCO UK LIMITED=============,27239195,1,605.64,FRS STAFF AGENCY,10/09/15,605.64,Communications,Human Resources
800065586,ADECCO UK LIMITED=============,27239198,1,439.60,FRS STAFF AGENCY,10/09/15,439.60,Operations Non Fire Stations,Human Resources
800065351,ADECCO UK LIMITED=============,27245398,1,605.64,FRS STAFF AGENCY,10/09/15,605.64,Communications,Human Resources
800065397,ADECCO UK LIMITED=============,27245400,1,757.05,FRS STAFF AGENCY,10/09/15,757.05,Communications,Human Resources
800065522,ADECCO UK LIMITED=============,27245402,1,463.84,FRS STAFF AGENCY,10/09/15,463.84,Fire Safety Regulation,Human Resources
800065588,ADECCO UK LIMITED=============,27245403,1,320.84,FRS STAFF AGENCY,10/09/15,320.84,Communications,Human Resources
800065589,ADECCO UK LIMITED=============,27245405,1,345.52,FRS STAFF AGENCY,10/09/15,345.52,Communications,Human Resources
800065505,ADECCO UK LIMITED=============,27245407,1,538.90,FRS STAFF AGENCY,10/09/15,538.90,Community Safety Delivery,Human Resources
800065394,ADECCO UK LIMITED=============,27245408,1,554.75,FRS STAFF AGENCY,10/09/15,554.75,Information and Communication Technology,Human Resources
800065484,ADECCO UK LIMITED=============,27245409,1,351.68,FRS STAFF AGENCY,10/09/15,351.68,Technical And Service Support,Human Resources
800065421,ADECCO UK LIMITED=============,27245418,1,624.40,FRS STAFF AGENCY,10/09/15,624.40,Technical And Service Support,Human Resources
020915M,B NOKES CONTRACTS LTD,2851,1,768.00,STRATEGIC (NON CYCLICAL),10/09/15,768.00,Technical and Service Support,"Works - Construction, R&M"
020915H,B NOKES CONTRACTS LTD,2853,1,"1,570.00",STRATEGIC (NON CYCLICAL),10/09/15,"1,570.00",Technical and Service Support,"Works - Construction, R&M"
020915H,B NOKES CONTRACTS LTD,2854,1,"1,294.00",STRATEGIC (NON CYCLICAL),10/09/15,"1,294.00",Technical and Service Support,"Works - Construction, R&M"
020915H,B NOKES CONTRACTS LTD,2860,1,"3,019.50",STRATEGIC (NON CYCLICAL),10/09/15,"3,019.50",Technical and Service Support,"Works - Construction, R&M"
020915H,B NOKES CONTRACTS LTD,2861,1,"2,145.00",CATERING FIXTURES,10/09/15,"2,145.00",Technical and Service Support,"Works - Construction, R&M"
020915H,B NOKES CONTRACTS LTD,2862,1,"1,575.00",STRATEGIC (NON CYCLICAL),10/09/15,"1,575.00",Technical and Service Support,"Works - Construction, R&M"
020915H,B NOKES CONTRACTS LTD,2863,1,"2,673.50",STRATEGIC (NON CYCLICAL),10/09/15,"2,673.50",Technical and Service Support,"Works - Construction, R&M"
020915M,DRAEGER SAFETY UK LIMITED=====,2910026052,1,899.85,PROTECTIVE EQUIPT - PARTS,10/09/15,899.85,Technical and Service Support,Fire & Rescue
020915M,DRAEGER SAFETY UK LIMITED=====,2910026278,1,"5,988.00",PROTECTIVE EQUIPT - PARTS,10/09/15,"5,988.00",Technical and Service Support,Fire & Rescue
020915M,DRAEGER SAFETY UK LIMITED=====,2910026382,1,531.00,PROTECTIVE EQUIPT - PARTS,10/09/15,531.00,Technical and Service Support,Fire & Rescue
020915M,DRAEGER SAFETY UK LIMITED=====,291002674,1,452.00,PROTECTIVE EQUIPT - PARTS,10/09/15,452.00,Technical and Service Support,Fire & Rescue
020915M,DRAEGER SAFETY UK LIMITED=====,2910027477,1,380.20,PROTECTIVE EQUIPT - PARTS,10/09/15,380.20,Technical and Service Support,Fire & Rescue
280815H,REDTRONIC LTD=================,29825,1,945.01,MODIFICATIONS,10/09/15,945.01,Procurement,Fire & Rescue
040915M,BRISTOL UNIFORMS LTD==========,312624/620,1,266.38,CLOTHING,10/09/15,266.38,Procurement,Clothing
040915M,BRISTOL UNIFORMS LTD==========,312625/614,1,"3,527.79",CLOTHING,10/09/15,"3,527.79",Procurement,Clothing
040915M,BRISTOL UNIFORMS LTD==========,312626,1,"197,575.56",CLOTHING,10/09/15,"197,575.56",Procurement,Clothing
141170,LONDON PENSIONS FUND AUTHORITY,327,1,"85,949.26",LOCAL GOVT PENSION SCHEME PAYM,10/09/15,"85,949.26",Central Finance,Financial Services
070915M,MPLC (INTERNATIONAL) LIMITED,372177,1,"9,679.01",FILM & VIDEO,10/09/15,"9,679.01",Operations Non Fire Stations,Financial Services
040915M,EUROLOOS LTD,38826,1,850.00,OPERATIONAL EQUIP-PURCHASE,10/09/15,850.00,Operations Non Fire Stations,Facilities & Management S
020915M,EVOLUTION ENVIRONMENTAL LTD,3910,1,640.00,ASBESTOS,10/09/15,640.00,Technical and Service Support,"Works - Construction, R&M"
070915M,LOCAL GOVERNMENT ASSOCIATION==,40140080,1,360.00,PROFESSIONAL DEVELOPMENT,10/09/15,360.00,Operations Non Fire Stations,Financial Services
070915M,TECHNIFORM GRAPHICS LTD=======,404462,1,"1,111.95",FIXTURES & FITTINGS,10/09/15,"1,111.95",Technical And Service Support,Building Constr Materials
040915M,SPORTSAFE UK LTD==============,475922,1,824.59,GYM EQUIPMENT,10/09/15,824.59,Technical And Service Support,Sports & Playground Equip
020915H,KNIGHTON CLEANING SERVICES LTD,47720,1,375.00,GROUNDS MAINTENANCE,10/09/15,375.00,Technical And Service Support,Cleaning & Janitorial
040915M,FOCUS & VISION TECHNOLOGY LTD,47751,1,703.16,MEDICAL EXPENSES CONTRACT,10/09/15,703.16,HR Management,Healthcare
020915H,KNIGHTON CLEANING SERVICES LTD,47756,1,375.00,GROUNDS MAINTENANCE,10/09/15,375.00,Technical And Service Support,Cleaning & Janitorial
020915H,KNIGHTON CLEANING SERVICES LTD,48214,1,"1,298.40",SPECIAL CLEANS,10/09/15,"1,298.40",Technical And Service Support,Cleaning & Janitorial
800065161,*GREENHAM TRADING LTD=========,5694742,1,8.94,OPERATIONAL EQUIP-PURCHASE,10/09/15,474.04,Operations Fire Stations,Cleaning & Janitorial
800065161,*GREENHAM TRADING LTD=========,5694742,2,369.16,OPERATIONAL EQUIP-PURCHASE,10/09/15,,Operations Fire Stations,Cleaning & Janitorial
800065161,*GREENHAM TRADING LTD=========,5694742,3,67.98,HYGIENE,10/09/15,,Operations Fire Stations,Cleaning & Janitorial
800065161,*GREENHAM TRADING LTD=========,5694742,4,27.96,OPERATIONAL EQUIP-PURCHASE,10/09/15,,Operations Fire Stations,Cleaning & Janitorial
040915M,AECOM INFRASTRUCTURE &,6266723,1,"2,976.33",PROF FEES-MISCELLANEOUS,10/09/15,"2,976.33",Technical and Service Support,Consultancy
141170,THAMES WATER UTILITIES LTD====,6272027028,1,283.15,WATER & SEWERAGE RATES,10/09/15,283.15,Technical And Service Support,Utilities
020915H,CORE SURVEYSLTD===============,6274,1,240.50,ASBESTOS,10/09/15,620.50,Technical and Service Support,"Works - Construction, R&M"
020915H,CORE SURVEYSLTD===============,6274,2,190.00,ASBESTOS,10/09/15,,Technical And Service Support,"Works - Construction, R&M"
020915H,CORE SURVEYSLTD===============,6274,3,190.00,ASBESTOS,10/09/15,,Technical and Service Support,"Works - Construction, R&M"
070915M,AECOM INFRASTRUCTURE &,6285542,1,"7,292.99",PROF FEES-MISCELLANEOUS,10/09/15,"7,292.99",Technical and Service Support,Consultancy
020915M,CONTRACT CATERING CONSULTANTS=,6322,1,500.00,CONSULTANTS,10/09/15,500.00,Technical And Service Support,Catering
020915H,SWEETT  UK LTD,7054961,1,"1,390.00",STRATEGIC (NON CYCLICAL),10/09/15,"1,390.00",Technical And Service Support,"Works - Construction, R&M"
040915M,SWEETT  UK LTD,7059761,1,318.95,PROF FEES-MISCELLANEOUS,10/09/15,318.95,Technical and Service Support,"Works - Construction, R&M"
141170,THAMES WATER UTILITIES LTD====,7633637258H,1,254.03,WATER & SEWERAGE RATES,10/09/15,254.03,Technical And Service Support,Utilities
070915M,CANON (UK) LTD===============,770536313,1,390.86,OFFICE EQUIPMENT,10/09/15,390.86,Information Management,ICT
070915M,VODAFONE LIMITED==============,77229430,1,"49,076.41",CELLULAR TELEPHONES,10/09/15,"49,076.41",Information and Communication Technology,ICT
070915M,VODAFONE LIMITED==============,77229546,1,"1,283.58",CELLULAR TELEPHONES,10/09/15,"1,283.58",Information and Communication Technology,ICT
141172,MISS BO-EUN JUNG==============,9293,1,610.00,PROFESSIONAL FEES ENFORCEMENT,10/09/15,610.00,Legal & Democratic Services,Legal Services
141170,BRITISH GAS BUSINESS==========,984004345,1,579.60,GAS,10/09/15,579.60,Technical And Service Support,Utilities
141167,BRITISH GAS BUSINESS==========,9920008151,1,61.36,ELECTRICITY,10/09/15,813.99,Technical And Service Support,Utilities
141167,BRITISH GAS BUSINESS==========,9920008151,2,54.62,ELECTRICITY,10/09/15,,Technical And Service Support,Utilities
141167,BRITISH GAS BUSINESS==========,9920008151,3,61.92,ELECTRICITY,10/09/15,,Technical And Service Support,Utilities
141167,BRITISH GAS BUSINESS==========,9920008151,4,60.41,ELECTRICITY,10/09/15,,Technical And Service Support,Utilities
141167,BRITISH GAS BUSINESS==========,9920008151,5,14.28,ELECTRICITY,10/09/15,,Technical And Service Support,Utilities
141167,BRITISH GAS BUSINESS==========,9920008151,6,8.28,ELECTRICITY,10/09/15,,Technical And Service Support,Utilities
141167,BRITISH GAS BUSINESS==========,9920008151,7,11.88,ELECTRICITY,10/09/15,,Technical And Service Support,Utilities
141167,BRITISH GAS BUSINESS==========,9920008151,8,14.56,ELECTRICITY,10/09/15,,Technical And Service Support,Utilities
141167,BRITISH GAS BUSINESS==========,9920008151,9,14.93,ELECTRICITY,10/09/15,,Technical And Service Support,Utilities
141167,BRITISH GAS BUSINESS==========,9920008151,10,12.71,ELECTRICITY,10/09/15,,Technical And Service Support,Utilities
141167,BRITISH GAS BUSINESS==========,9920008151,11,17.79,ELECTRICITY,10/09/15,,Technical And Service Support,Utilities
141167,BRITISH GAS BUSINESS==========,9920008151,12,10.89,ELECTRICITY,10/09/15,,Technical And Service Support,Utilities
141167,BRITISH GAS BUSINESS==========,9920008151,13,25.82,ELECTRICITY,10/09/15,,Technical And Service Support,Utilities
141167,BRITISH GAS BUSINESS==========,9920008151,14,30.85,ELECTRICITY,10/09/15,,Technical And Service Support,Utilities
141167,BRITISH GAS BUSINESS==========,9920008151,15,73.34,ELECTRICITY,10/09/15,,Technical And Service Support,Utilities
141167,BRITISH GAS BUSINESS==========,9920008151,16,15.05,ELECTRICITY,10/09/15,,Technical And Service Support,Utilities
141167,BRITISH GAS BUSINESS==========,9920008151,17,36.69,ELECTRICITY,10/09/15,,Technical And Service Support,Utilities
141167,BRITISH GAS BUSINESS==========,9920008151,18,20.56,ELECTRICITY,10/09/15,,Technical And Service Support,Utilities
141167,BRITISH GAS BUSINESS==========,9920008151,19,17.14,ELECTRICITY,10/09/15,,Technical And Service Support,Utilities
141167,BRITISH GAS BUSINESS==========,9920008151,20,26.19,ELECTRICITY,10/09/15,,Technical And Service Support,Utilities
141167,BRITISH GAS BUSINESS==========,9920008151,21,40.11,ELECTRICITY,10/09/15,,Technical And Service Support,Utilities
141167,BRITISH GAS BUSINESS==========,9920008151,22,106.14,ELECTRICITY,10/09/15,,Technical And Service Support,Utilities
141167,BRITISH GAS BUSINESS==========,9920008151,23,18.97,ELECTRICITY,10/09/15,,Technical And Service Support,Utilities
141167,BRITISH GAS BUSINESS==========,9920008151,24,25.99,ELECTRICITY,10/09/15,,Technical And Service Support,Utilities
141167,BRITISH GAS BUSINESS==========,9920008151,25,14.00,ELECTRICITY,10/09/15,,Technical And Service Support,Utilities
141167,BRITISH GAS BUSINESS==========,9920008151,26,9.94,ELECTRICITY,10/09/15,,Technical And Service Support,Utilities
141167,BRITISH GAS BUSINESS==========,9920008151,27,9.57,ELECTRICITY,10/09/15,,Technical And Service Support,Utilities
020915M,ARCHITECTURAL DECORATORS LTD==,AD23460,1,"16,583.98",STRATEGIC (NON CYCLICAL),10/09/15,"16,583.98",Technical and Service Support,Building Constr Materials
020915H,ARCHITECTURAL DECORATORS LTD==,AD23461,1,"11,991.69",STRATEGIC (NON CYCLICAL),10/09/15,"11,991.69",Technical and Service Support,Building Constr Materials
020915M,ASIAN FIRE SERVICE ASSOCIATION,ANC2014-26,1,375.00,PROFESSIONAL DEVELOPMENT,10/09/15,375.00,Strategy & Inclusion,Financial Services
020915M,ASTEC SURVEYS LIMITED=========,ASL-15-241,1,970.00,DEVELOPMENT  EXPENSES-CONTRACT,10/09/15,970.00,Technical and Service Support,Environmental Services
040915M,E&S B DAVIS LTD,DAV/57154,1,295.00,OPERATIONAL EQUIP-PURCHASE,10/09/15,295.00,Operations Fire Stations,Environmental Services
040915M,E&S B DAVIS LTD,DAV/57470,1,295.00,OPERATIONAL EQUIP-PURCHASE,10/09/15,295.00,Operations Fire Stations,Environmental Services
020915M,MICROSOFT IRELAND OPS LTD=====,E040013UX5,1,"22,932.00",CONSULTANTS,10/09/15,"22,932.00",National Operational Guidance Project,ICT
800065332,ALLSTAR BUSINESS SOLUTIONS LTD,E2005267461,1,507.00,FUEL,10/09/15,"14,496.53",Operations Non Fire Stations,Vehicle Management
800065332,ALLSTAR BUSINESS SOLUTIONS LTD,E2005267461,2,356.18,FUEL,10/09/15,,Procurement,Vehicle Management
800065332,ALLSTAR BUSINESS SOLUTIONS LTD,E2005267461,3,347.12,FUEL,10/09/15,,Operations Fire Stations,Vehicle Management
800065332,ALLSTAR BUSINESS SOLUTIONS LTD,E2005267461,4,337.98,FUEL,10/09/15,,Operations Fire Stations,Vehicle Management
800065332,ALLSTAR BUSINESS SOLUTIONS LTD,E2005267461,5,313.86,FUEL,10/09/15,,Operations Fire Stations,Vehicle Management
800065332,ALLSTAR BUSINESS SOLUTIONS LTD,E2005267461,6,304.67,FUEL,10/09/15,,Operations Fire Stations,Vehicle Management
800065332,ALLSTAR BUSINESS SOLUTIONS LTD,E2005267461,7,290.26,FUEL,10/09/15,,Operations Fire Stations,Vehicle Management
800065332,ALLSTAR BUSINESS SOLUTIONS LTD,E2005267461,8,268.78,FUEL,10/09/15,,Operations Fire Stations,Vehicle Management
800065332,ALLSTAR BUSINESS SOLUTIONS LTD,E2005267461,9,268.56,FUEL,10/09/15,,Operations Fire Stations,Vehicle Management
800065332,ALLSTAR BUSINESS SOLUTIONS LTD,E2005267461,10,255.65,FUEL,10/09/15,,Operations Fire Stations,Vehicle Management
800065332,ALLSTAR BUSINESS SOLUTIONS LTD,E2005267461,11,245.69,FUEL,10/09/15,,Fire Safety Regulation,Vehicle Management
800065332,ALLSTAR BUSINESS SOLUTIONS LTD,E2005267461,12,241.40,FUEL,10/09/15,,Operations Fire Stations,Vehicle Management
800065332,ALLSTAR BUSINESS SOLUTIONS LTD,E2005267461,13,238.33,FUEL,10/09/15,,Operations Fire Stations,Vehicle Management
800065332,ALLSTAR BUSINESS SOLUTIONS LTD,E2005267461,14,227.44,FUEL,10/09/15,,Operations Fire Stations,Vehicle Management
800065332,ALLSTAR BUSINESS SOLUTIONS LTD,E2005267461,15,225.15,FUEL,10/09/15,,Operations Fire Stations,Vehicle Management
800065332,ALLSTAR BUSINESS SOLUTIONS LTD,E2005267461,16,218.01,FUEL,10/09/15,,Operations Fire Stations,Vehicle Management
800065332,ALLSTAR BUSINESS SOLUTIONS LTD,E2005267461,17,217.31,FUEL,10/09/15,,Operations Fire Stations,Vehicle Management
800065332,ALLSTAR BUSINESS SOLUTIONS LTD,E2005267461,18,216.10,FUEL,10/09/15,,Operations Fire Stations,Vehicle Management
800065332,ALLSTAR BUSINESS SOLUTIONS LTD,E2005267461,19,211.52,FUEL,10/09/15,,Operations Fire Stations,Vehicle Management
800065332,ALLSTAR BUSINESS SOLUTIONS LTD,E2005267461,20,209.33,FUEL,10/09/15,,Operations Fire Stations,Vehicle Management
800065332,ALLSTAR BUSINESS SOLUTIONS LTD,E2005267461,21,204.29,FUEL,10/09/15,,Operations Fire Stations,Vehicle Management
800065332,ALLSTAR BUSINESS SOLUTIONS LTD,E2005267461,22,204.19,FUEL,10/09/15,,Operations Fire Stations,Vehicle Management
800065332,ALLSTAR BUSINESS SOLUTIONS LTD,E2005267461,23,194.95,FUEL,10/09/15,,Operations Fire Stations,Vehicle Management
800065332,ALLSTAR BUSINESS SOLUTIONS LTD,E2005267461,24,193.31,FUEL,10/09/15,,Operations Fire Stations,Vehicle Management
800065332,ALLSTAR BUSINESS SOLUTIONS LTD,E2005267461,25,192.74,FUEL,10/09/15,,Operations Fire Stations,Vehicle Management
800065332,ALLSTAR BUSINESS SOLUTIONS LTD,E2005267461,26,190.53,FUEL,10/09/15,,Operations Fire Stations,Vehicle Management
800065332,ALLSTAR BUSINESS SOLUTIONS LTD,E2005267461,27,190.00,FUEL,10/09/15,,Operations Fire Stations,Vehicle Management
800065332,ALLSTAR BUSINESS SOLUTIONS LTD,E2005267461,28,186.09,FUEL,10/09/15,,Operations Fire Stations,Vehicle Management
800065332,ALLSTAR BUSINESS SOLUTIONS LTD,E2005267461,29,185.44,FUEL,10/09/15,,Operations Fire Stations,Vehicle Management
800065332,ALLSTAR BUSINESS SOLUTIONS LTD,E2005267461,30,183.09,FUEL,10/09/15,,Operations Fire Stations,Vehicle Management
800065332,ALLSTAR BUSINESS SOLUTIONS LTD,E2005267461,31,182.67,FUEL,10/09/15,,Operations Fire Stations,Vehicle Management
800065332,ALLSTAR BUSINESS SOLUTIONS LTD,E2005267461,32,181.90,FUEL,10/09/15,,Operations Fire Stations,Vehicle Management
800065332,ALLSTAR BUSINESS SOLUTIONS LTD,E2005267461,33,178.72,FUEL,10/09/15,,Operations Fire Stations,Vehicle Management
800065332,ALLSTAR BUSINESS SOLUTIONS LTD,E2005267461,34,177.93,FUEL,10/09/15,,Operations Fire Stations,Vehicle Management
800065332,ALLSTAR BUSINESS SOLUTIONS LTD,E2005267461,35,176.76,FUEL,10/09/15,,Operations Fire Stations,Vehicle Management
800065332,ALLSTAR BUSINESS SOLUTIONS LTD,E2005267461,36,172.62,FUEL,10/09/15,,Operations Fire Stations,Vehicle Management
800065332,ALLSTAR BUSINESS SOLUTIONS LTD,E2005267461,37,169.21,FUEL,10/09/15,,Operations Fire Stations,Vehicle Management
800065332,ALLSTAR BUSINESS SOLUTIONS LTD,E2005267461,38,168.94,FUEL,10/09/15,,Operations Fire Stations,Vehicle Management
800065332,ALLSTAR BUSINESS SOLUTIONS LTD,E2005267461,39,168.47,FUEL,10/09/15,,Operations Fire Stations,Vehicle Management
800065332,ALLSTAR BUSINESS SOLUTIONS LTD,E2005267461,40,162.35,FUEL,10/09/15,,Operations Fire Stations,Vehicle Management
800065332,ALLSTAR BUSINESS SOLUTIONS LTD,E2005267461,41,157.72,FUEL,10/09/15,,Operations Fire Stations,Vehicle Management
800065332,ALLSTAR BUSINESS SOLUTIONS LTD,E2005267461,42,153.70,FUEL,10/09/15,,Operations Fire Stations,Vehicle Management
800065332,ALLSTAR BUSINESS SOLUTIONS LTD,E2005267461,43,153.63,FUEL,10/09/15,,Operations Fire Stations,Vehicle Management
800065332,ALLSTAR BUSINESS SOLUTIONS LTD,E2005267461,44,141.65,FUEL,10/09/15,,Operations Fire Stations,Vehicle Management
800065332,ALLSTAR BUSINESS SOLUTIONS LTD,E2005267461,45,140.59,FUEL,10/09/15,,Operations Fire Stations,Vehicle Management
800065332,ALLSTAR BUSINESS SOLUTIONS LTD,E2005267461,46,132.09,FUEL,10/09/15,,Operations Fire Stations,Vehicle Management
800065332,ALLSTAR BUSINESS SOLUTIONS LTD,E2005267461,47,129.47,FUEL,10/09/15,,Operations Fire Stations,Vehicle Management
800065332,ALLSTAR BUSINESS SOLUTIONS LTD,E2005267461,48,128.22,FUEL,10/09/15,,Operations Fire Stations,Vehicle Management
800065332,ALLSTAR BUSINESS SOLUTIONS LTD,E2005267461,49,127.15,FUEL,10/09/15,,Operations Fire Stations,Vehicle Management
800065332,ALLSTAR BUSINESS SOLUTIONS LTD,E2005267461,50,126.44,FUEL,10/09/15,,Operations Fire Stations,Vehicle Management
800065332,ALLSTAR BUSINESS SOLUTIONS LTD,E2005267461,51,125.32,FUEL,10/09/15,,Operations Fire Stations,Vehicle Management
800065332,ALLSTAR BUSINESS SOLUTIONS LTD,E2005267461,52,125.04,FUEL,10/09/15,,Operations Fire Stations,Vehicle Management
800065332,ALLSTAR BUSINESS SOLUTIONS LTD,E2005267461,53,122.35,FUEL,10/09/15,,Operations Fire Stations,Vehicle Management
800065332,ALLSTAR BUSINESS SOLUTIONS LTD,E2005267461,54,121.91,FUEL,10/09/15,,Operations Fire Stations,Vehicle Management
800065332,ALLSTAR BUSINESS SOLUTIONS LTD,E2005267461,55,121.33,FUEL,10/09/15,,Operations Fire Stations,Vehicle Management
800065332,ALLSTAR BUSINESS SOLUTIONS LTD,E2005267461,56,120.13,FUEL,10/09/15,,Operations Fire Stations,Vehicle Management
800065332,ALLSTAR BUSINESS SOLUTIONS LTD,E2005267461,57,119.29,FUEL,10/09/15,,Operations Fire Stations,Vehicle Management
800065332,ALLSTAR BUSINESS SOLUTIONS LTD,E2005267461,58,118.06,FUEL,10/09/15,,Command Units,Vehicle Management
800065332,ALLSTAR BUSINESS SOLUTIONS LTD,E2005267461,59,115.35,FUEL,10/09/15,,Operations Fire Stations,Vehicle Management
800065332,ALLSTAR BUSINESS SOLUTIONS LTD,E2005267461,60,107.59,FUEL,10/09/15,,Operations Fire Stations,Vehicle Management
800065332,ALLSTAR BUSINESS SOLUTIONS LTD,E2005267461,61,107.14,FUEL,10/09/15,,Operations Fire Stations,Vehicle Management
800065332,ALLSTAR BUSINESS SOLUTIONS LTD,E2005267461,62,106.49,FUEL,10/09/15,,Operations Fire Stations,Vehicle Management
800065332,ALLSTAR BUSINESS SOLUTIONS LTD,E2005267461,63,103.46,FUEL,10/09/15,,Command Units,Vehicle Management
800065332,ALLSTAR BUSINESS SOLUTIONS LTD,E2005267461,64,96.74,FUEL,10/09/15,,Operations Fire Stations,Vehicle Management
800065332,ALLSTAR BUSINESS SOLUTIONS LTD,E2005267461,65,95.98,FUEL,10/09/15,,Operations Fire Stations,Vehicle Management
800065332,ALLSTAR BUSINESS SOLUTIONS LTD,E2005267461,66,94.46,FUEL,10/09/15,,Operations Fire Stations,Vehicle Management
800065332,ALLSTAR BUSINESS SOLUTIONS LTD,E2005267461,67,92.94,FUEL,10/09/15,,Operations Fire Stations,Vehicle Management
800065332,ALLSTAR BUSINESS SOLUTIONS LTD,E2005267461,68,92.46,FUEL,10/09/15,,Operations Fire Stations,Vehicle Management
800065332,ALLSTAR BUSINESS SOLUTIONS LTD,E2005267461,69,92.05,FUEL,10/09/15,,Operations Fire Stations,Vehicle Management
800065332,ALLSTAR BUSINESS SOLUTIONS LTD,E2005267461,70,90.07,FUEL,10/09/15,,Operations Fire Stations,Vehicle Management
800065332,ALLSTAR BUSINESS SOLUTIONS LTD,E2005267461,71,89.36,FUEL,10/09/15,,Operations Fire Stations,Vehicle Management
800065332,ALLSTAR BUSINESS SOLUTIONS LTD,E2005267461,72,88.81,FUEL,10/09/15,,Operations Fire Stations,Vehicle Management
800065332,ALLSTAR BUSINESS SOLUTIONS LTD,E2005267461,73,86.61,FUEL,10/09/15,,Operations Fire Stations,Vehicle Management
800065332,ALLSTAR BUSINESS SOLUTIONS LTD,E2005267461,74,83.15,FUEL,10/09/15,,Command Units,Vehicle Management
800065332,ALLSTAR BUSINESS SOLUTIONS LTD,E2005267461,75,80.58,FUEL,10/09/15,,Operations Fire Stations,Vehicle Management
800065332,ALLSTAR BUSINESS SOLUTIONS LTD,E2005267461,76,72.49,FUEL,10/09/15,,Operations Fire Stations,Vehicle Management
800065332,ALLSTAR BUSINESS SOLUTIONS LTD,E2005267461,77,72.16,FUEL,10/09/15,,Information and Communication Technology,Vehicle Management
800065332,ALLSTAR BUSINESS SOLUTIONS LTD,E2005267461,78,69.93,FUEL,10/09/15,,Operations Fire Stations,Vehicle Management
800065332,ALLSTAR BUSINESS SOLUTIONS LTD,E2005267461,79,66.43,FUEL,10/09/15,,Operations Fire Stations,Vehicle Management
800065332,ALLSTAR BUSINESS SOLUTIONS LTD,E2005267461,80,64.88,FUEL,10/09/15,,Operations Fire Stations,Vehicle Management
800065332,ALLSTAR BUSINESS SOLUTIONS LTD,E2005267461,81,63.26,FUEL,10/09/15,,Command Units,Vehicle Management
800065332,ALLSTAR BUSINESS SOLUTIONS LTD,E2005267461,82,63.10,FUEL,10/09/15,,Operations Non Fire Stations,Vehicle Management
800065332,ALLSTAR BUSINESS SOLUTIONS LTD,E2005267461,83,63.04,FUEL,10/09/15,,Command Units,Vehicle Management
800065332,ALLSTAR BUSINESS SOLUTIONS LTD,E2005267461,84,61.56,FUEL,10/09/15,,Operations Fire Stations,Vehicle Management
800065332,ALLSTAR BUSINESS SOLUTIONS LTD,E2005267461,85,60.91,FUEL,10/09/15,,Operational Resilience,Vehicle Management
800065332,ALLSTAR BUSINESS SOLUTIONS LTD,E2005267461,86,60.64,FUEL,10/09/15,,Command Units,Vehicle Management
800065332,ALLSTAR BUSINESS SOLUTIONS LTD,E2005267461,87,59.79,FUEL,10/09/15,,Operations Fire Stations,Vehicle Management
800065332,ALLSTAR BUSINESS SOLUTIONS LTD,E2005267461,88,59.13,FUEL,10/09/15,,Operations Non Fire Stations,Vehicle Management
800065332,ALLSTAR BUSINESS SOLUTIONS LTD,E2005267461,89,54.17,FUEL,10/09/15,,Operational Resilience,Vehicle Management
800065332,ALLSTAR BUSINESS SOLUTIONS LTD,E2005267461,90,51.54,FUEL,10/09/15,,Operations Fire Stations,Vehicle Management
800065332,ALLSTAR BUSINESS SOLUTIONS LTD,E2005267461,91,48.36,FUEL,10/09/15,,Command Units,Vehicle Management
800065332,ALLSTAR BUSINESS SOLUTIONS LTD,E2005267461,92,48.33,FUEL,10/09/15,,Command Units,Vehicle Management
800065332,ALLSTAR BUSINESS SOLUTIONS LTD,E2005267461,93,42.25,FUEL,10/09/15,,Technical And Service Support,Vehicle Management
800065332,ALLSTAR BUSINESS SOLUTIONS LTD,E2005267461,94,41.17,FUEL,10/09/15,,LIFE - LFB Funded,Vehicle Management
800065332,ALLSTAR BUSINESS SOLUTIONS LTD,E2005267461,95,41.00,FUEL,10/09/15,,Technical And Service Support,Vehicle Management
800065332,ALLSTAR BUSINESS SOLUTIONS LTD,E2005267461,96,41.00,FUEL,10/09/15,,Targeted Development & Graduate Recruitment,Vehicle Management
800065332,ALLSTAR BUSINESS SOLUTIONS LTD,E2005267461,97,27.99,FUEL,10/09/15,,Operations Fire Stations,Vehicle Management
800065332,ALLSTAR BUSINESS SOLUTIONS LTD,E2005267461,98,26.14,FUEL,10/09/15,,CBRN RRT,Vehicle Management
800065332,ALLSTAR BUSINESS SOLUTIONS LTD,E2005267461,99,22.87,FUEL,10/09/15,,Operations Fire Stations,Vehicle Management
800065332,ALLSTAR BUSINESS SOLUTIONS LTD,E2005267461,100,21.73,FUEL,10/09/15,,Operations Fire Stations,Vehicle Management
800065332,ALLSTAR BUSINESS SOLUTIONS LTD,E2005267461,101,15.65,FUEL,10/09/15,,Operations Fire Stations,Vehicle Management
800065332,ALLSTAR BUSINESS SOLUTIONS LTD,E2005267461,102,12.65,FUEL,10/09/15,,Operations Fire Stations,Vehicle Management
800065332,ALLSTAR BUSINESS SOLUTIONS LTD,E2005267461,103,11.01,FUEL,10/09/15,,Operations Fire Stations,Vehicle Management
800065332,ALLSTAR BUSINESS SOLUTIONS LTD,E2005267461,104,1.48,FUEL,10/09/15,,Operations Fire Stations,Vehicle Management
020915M,QUANTECH ENVIRONMENTAL LIMITED,E20554,1,"2,480.00",STRATEGIC (NON CYCLICAL),10/09/15,"2,480.00",Technical And Service Support,Building Constr Materials
070915M,KIER BUILDING SERV ENGINEERS==,F00055344,1,"7,296.41",STRATEGIC (NON CYCLICAL),10/09/15,"7,296.41",Technical and Service Support,"Works - Construction, R&M"
270815H,HALL FUELS,I07803755,1,"1,312.20",FUEL,10/09/15,"1,312.20",Operations Fire Stations,Vehicle Management
040915M,BABCOCK CIVIL INFRASTRUCTURE,II5001355,1,"8,065.17",STRATEGIC (CYCLICAL),10/09/15,"8,065.17",Technical And Service Support,"Works - Construction, R&M"
020915H,COFELY WORKPLACE LIMITED,M137512,1,"5,473.33",STRATEGIC (NON CYCLICAL),10/09/15,"5,473.33",Technical and Service Support,"Works - Construction, R&M"
020915H,COFELY WORKPLACE LIMITED,M137513,1,"6,187.50",STRATEGIC (NON CYCLICAL),10/09/15,"6,187.50",Technical and Service Support,"Works - Construction, R&M"
070915M,SAFETYNET SOLUTIONS LIMITED===,ORD-30536-X5R1D1,1,"1,413.00",PREMISES SECURITY,10/09/15,"1,413.00",Technical And Service Support,Facilities & Management S
070915M,CHANGING YOUNG MINDS,PH/033,1,150.00,GENERAL,10/09/15,300.00,LIFE - LFB Funded,Human Resources
070915M,CHANGING YOUNG MINDS,PH/033,2,150.00,GENERAL,10/09/15,,LIFE - LFB Funded,Human Resources
040915M,WORDWAVE INTERNATIONAL LTD====,SINV/00085596,1,346.48,CONSULTANTS,10/09/15,346.48,Fire Safety Regulation,Legal Services
020915M,RELIANCE HIGH-TECH,SLINV00024989,1,355.15,STRATEGIC (CYCLICAL),10/09/15,355.15,Technical And Service Support,Facilities & Management S
020915M,RELIANCE HIGH-TECH,SLINV00025277,1,355.15,STRATEGIC (CYCLICAL),10/09/15,355.15,Technical And Service Support,Facilities & Management S
141169,MAYORS OFF FOR POLICING&CRIME,UK DVI PN003,1,"59,539.00",PAYMENT TO EU PARTNERS,10/09/15,"59,539.00",Exercise Unified Response,Human Resources
020915M,*XMA LTD,Y604069,1,"6,180.00",CELLULAR TELEPHONES,10/09/15,"6,180.00",Information and Communication Technology,ICT
800064800,*XMA LTD,Y675198,1,438.18,STATIONERY CONSUMABLES,10/09/15,438.18,Technical And Service Support,ICT
800065127,*XMA LTD,Y777366,1,55.28,STATIONERY CONSUMABLES,10/09/15,326.17,Operations Non Fire Stations,ICT
800065127,*XMA LTD,Y777366,2,54.55,STATIONERY CONSUMABLES,10/09/15,,Operations Non Fire Stations,ICT
800065127,*XMA LTD,Y777366,3,55.28,STATIONERY CONSUMABLES,10/09/15,,Operations Non Fire Stations,ICT
800065127,*XMA LTD,Y777366,4,54.55,STATIONERY CONSUMABLES,10/09/15,,Operations Non Fire Stations,ICT
800065127,*XMA LTD,Y777366,5,51.23,STATIONERY CONSUMABLES,10/09/15,,Operations Non Fire Stations,ICT
800065127,*XMA LTD,Y777366,6,55.28,STATIONERY CONSUMABLES,10/09/15,,Operations Non Fire Stations,ICT
280815H,JAYMART=======================,0001092077,1,271.18,FIXTURES & FITTINGS,14/09/15,271.18,Technical And Service Support,Building Constr Materials
160715G,OPERATIONAL RESEARCH IN HEALTH,111Y/LFBD5/2,1,"7,440.00",PURCHASES-COMPUTER/EQUIPMENT,14/09/15,"7,440.00",Information and Communication Technology,Consultancy
080915M,APPLUS LLT,15078,1,"3,750.00",GENERAL,14/09/15,"3,750.00",Procurement,Vehicle Management
080915M,PA ASSOCIATES (UK) LTD========,15083,1,"1,024.25",DAY TO DAY MINOR IMPS,14/09/15,"1,024.25",Property PFI,Environmental Services
080915M,PA ASSOCIATES (UK) LTD========,15084,1,"1,024.25",DAY TO DAY MINOR IMPS,14/09/15,"1,024.25",Property PFI,Environmental Services
080915M,PA ASSOCIATES (UK) LTD========,15085,1,"1,024.25",DAY TO DAY MINOR IMPS,14/09/15,"1,024.25",Property PFI,Environmental Services
080915M,PA ASSOCIATES (UK) LTD========,15086,1,"1,024.25",DAY TO DAY MINOR IMPS,14/09/15,"1,024.25",Property PFI,Environmental Services
080915M,PA ASSOCIATES (UK) LTD========,15087,1,"1,477.25",STRATEGIC (NON CYCLICAL),14/09/15,"1,477.25",Technical and Service Support,Environmental Services
080915M,RESPIREX======================,152214,1,"4,500.00",LEGAL PROFESSIONAL FEES-GENERL,14/09/15,"4,500.00",Gas Tight Suits,Clothing
080915M,RESPIREX======================,152257,1,"4,500.00",LEGAL PROFESSIONAL FEES-GENERL,14/09/15,"4,500.00",Gas Tight Suits,Clothing
040915M,THE DOCUMENT WAREHOUSE UK LTD,1731,1,"2,899.70",GENERAL,14/09/15,"2,899.70",Strategy & Inclusion,Facilities & Management S
270815H,MAYPLACE PROPERTY SERVICES LIM,2,1,415.00,STRATEGIC (NON CYCLICAL),14/09/15,415.00,Technical and Service Support,"Works - Construction, R&M"
141173,BRITISH GAS BUSINESS==========,2209701150,1,742.44,ELECTRICITY,14/09/15,"21,950.42",Technical And Service Support,Utilities
141173,BRITISH GAS BUSINESS==========,2209701150,2,866.91,ELECTRICITY,14/09/15,,Technical And Service Support,Utilities
141173,BRITISH GAS BUSINESS==========,2209701150,3,816.12,ELECTRICITY,14/09/15,,Technical And Service Support,Utilities
141173,BRITISH GAS BUSINESS==========,2209701150,4,206.91,ELECTRICITY,14/09/15,,Technical And Service Support,Utilities
141173,BRITISH GAS BUSINESS==========,2209701150,5,145.22,ELECTRICITY,14/09/15,,Technical And Service Support,Utilities
141173,BRITISH GAS BUSINESS==========,2209701150,6,836.84,ELECTRICITY,14/09/15,,Technical And Service Support,Utilities
141173,BRITISH GAS BUSINESS==========,2209701150,7,619.67,ELECTRICITY,14/09/15,,Technical And Service Support,Utilities
141173,BRITISH GAS BUSINESS==========,2209701150,8,283.23,ELECTRICITY,14/09/15,,Technical And Service Support,Utilities
141173,BRITISH GAS BUSINESS==========,2209701150,9,531.89,ELECTRICITY,14/09/15,,Technical And Service Support,Utilities
141173,BRITISH GAS BUSINESS==========,2209701150,10,670.73,ELECTRICITY,14/09/15,,Technical And Service Support,Utilities
141173,BRITISH GAS BUSINESS==========,2209701150,11,451.41,ELECTRICITY,14/09/15,,Technical And Service Support,Utilities
141173,BRITISH GAS BUSINESS==========,2209701150,12,166.11,ELECTRICITY,14/09/15,,Technical And Service Support,Utilities
141173,BRITISH GAS BUSINESS==========,2209701150,13,425.23,ELECTRICITY,14/09/15,,Technical And Service Support,Utilities
141173,BRITISH GAS BUSINESS==========,2209701150,14,457.81,ELECTRICITY,14/09/15,,Technical And Service Support,Utilities
141173,BRITISH GAS BUSINESS==========,2209701150,15,339.74,ELECTRICITY,14/09/15,,Technical And Service Support,Utilities
141173,BRITISH GAS BUSINESS==========,2209701150,16,356.92,ELECTRICITY,14/09/15,,Technical And Service Support,Utilities
141173,BRITISH GAS BUSINESS==========,2209701150,17,398.12,ELECTRICITY,14/09/15,,Technical And Service Support,Utilities
141173,BRITISH GAS BUSINESS==========,2209701150,18,515.43,ELECTRICITY,14/09/15,,Technical And Service Support,Utilities
141173,BRITISH GAS BUSINESS==========,2209701150,19,643.21,ELECTRICITY,14/09/15,,Technical And Service Support,Utilities
141173,BRITISH GAS BUSINESS==========,2209701150,20,195.92,ELECTRICITY,14/09/15,,Technical And Service Support,Utilities
141173,BRITISH GAS BUSINESS==========,2209701150,21,563.44,ELECTRICITY,14/09/15,,Technical And Service Support,Utilities
141173,BRITISH GAS BUSINESS==========,2209701150,22,"1,105.69",ELECTRICITY,14/09/15,,Technical And Service Support,Utilities
141173,BRITISH GAS BUSINESS==========,2209701150,23,"1,071.38",ELECTRICITY,14/09/15,,Technical And Service Support,Utilities
141173,BRITISH GAS BUSINESS==========,2209701150,24,444.15,ELECTRICITY,14/09/15,,Technical And Service Support,Utilities
141173,BRITISH GAS BUSINESS==========,2209701150,25,609.87,ELECTRICITY,14/09/15,,Technical And Service Support,Utilities
141173,BRITISH GAS BUSINESS==========,2209701150,26,906.18,ELECTRICITY,14/09/15,,Technical And Service Support,Utilities
141173,BRITISH GAS BUSINESS==========,2209701150,27,563.90,ELECTRICITY,14/09/15,,Technical And Service Support,Utilities
141173,BRITISH GAS BUSINESS==========,2209701150,28,767.41,ELECTRICITY,14/09/15,,Technical And Service Support,Utilities
141173,BRITISH GAS BUSINESS==========,2209701150,29,170.45,ELECTRICITY,14/09/15,,Technical And Service Support,Utilities
141173,BRITISH GAS BUSINESS==========,2209701150,30,454.03,ELECTRICITY,14/09/15,,Technical And Service Support,Utilities
141173,BRITISH GAS BUSINESS==========,2209701150,31,"2,538.05",ELECTRICITY,14/09/15,,Technical And Service Support,Utilities
141173,BRITISH GAS BUSINESS==========,2209701150,32,751.65,ELECTRICITY,14/09/15,,Technical And Service Support,Utilities
141173,BRITISH GAS BUSINESS==========,2209701150,33,488.24,ELECTRICITY,14/09/15,,Technical And Service Support,Utilities
141173,BRITISH GAS BUSINESS==========,2209701150,34,485.12,ELECTRICITY,14/09/15,,Technical And Service Support,Utilities
141173,BRITISH GAS BUSINESS==========,2209701150,35,852.64,ELECTRICITY,14/09/15,,Technical And Service Support,Utilities
141173,BRITISH GAS BUSINESS==========,2209701150,36,329.63,ELECTRICITY,14/09/15,,Technical And Service Support,Utilities
141173,BRITISH GAS BUSINESS==========,2209701150,37,178.73,ELECTRICITY,14/09/15,,Technical And Service Support,Utilities
141174,BRITISH GAS BUSINESS==========,2209701152,1,523.45,ELECTRICITY,14/09/15,"38,643.60",Technical And Service Support,Utilities
141174,BRITISH GAS BUSINESS==========,2209701152,2,323.74,ELECTRICITY,14/09/15,,Technical And Service Support,Utilities
141174,BRITISH GAS BUSINESS==========,2209701152,3,712.69,ELECTRICITY,14/09/15,,Technical And Service Support,Utilities
141174,BRITISH GAS BUSINESS==========,2209701152,4,238.56,ELECTRICITY,14/09/15,,Technical And Service Support,Utilities
141174,BRITISH GAS BUSINESS==========,2209701152,5,324.27,ELECTRICITY,14/09/15,,Technical And Service Support,Utilities
141174,BRITISH GAS BUSINESS==========,2209701152,6,371.64,ELECTRICITY,14/09/15,,Technical And Service Support,Utilities
141174,BRITISH GAS BUSINESS==========,2209701152,7,"1,356.03",ELECTRICITY,14/09/15,,Technical And Service Support,Utilities
141174,BRITISH GAS BUSINESS==========,2209701152,8,893.69,ELECTRICITY,14/09/15,,Technical And Service Support,Utilities
141174,BRITISH GAS BUSINESS==========,2209701152,9,294.86,ELECTRICITY,14/09/15,,Technical And Service Support,Utilities
141174,BRITISH GAS BUSINESS==========,2209701152,10,"1,284.73",ELECTRICITY,14/09/15,,Technical And Service Support,Utilities
141174,BRITISH GAS BUSINESS==========,2209701152,11,899.47,ELECTRICITY,14/09/15,,Technical And Service Support,Utilities
141174,BRITISH GAS BUSINESS==========,2209701152,12,516.45,ELECTRICITY,14/09/15,,Technical And Service Support,Utilities
141174,BRITISH GAS BUSINESS==========,2209701152,13,"1,075.70",ELECTRICITY,14/09/15,,Technical And Service Support,Utilities
141174,BRITISH GAS BUSINESS==========,2209701152,14,618.69,ELECTRICITY,14/09/15,,Technical And Service Support,Utilities
141174,BRITISH GAS BUSINESS==========,2209701152,15,571.53,ELECTRICITY,14/09/15,,Technical And Service Support,Utilities
141174,BRITISH GAS BUSINESS==========,2209701152,16,"1,549.08",ELECTRICITY,14/09/15,,Technical And Service Support,Utilities
141174,BRITISH GAS BUSINESS==========,2209701152,17,728.24,ELECTRICITY,14/09/15,,Technical And Service Support,Utilities
141174,BRITISH GAS BUSINESS==========,2209701152,18,639.50,ELECTRICITY,14/09/15,,Technical And Service Support,Utilities
141174,BRITISH GAS BUSINESS==========,2209701152,19,832.88,ELECTRICITY,14/09/15,,Technical And Service Support,Utilities
141174,BRITISH GAS BUSINESS==========,2209701152,20,508.36,ELECTRICITY,14/09/15,,Technical And Service Support,Utilities
141174,BRITISH GAS BUSINESS==========,2209701152,21,737.41,ELECTRICITY,14/09/15,,Technical And Service Support,Utilities
141174,BRITISH GAS BUSINESS==========,2209701152,22,429.43,ELECTRICITY,14/09/15,,Technical And Service Support,Utilities
141174,BRITISH GAS BUSINESS==========,2209701152,23,767.37,ELECTRICITY,14/09/15,,Technical And Service Support,Utilities
141174,BRITISH GAS BUSINESS==========,2209701152,24,284.80,ELECTRICITY,14/09/15,,Technical And Service Support,Utilities
141174,BRITISH GAS BUSINESS==========,2209701152,25,"4,102.99",ELECTRICITY,14/09/15,,Technical And Service Support,Utilities
141174,BRITISH GAS BUSINESS==========,2209701152,26,432.47,ELECTRICITY,14/09/15,,Technical And Service Support,Utilities
141174,BRITISH GAS BUSINESS==========,2209701152,27,651.78,ELECTRICITY,14/09/15,,Technical And Service Support,Utilities
141174,BRITISH GAS BUSINESS==========,2209701152,28,526.56,ELECTRICITY,14/09/15,,Technical And Service Support,Utilities
141174,BRITISH GAS BUSINESS==========,2209701152,29,"2,627.88",ELECTRICITY,14/09/15,,Technical And Service Support,Utilities
141174,BRITISH GAS BUSINESS==========,2209701152,30,"2,378.99",ELECTRICITY,14/09/15,,Technical And Service Support,Utilities
141174,BRITISH GAS BUSINESS==========,2209701152,31,"7,622.82",ELECTRICITY,14/09/15,,Technical And Service Support,Utilities
141174,BRITISH GAS BUSINESS==========,2209701152,32,400.89,ELECTRICITY,14/09/15,,Technical And Service Support,Utilities
141174,BRITISH GAS BUSINESS==========,2209701152,33,"1,488.22",ELECTRICITY,14/09/15,,Technical And Service Support,Utilities
141174,BRITISH GAS BUSINESS==========,2209701152,34,665.78,ELECTRICITY,14/09/15,,Technical And Service Support,Utilities
141174,BRITISH GAS BUSINESS==========,2209701152,35,611.49,ELECTRICITY,14/09/15,,Technical And Service Support,Utilities
141174,BRITISH GAS BUSINESS==========,2209701152,36,651.16,ELECTRICITY,14/09/15,,Technical And Service Support,Utilities
080915M,GRADIENT CONSULTANTS LLP======,2397,1,245.00,DEVELOPMENT  EXPENSES-CONTRACT,14/09/15,"5,695.00",Technical and Service Support,"Works - Construction, R&M"
080915M,GRADIENT CONSULTANTS LLP======,2397,2,245.00,DEVELOPMENT  EXPENSES-CONTRACT,14/09/15,,Technical and Service Support,"Works - Construction, R&M"
080915M,GRADIENT CONSULTANTS LLP======,2397,3,290.00,DEVELOPMENT  EXPENSES-CONTRACT,14/09/15,,Technical and Service Support,"Works - Construction, R&M"
080915M,GRADIENT CONSULTANTS LLP======,2397,4,290.00,DEVELOPMENT  EXPENSES-CONTRACT,14/09/15,,Technical and Service Support,"Works - Construction, R&M"
080915M,GRADIENT CONSULTANTS LLP======,2397,5,290.00,DEVELOPMENT  EXPENSES-CONTRACT,14/09/15,,Technical and Service Support,"Works - Construction, R&M"
080915M,GRADIENT CONSULTANTS LLP======,2397,6,245.00,DEVELOPMENT  EXPENSES-CONTRACT,14/09/15,,Technical and Service Support,"Works - Construction, R&M"
080915M,GRADIENT CONSULTANTS LLP======,2397,7,290.00,DEVELOPMENT  EXPENSES-CONTRACT,14/09/15,,Technical and Service Support,"Works - Construction, R&M"
080915M,GRADIENT CONSULTANTS LLP======,2397,8,290.00,DEVELOPMENT  EXPENSES-CONTRACT,14/09/15,,Technical and Service Support,"Works - Construction, R&M"
080915M,GRADIENT CONSULTANTS LLP======,2397,9,290.00,DEVELOPMENT  EXPENSES-CONTRACT,14/09/15,,Technical and Service Support,"Works - Construction, R&M"
080915M,GRADIENT CONSULTANTS LLP======,2397,10,290.00,DEVELOPMENT  EXPENSES-CONTRACT,14/09/15,,Technical and Service Support,"Works - Construction, R&M"
080915M,GRADIENT CONSULTANTS LLP======,2397,11,290.00,DEVELOPMENT  EXPENSES-CONTRACT,14/09/15,,Technical and Service Support,"Works - Construction, R&M"
080915M,GRADIENT CONSULTANTS LLP======,2397,12,290.00,DEVELOPMENT  EXPENSES-CONTRACT,14/09/15,,Technical and Service Support,"Works - Construction, R&M"
080915M,GRADIENT CONSULTANTS LLP======,2397,13,290.00,DEVELOPMENT  EXPENSES-CONTRACT,14/09/15,,Technical and Service Support,"Works - Construction, R&M"
080915M,GRADIENT CONSULTANTS LLP======,2397,14,600.00,DEVELOPMENT  EXPENSES-CONTRACT,14/09/15,,Technical and Service Support,"Works - Construction, R&M"
080915M,GRADIENT CONSULTANTS LLP======,2397,15,290.00,DEVELOPMENT  EXPENSES-CONTRACT,14/09/15,,Technical and Service Support,"Works - Construction, R&M"
080915M,GRADIENT CONSULTANTS LLP======,2397,16,290.00,DEVELOPMENT  EXPENSES-CONTRACT,14/09/15,,Technical and Service Support,"Works - Construction, R&M"
080915M,GRADIENT CONSULTANTS LLP======,2397,17,290.00,DEVELOPMENT  EXPENSES-CONTRACT,14/09/15,,Technical and Service Support,"Works - Construction, R&M"
080915M,GRADIENT CONSULTANTS LLP======,2397,18,300.00,DEVELOPMENT  EXPENSES-CONTRACT,14/09/15,,Technical and Service Support,"Works - Construction, R&M"
080915M,GRADIENT CONSULTANTS LLP======,2397,19,290.00,DEVELOPMENT  EXPENSES-CONTRACT,14/09/15,,Technical and Service Support,"Works - Construction, R&M"
080915M,GRADIENT CONSULTANTS LLP======,2398,1,245.00,ASBESTOS,14/09/15,"7,703.75",Technical and Service Support,"Works - Construction, R&M"
080915M,GRADIENT CONSULTANTS LLP======,2398,2,97.50,ASBESTOS,14/09/15,,Technical and Service Support,"Works - Construction, R&M"
080915M,GRADIENT CONSULTANTS LLP======,2398,3,735.00,ASBESTOS,14/09/15,,Technical and Service Support,"Works - Construction, R&M"
080915M,GRADIENT CONSULTANTS LLP======,2398,4,215.00,ASBESTOS,14/09/15,,Technical and Service Support,"Works - Construction, R&M"
080915M,GRADIENT CONSULTANTS LLP======,2398,5,103.75,ASBESTOS,14/09/15,,Technical and Service Support,"Works - Construction, R&M"
080915M,GRADIENT CONSULTANTS LLP======,2398,6,290.00,ASBESTOS,14/09/15,,Technical and Service Support,"Works - Construction, R&M"
080915M,GRADIENT CONSULTANTS LLP======,2398,7,48.75,ASBESTOS,14/09/15,,Technical and Service Support,"Works - Construction, R&M"
080915M,GRADIENT CONSULTANTS LLP======,2398,8,55.00,ASBESTOS,14/09/15,,Technical and Service Support,"Works - Construction, R&M"
080915M,GRADIENT CONSULTANTS LLP======,2398,9,62.50,ASBESTOS,14/09/15,,Technical and Service Support,"Works - Construction, R&M"
080915M,GRADIENT CONSULTANTS LLP======,2398,10,290.00,ASBESTOS,14/09/15,,Technical and Service Support,"Works - Construction, R&M"
080915M,GRADIENT CONSULTANTS LLP======,2398,11,290.00,ASBESTOS,14/09/15,,Technical and Service Support,"Works - Construction, R&M"
080915M,GRADIENT CONSULTANTS LLP======,2398,12,97.50,ASBESTOS,14/09/15,,Technical and Service Support,"Works - Construction, R&M"
080915M,GRADIENT CONSULTANTS LLP======,2398,13,290.00,ASBESTOS,14/09/15,,Technical and Service Support,"Works - Construction, R&M"
080915M,GRADIENT CONSULTANTS LLP======,2398,14,62.50,ASBESTOS,14/09/15,,Technical and Service Support,"Works - Construction, R&M"
080915M,GRADIENT CONSULTANTS LLP======,2398,15,190.00,ASBESTOS,14/09/15,,Technical and Service Support,"Works - Construction, R&M"
080915M,GRADIENT CONSULTANTS LLP======,2398,16,245.00,ASBESTOS,14/09/15,,Technical and Service Support,"Works - Construction, R&M"
080915M,GRADIENT CONSULTANTS LLP======,2398,17,48.75,ASBESTOS,14/09/15,,Technical and Service Support,"Works - Construction, R&M"
080915M,GRADIENT CONSULTANTS LLP======,2398,18,320.00,ASBESTOS,14/09/15,,Technical and Service Support,"Works - Construction, R&M"
080915M,GRADIENT CONSULTANTS LLP======,2398,19,97.50,ASBESTOS,14/09/15,,Technical and Service Support,"Works - Construction, R&M"
080915M,GRADIENT CONSULTANTS LLP======,2398,20,342.50,ASBESTOS,14/09/15,,Technical and Service Support,"Works - Construction, R&M"
080915M,GRADIENT CONSULTANTS LLP======,2398,21,485.00,ASBESTOS,14/09/15,,Technical and Service Support,"Works - Construction, R&M"
080915M,GRADIENT CONSULTANTS LLP======,2398,22,320.00,ASBESTOS,14/09/15,,Technical and Service Support,"Works - Construction, R&M"
080915M,GRADIENT CONSULTANTS LLP======,2398,23,48.75,ASBESTOS,14/09/15,,Technical and Service Support,"Works - Construction, R&M"
080915M,GRADIENT CONSULTANTS LLP======,2398,24,290.00,ASBESTOS,14/09/15,,Technical and Service Support,"Works - Construction, R&M"
080915M,GRADIENT CONSULTANTS LLP======,2398,25,48.75,ASBESTOS,14/09/15,,Technical and Service Support,"Works - Construction, R&M"
080915M,GRADIENT CONSULTANTS LLP======,2398,26,400.00,ASBESTOS,14/09/15,,Technical and Service Support,"Works - Construction, R&M"
080915M,GRADIENT CONSULTANTS LLP======,2398,27,55.00,ASBESTOS,14/09/15,,Technical and Service Support,"Works - Construction, R&M"
080915M,GRADIENT CONSULTANTS LLP======,2398,28,580.00,ASBESTOS,14/09/15,,Technical and Service Support,"Works - Construction, R&M"
080915M,GRADIENT CONSULTANTS LLP======,2398,29,290.00,ASBESTOS,14/09/15,,Technical and Service Support,"Works - Construction, R&M"
080915M,GRADIENT CONSULTANTS LLP======,2398,30,195.00,ASBESTOS,14/09/15,,Technical and Service Support,"Works - Construction, R&M"
080915M,GRADIENT CONSULTANTS LLP======,2398,31,545.00,ASBESTOS,14/09/15,,Technical and Service Support,"Works - Construction, R&M"
080915M,GRADIENT CONSULTANTS LLP======,2398,32,97.50,ASBESTOS,14/09/15,,Technical and Service Support,"Works - Construction, R&M"
080915M,GRADIENT CONSULTANTS LLP======,2398,33,62.50,ASBESTOS,14/09/15,,Technical and Service Support,"Works - Construction, R&M"
080915M,GRADIENT CONSULTANTS LLP======,2398,34,160.00,ASBESTOS,14/09/15,,Technical And Service Support,"Works - Construction, R&M"
800065500,ADECCO UK LIMITED=============,27207021,1,922.25,FRS STAFF AGENCY,14/09/15,922.25,Technical And Service Support,Human Resources
800065580,ADECCO UK LIMITED=============,27213745,1,900.20,FRS STAFF AGENCY,14/09/15,900.20,Strategy & Inclusion,Human Resources
800065558,ADECCO UK LIMITED=============,27213747,1,439.60,FRS STAFF AGENCY,14/09/15,439.60,HR Management,Human Resources
800065524,ADECCO UK LIMITED=============,27213749,1,"2,168.10",FRS STAFF AGENCY,14/09/15,"2,168.10",National Operational Guidance Project,Human Resources
800065527,ADECCO UK LIMITED=============,27213750,1,720.16,FRS STAFF AGENCY,14/09/15,720.16,National Operational Guidance Project,Human Resources
800065534,ADECCO UK LIMITED=============,27213761,1,253.00,FRS STAFF AGENCY,14/09/15,253.00,National Operational Guidance Project,Human Resources
800065566,ADECCO UK LIMITED=============,27213763,1,900.20,FRS STAFF AGENCY,14/09/15,900.20,National Operational Guidance Project,Human Resources
800065551,ADECCO UK LIMITED=============,27213769,1,414.48,FRS STAFF AGENCY,14/09/15,414.48,HR Management,Human Resources
800065501,ADECCO UK LIMITED=============,27213775,1,737.80,FRS STAFF AGENCY,14/09/15,737.80,Technical And Service Support,Human Resources
800065573,ADECCO UK LIMITED=============,27217215,1,"1,456.70",FRS STAFF AGENCY,14/09/15,"1,456.70",Technical and Service Support,Human Resources
800065574,ADECCO UK LIMITED=============,27217216,1,"1,165.36",FRS STAFF AGENCY,14/09/15,"1,165.36",Technical and Service Support,Human Resources
800065575,ADECCO UK LIMITED=============,27217217,1,"1,456.70",FRS STAFF AGENCY,14/09/15,"1,456.70",Technical and Service Support,Human Resources
800065576,ADECCO UK LIMITED=============,27217218,1,"1,165.36",FRS STAFF AGENCY,14/09/15,"1,165.36",Technical and Service Support,Human Resources
800065577,ADECCO UK LIMITED=============,27217219,1,"1,456.70",FRS STAFF AGENCY,14/09/15,"1,456.70",Technical and Service Support,Human Resources
800065581,ADECCO UK LIMITED=============,27220216,1,540.12,FRS STAFF AGENCY,14/09/15,540.12,Strategy & Inclusion,Human Resources
800065536,ADECCO UK LIMITED=============,27220234,1,575.00,FRS STAFF AGENCY,14/09/15,575.00,National Operational Guidance Project,Human Resources
800065567,ADECCO UK LIMITED=============,27220236,1,720.16,FRS STAFF AGENCY,14/09/15,720.16,National Operational Guidance Project,Human Resources
800065546,ADECCO UK LIMITED=============,27220240,1,374.64,FRS STAFF AGENCY,14/09/15,374.64,Fire Safety Regulation,Human Resources
800065552,ADECCO UK LIMITED=============,27220243,1,439.60,FRS STAFF AGENCY,14/09/15,439.60,HR Management,Human Resources
800065494,ADECCO UK LIMITED=============,27220244,1,439.60,FRS STAFF AGENCY,14/09/15,439.60,HR Management,Human Resources
800065487,ADECCO UK LIMITED=============,27220246,1,942.20,FRS STAFF AGENCY,14/09/15,942.20,Technical And Service Support,Human Resources
800065502,ADECCO UK LIMITED=============,27220248,1,922.25,FRS STAFF AGENCY,14/09/15,922.25,Technical And Service Support,Human Resources
800065510,ADECCO UK LIMITED=============,27220258,1,439.60,PURCHASES-COMPUTER/EQUIPMENT,14/09/15,439.60,Information and Communication Technology,Human Resources
800065559,ADECCO UK LIMITED=============,27226546,1,263.76,FRS STAFF AGENCY,14/09/15,263.76,HR Management,Human Resources
800065444,ADECCO UK LIMITED=============,27226549,1,439.60,FRS STAFF AGENCY,14/09/15,439.60,Technical And Service Support,Human Resources
800065376,ADECCO UK LIMITED=============,27226550,1,523.54,FRS STAFF AGENCY,14/09/15,523.54,National Operational Guidance Project,Human Resources
800065411,ADECCO UK LIMITED=============,27226551,1,704.90,FRS STAFF AGENCY,14/09/15,704.90,HR Management,Human Resources
800065341,ADECCO UK LIMITED=============,27226552,1,624.40,FRS STAFF AGENCY,14/09/15,624.40,Procurement,Human Resources
800065432,ADECCO UK LIMITED=============,27226553,1,554.75,FRS STAFF AGENCY,14/09/15,554.75,Exercise Unified Response,Human Resources
800065453,ADECCO UK LIMITED=============,27226557,1,624.40,FRS STAFF AGENCY,14/09/15,624.40,Finance Services,Human Resources
800065538,ADECCO UK LIMITED=============,27226559,1,322.00,FRS STAFF AGENCY,14/09/15,322.00,National Operational Guidance Project,Human Resources
800065568,ADECCO UK LIMITED=============,27226560,1,900.20,FRS STAFF AGENCY,14/09/15,900.20,National Operational Guidance Project,Human Resources
800065439,ADECCO UK LIMITED=============,27226561,1,588.72,FRS STAFF AGENCY,14/09/15,588.72,Operations Non Fire Stations,Human Resources
800065383,ADECCO UK LIMITED=============,27226562,1,570.88,FRS STAFF AGENCY,14/09/15,570.88,Fire Safety Regulation,Human Resources
800065553,ADECCO UK LIMITED=============,27226564,1,439.60,FRS STAFF AGENCY,14/09/15,439.60,HR Management,Human Resources
800065495,ADECCO UK LIMITED=============,27226565,1,439.60,FRS STAFF AGENCY,14/09/15,439.60,HR Management,Human Resources
800065466,ADECCO UK LIMITED=============,27226566,1,942.20,FRS STAFF AGENCY,14/09/15,942.20,Technical And Service Support,Human Resources
800065488,ADECCO UK LIMITED=============,27226567,1,942.20,FRS STAFF AGENCY,14/09/15,942.20,Technical And Service Support,Human Resources
800065511,ADECCO UK LIMITED=============,27226574,1,439.60,PURCHASES-COMPUTER/EQUIPMENT,14/09/15,439.60,Information and Communication Technology,Human Resources
800065582,ADECCO UK LIMITED=============,27226577,1,900.20,FRS STAFF AGENCY,14/09/15,900.20,Strategy & Inclusion,Human Resources
800065372,ADECCO UK LIMITED=============,27226579,1,499.52,FRS STAFF AGENCY,14/09/15,499.52,Development and Training,Human Resources
800065560,ADECCO UK LIMITED=============,27233158,1,433.32,FRS STAFF AGENCY,14/09/15,433.32,HR Management,Human Resources
800065377,ADECCO UK LIMITED=============,27233161,1,523.54,FRS STAFF AGENCY,14/09/15,523.54,National Operational Guidance Project,Human Resources
800065412,ADECCO UK LIMITED=============,27233162,1,422.94,FRS STAFF AGENCY,14/09/15,422.94,HR Management,Human Resources
800065433,ADECCO UK LIMITED=============,27233163,1,554.75,FRS STAFF AGENCY,14/09/15,554.75,Exercise Unified Response,Human Resources
800065366,ADECCO UK LIMITED=============,27233166,1,624.40,FRS STAFF AGENCY,14/09/15,624.40,Procurement,Human Resources
800065569,ADECCO UK LIMITED=============,27233167,1,900.20,FRS STAFF AGENCY,14/09/15,900.20,National Operational Guidance Project,Human Resources
800065384,ADECCO UK LIMITED=============,27233169,1,499.52,FRS STAFF AGENCY,14/09/15,499.52,Fire Safety Regulation,Human Resources
800065554,ADECCO UK LIMITED=============,27233172,1,439.60,FRS STAFF AGENCY,14/09/15,439.60,HR Management,Human Resources
800065496,ADECCO UK LIMITED=============,27233173,1,439.60,FRS STAFF AGENCY,14/09/15,439.60,HR Management,Human Resources
800065467,ADECCO UK LIMITED=============,27233174,1,942.20,FRS STAFF AGENCY,14/09/15,942.20,Technical And Service Support,Human Resources
800065489,ADECCO UK LIMITED=============,27233175,1,942.20,FRS STAFF AGENCY,14/09/15,942.20,Technical And Service Support,Human Resources
800065503,ADECCO UK LIMITED=============,27233177,1,922.25,FRS STAFF AGENCY,14/09/15,922.25,Technical And Service Support,Human Resources
800065406,ADECCO UK LIMITED=============,27233181,1,523.05,FRS STAFF AGENCY,14/09/15,523.05,Strategy & Inclusion,Human Resources
800065460,ADECCO UK LIMITED=============,27233182,1,624.40,FRS STAFF AGENCY,14/09/15,624.40,Information Management,Human Resources
800065512,ADECCO UK LIMITED=============,27233183,1,439.60,PURCHASES-COMPUTER/EQUIPMENT,14/09/15,439.60,Information and Communication Technology,Human Resources
800065583,ADECCO UK LIMITED=============,27233186,1,900.20,FRS STAFF AGENCY,14/09/15,900.20,Strategy & Inclusion,Human Resources
800065454,ADECCO UK LIMITED=============,27233190,1,499.52,FRS STAFF AGENCY,14/09/15,499.52,Finance Services,Human Resources
800065539,ADECCO UK LIMITED=============,27233192,1,322.00,FRS STAFF AGENCY,14/09/15,322.00,National Operational Guidance Project,Human Resources
800065342,ADECCO UK LIMITED=============,27233193,1,624.40,FRS STAFF AGENCY,14/09/15,624.40,Procurement,Human Resources
800065561,ADECCO UK LIMITED=============,27239156,1,389.36,FRS STAFF AGENCY,14/09/15,389.36,HR Management,Human Resources
800065378,ADECCO UK LIMITED=============,27239159,1,523.54,FRS STAFF AGENCY,14/09/15,523.54,National Operational Guidance Project,Human Resources
800065413,ADECCO UK LIMITED=============,27239160,1,704.90,FRS STAFF AGENCY,14/09/15,704.90,HR Management,Human Resources
800065434,ADECCO UK LIMITED=============,27239161,1,554.75,FRS STAFF AGENCY,14/09/15,554.75,Exercise Unified Response,Human Resources
800065401,ADECCO UK LIMITED=============,27239163,1,"1,250.48",FRS STAFF AGENCY,14/09/15,"1,250.48",Legal & Democratic Services,Human Resources
800065367,ADECCO UK LIMITED=============,27239164,1,624.40,FRS STAFF AGENCY,14/09/15,624.40,Procurement,Human Resources
800065548,ADECCO UK LIMITED=============,27239167,1,374.64,FRS STAFF AGENCY,14/09/15,374.64,Fire Safety Regulation,Human Resources
800065555,ADECCO UK LIMITED=============,27239169,1,439.60,FRS STAFF AGENCY,14/09/15,439.60,HR Management,Human Resources
800065497,ADECCO UK LIMITED=============,27239170,1,439.60,FRS STAFF AGENCY,14/09/15,439.60,HR Management,Human Resources
800065468,ADECCO UK LIMITED=============,27239171,1,753.76,FRS STAFF AGENCY,14/09/15,753.76,Technical And Service Support,Human Resources
800065490,ADECCO UK LIMITED=============,27239172,1,942.20,FRS STAFF AGENCY,14/09/15,942.20,Technical And Service Support,Human Resources
800065407,ADECCO UK LIMITED=============,27239177,1,554.75,FRS STAFF AGENCY,14/09/15,554.75,Strategy & Inclusion,Human Resources
800065461,ADECCO UK LIMITED=============,27239178,1,624.40,FRS STAFF AGENCY,14/09/15,624.40,Information Management,Human Resources
800065513,ADECCO UK LIMITED=============,27239179,1,439.60,PURCHASES-COMPUTER/EQUIPMENT,14/09/15,439.60,Information and Communication Technology,Human Resources
800065584,ADECCO UK LIMITED=============,27239182,1,900.20,FRS STAFF AGENCY,14/09/15,900.20,Strategy & Inclusion,Human Resources
800065478,ADECCO UK LIMITED=============,27239183,1,439.60,FRS STAFF AGENCY,14/09/15,439.60,Operations Non Fire Stations,Human Resources
800065390,ADECCO UK LIMITED=============,27239185,1,395.64,FRS STAFF AGENCY,14/09/15,395.64,Technical And Service Support,Human Resources
800065455,ADECCO UK LIMITED=============,27239186,1,499.52,FRS STAFF AGENCY,14/09/15,499.52,Finance Services,Human Resources
800065343,ADECCO UK LIMITED=============,27239189,1,624.40,FRS STAFF AGENCY,14/09/15,624.40,Procurement,Human Resources
800065507,ADECCO UK LIMITED=============,27239193,1,439.60,FRS STAFF AGENCY,14/09/15,439.60,Communications,Human Resources
800065516,ADECCO UK LIMITED=============,27239194,1,546.83,FRS STAFF AGENCY,14/09/15,546.83,Information and Communication Technology,Human Resources
800065414,ADECCO UK LIMITED=============,27245374,1,704.90,FRS STAFF AGENCY,14/09/15,704.90,HR Management,Human Resources
800065386,ADECCO UK LIMITED=============,27245377,1,624.40,FRS STAFF AGENCY,14/09/15,624.40,Fire Safety Regulation,Human Resources
800065491,ADECCO UK LIMITED=============,27245381,1,942.20,FRS STAFF AGENCY,14/09/15,942.20,Technical And Service Support,Human Resources
800065504,ADECCO UK LIMITED=============,27245383,1,553.35,FRS STAFF AGENCY,14/09/15,553.35,Technical And Service Support,Human Resources
800065462,ADECCO UK LIMITED=============,27245385,1,624.40,FRS STAFF AGENCY,14/09/15,624.40,Information Management,Human Resources
800065514,ADECCO UK LIMITED=============,27245386,1,439.60,PURCHASES-COMPUTER/EQUIPMENT,14/09/15,439.60,Information and Communication Technology,Human Resources
800065479,ADECCO UK LIMITED=============,27245390,1,439.60,FRS STAFF AGENCY,14/09/15,439.60,Operations Non Fire Stations,Human Resources
800065456,ADECCO UK LIMITED=============,27245392,1,615.48,FRS STAFF AGENCY,14/09/15,615.48,Finance Services,Human Resources
800065344,ADECCO UK LIMITED=============,27245395,1,624.40,FRS STAFF AGENCY,14/09/15,624.40,Procurement,Human Resources
800065508,ADECCO UK LIMITED=============,27245399,1,439.60,FRS STAFF AGENCY,14/09/15,439.60,Communications,Human Resources
800065587,ADECCO UK LIMITED=============,27245404,1,439.60,FRS STAFF AGENCY,14/09/15,439.60,Operations Non Fire Stations,Human Resources
800065525,ADECCO UK LIMITED=============,27245410,1,"1,204.50",FRS STAFF AGENCY,14/09/15,"1,204.50",National Operational Guidance Project,Human Resources
800065368,ADECCO UK LIMITED=============,27245412,1,624.40,FRS STAFF AGENCY,14/09/15,624.40,Procurement,Human Resources
800065402,ADECCO UK LIMITED=============,27245415,1,714.56,FRS STAFF AGENCY,14/09/15,714.56,Legal & Democratic Services,Human Resources
800065379,ADECCO UK LIMITED=============,27245417,1,785.31,FRS STAFF AGENCY,14/09/15,785.31,National Operational Guidance Project,Human Resources
080915M,DRAEGER SAFETY UK LIMITED=====,2910025240,1,466.20,PROTECTIVE EQUIPT - PARTS,14/09/15,466.20,Technical and Service Support,Fire & Rescue
080915M,DRAEGER SAFETY UK LIMITED=====,2910025319,1,851.10,PROTECTIVE EQUIPT - PARTS,14/09/15,"1,234.50",Technical and Service Support,Fire & Rescue
080915M,DRAEGER SAFETY UK LIMITED=====,2910025319,2,3.20,PROTECTIVE EQUIPT - PARTS,14/09/15,,Technical and Service Support,Fire & Rescue
080915M,DRAEGER SAFETY UK LIMITED=====,2910025319,3,380.20,PROTECTIVE EQUIPT - PARTS,14/09/15,,Technical and Service Support,Fire & Rescue
080915M,DRAEGER SAFETY UK LIMITED=====,2910027400,1,"1,273.00",PROTECTIVE EQUIPT - PARTS,14/09/15,"2,562.05",Technical and Service Support,Fire & Rescue
080915M,DRAEGER SAFETY UK LIMITED=====,2910027400,2,111.10,PROTECTIVE EQUIPT - PARTS,14/09/15,,Technical and Service Support,Fire & Rescue
080915M,DRAEGER SAFETY UK LIMITED=====,2910027400,3,358.75,PROTECTIVE EQUIPT - PARTS,14/09/15,,Technical and Service Support,Fire & Rescue
080915M,DRAEGER SAFETY UK LIMITED=====,2910027400,4,251.80,PROTECTIVE EQUIPT - PARTS,14/09/15,,Technical and Service Support,Fire & Rescue
080915M,DRAEGER SAFETY UK LIMITED=====,2910027400,5,567.40,PROTECTIVE EQUIPT - PARTS,14/09/15,,Technical and Service Support,Fire & Rescue
080915M,DRAEGER SAFETY UK LIMITED=====,2910027401,1,"1,134.80",PROTECTIVE EQUIPT - PARTS,14/09/15,"3,168.66",Technical and Service Support,Fire & Rescue
080915M,DRAEGER SAFETY UK LIMITED=====,2910027401,2,"1,138.60",PROTECTIVE EQUIPT - PARTS,14/09/15,,Technical and Service Support,Fire & Rescue
080915M,DRAEGER SAFETY UK LIMITED=====,2910027401,3,136.70,PROTECTIVE EQUIPT - PARTS,14/09/15,,Technical and Service Support,Fire & Rescue
080915M,DRAEGER SAFETY UK LIMITED=====,2910027401,4,64.56,PROTECTIVE EQUIPT - PARTS,14/09/15,,Technical and Service Support,Fire & Rescue
080915M,DRAEGER SAFETY UK LIMITED=====,2910027401,5,584.00,PROTECTIVE EQUIPT - PARTS,14/09/15,,Technical and Service Support,Fire & Rescue
080915M,DRAEGER SAFETY UK LIMITED=====,2910027401,6,110.00,PROTECTIVE EQUIPT - PARTS,14/09/15,,Technical and Service Support,Fire & Rescue
902559,MOMENTUM HUB LTD,331600,1,300.00,GENERATED ACCOUNT,14/09/15,300.00,Exercise Unified Response,Vehicle Management
141175,BRITISH GAS BUSINESS==========,5509701153,1,665.54,ELECTRICITY,14/09/15,"6,711.65",Technical And Service Support,Utilities
141175,BRITISH GAS BUSINESS==========,5509701153,2,604.61,ELECTRICITY,14/09/15,,Technical And Service Support,Utilities
141175,BRITISH GAS BUSINESS==========,5509701153,3,864.02,ELECTRICITY,14/09/15,,Technical And Service Support,Utilities
141175,BRITISH GAS BUSINESS==========,5509701153,4,551.58,ELECTRICITY,14/09/15,,Technical And Service Support,Utilities
141175,BRITISH GAS BUSINESS==========,5509701153,5,968.40,ELECTRICITY,14/09/15,,Technical And Service Support,Utilities
141175,BRITISH GAS BUSINESS==========,5509701153,6,413.56,ELECTRICITY,14/09/15,,Technical And Service Support,Utilities
141175,BRITISH GAS BUSINESS==========,5509701153,7,425.54,ELECTRICITY,14/09/15,,Technical And Service Support,Utilities
141175,BRITISH GAS BUSINESS==========,5509701153,8,305.23,ELECTRICITY,14/09/15,,Technical And Service Support,Utilities
141175,BRITISH GAS BUSINESS==========,5509701153,9,550.87,ELECTRICITY,14/09/15,,Technical And Service Support,Utilities
141175,BRITISH GAS BUSINESS==========,5509701153,10,548.18,ELECTRICITY,14/09/15,,Technical And Service Support,Utilities
141175,BRITISH GAS BUSINESS==========,5509701153,11,535.50,ELECTRICITY,14/09/15,,Technical And Service Support,Utilities
141175,BRITISH GAS BUSINESS==========,5509701153,12,278.62,ELECTRICITY,14/09/15,,Technical And Service Support,Utilities
080915M,CORE SURVEYSLTD===============,6288,1,"1,310.50",ASBESTOS,14/09/15,"1,373.50",Technical and Service Support,"Works - Construction, R&M"
080915M,CORE SURVEYSLTD===============,6288,2,63.00,ASBESTOS,14/09/15,,Technical and Service Support,"Works - Construction, R&M"
080915M,GEORGE JONES & SON LTD========,780,1,"1,016.00",STRATEGIC (NON CYCLICAL),14/09/15,"1,016.00",Technical and Service Support,"Works - Construction, R&M"
080915M,OPERATIONAL RESEARCH IN HEALTH,87A/LFB1/59,1,"5,560.42",CONSULTANTS,14/09/15,"5,560.42",Information Management,Consultancy
080915M,OPERATIONAL RESEARCH IN HEALTH,88A/LFBD3/5,1,"8,050.00",CONSULTANTS,14/09/15,"8,050.00",National Co-ordination Centre,Consultancy
010915M,*GRAFTON MERCHANTING GB LTD,CRO/357644,1,80.55,OPERATIONAL EQUIP-PURCHASE,14/09/15,370.53,Operations Fire Stations,Building Constr Materials
010915M,*GRAFTON MERCHANTING GB LTD,CRO/357644,2,96.66,OPERATIONAL EQUIP-PURCHASE,14/09/15,,Operations Fire Stations,Building Constr Materials
010915M,*GRAFTON MERCHANTING GB LTD,CRO/357644,3,96.66,OPERATIONAL EQUIP-PURCHASE,14/09/15,,Operations Fire Stations,Building Constr Materials
010915M,*GRAFTON MERCHANTING GB LTD,CRO/357644,4,96.66,OPERATIONAL EQUIP-PURCHASE,14/09/15,,Operations Fire Stations,Building Constr Materials
080915M,AIRBUS DEFENCE AND SPACE,IN029937,1,"188,235.00",MAINTENANCE & SUPPORT,14/09/15,"188,235.00",Information and Communication Technology,ICT
080915M,GREEN ENERGY PARTNERS LTD,INV-0085,1,"4,688.25",CONSULTANTS,14/09/15,"4,688.25",Technical And Service Support,Environmental Services
902558,BABCOCK TRAINING LTD,PTSI013268,1,"1,346,990.70",TRAINING CONTRACT,14/09/15,"1,559,527.44",Development and Training,Human Resources
902558,BABCOCK TRAINING LTD,PTSI013268,2,"212,536.74",TRAINING CONTRACT,14/09/15,,Development and Training,Human Resources
100915M,HISTORIC ENGLAND,0000092272,1,"2,475.00",PROFESSIONAL DEVELOPMENT,17/09/15,"2,475.00",Fire Safety Regulation,Environmental Services
141176,OGILVIE FLEET LTD=============,00350245,1,428.44,LEASE CAR CHARGES,17/09/15,428.44,Procurement,Vehicle Management
141176,OGILVIE FLEET LTD=============,00350245,2,-39.14,LEASE CAR CHARGES,17/09/15,,Procurement,Vehicle Management
141176,OGILVIE FLEET LTD=============,00350245,3,39.14,LEASE CAR CHARGES,17/09/15,,Procurement,Vehicle Management
141176,OGILVIE FLEET LTD=============,00350246,1,476.08,LEASE CAR CHARGES,17/09/15,476.08,Procurement,Vehicle Management
141176,OGILVIE FLEET LTD=============,00350246,2,-43.08,VAT CAR LEASING,17/09/15,,Finance Services,Vehicle Management
141176,OGILVIE FLEET LTD=============,00350246,3,43.08,LEASE CAR CHARGES,17/09/15,,Procurement,Vehicle Management
141176,OGILVIE FLEET LTD=============,00350247,1,277.32,LEASE CAR CHARGES,17/09/15,277.32,Procurement,Vehicle Management
141176,OGILVIE FLEET LTD=============,00350247,2,-23.27,VAT CAR LEASING,17/09/15,,Finance Services,Vehicle Management
141176,OGILVIE FLEET LTD=============,00350247,3,23.27,LEASE CAR CHARGES,17/09/15,,Procurement,Vehicle Management
141176,OGILVIE FLEET LTD=============,00350248,1,557.15,LEASE CAR CHARGES,17/09/15,557.15,Procurement,Vehicle Management
141176,OGILVIE FLEET LTD=============,00350248,2,-50.11,VAT CAR LEASING,17/09/15,,Finance Services,Vehicle Management
141176,OGILVIE FLEET LTD=============,00350248,3,50.11,LEASE CAR CHARGES,17/09/15,,Procurement,Vehicle Management
141176,OGILVIE FLEET LTD=============,00350908,1,"6,802.68",LEASE CAR CHARGES,17/09/15,"6,802.68",Procurement,Vehicle Management
141176,OGILVIE FLEET LTD=============,00350908,2,-607.28,VAT CAR LEASING,17/09/15,,Finance Services,Vehicle Management
141176,OGILVIE FLEET LTD=============,00350908,3,607.28,LEASE CAR CHARGES,17/09/15,,Procurement,Vehicle Management
070915M,LYNN WICKINS,0100,1,"1,757.50",PROFESSIONAL SERVICES,17/09/15,"1,757.50",Property PFI,Consultancy
141178,THAMES WATER UTILITIES LTD====,0455932500H,1,335.10,WATER & SEWERAGE RATES,17/09/15,335.10,Technical And Service Support,Utilities
141180,THAMES WATER UTILITIES LTD====,0622831565I,1,326.51,WATER & SEWERAGE RATES,17/09/15,326.51,Technical And Service Support,Utilities
141178,THAMES WATER UTILITIES LTD====,0706863247H,1,514.73,WATER & SEWERAGE RATES,17/09/15,514.73,Technical And Service Support,Utilities
800064016,*JAMES HUNTER (OUTFITTERS) LTD,108245,1,230.90,CLOTHING,17/09/15,261.89,Operations Fire Stations,Clothing
800064016,*JAMES HUNTER (OUTFITTERS) LTD,108245,2,30.99,CLOTHING,17/09/15,,Operations Fire Stations,Clothing
090915M,BT GLOBAL SERVICES============,1134471,1,541.66,TELECOMMUNICATIONS,17/09/15,541.66,Information and Communication Technology,ICT
141178,THAMES WATER UTILITIES LTD====,1295196012H,1,299.75,WATER & SEWERAGE RATES,17/09/15,299.75,Technical And Service Support,Utilities
141178,EDF ENERGY===================,13152100008,1,"20,096.56",ELECTRICITY,17/09/15,"20,096.56",Technical And Service Support,Utilities
141177,HEARTFELT ROOFING LIMITED,1344,1,"1,765.40",DEVELOPMENT  EXPENSES-CONTRACT,17/09/15,"1,765.40",Technical and Service Support,"Works - Construction, R&M"
100915M,SURREY BLIND & CURTAIN CO=====,14787,1,353.00,FIXTURES & FITTINGS,17/09/15,353.00,Technical And Service Support,"Works - Construction, R&M"
100915M,SURREY BLIND & CURTAIN CO=====,14788,1,474.00,FIXTURES & FITTINGS,17/09/15,474.00,Technical And Service Support,"Works - Construction, R&M"
100915M,BUREAU VERITAS HS&E LTD=======,15012890,1,"97,510.95",SCIENTIFIC SERVICES,17/09/15,"97,510.95",Procurement,Environmental Services
110915M,RESPIREX======================,152563,1,"2,925.00",GENERAL,17/09/15,"2,925.00",Gas Tight Suits,Clothing
110915M,JERWOOD SPACE=================,16121B,1,550.00,PROFESSIONAL DEVELOPMENT,17/09/15,550.00,National Operational Guidance Project,Facilities & Management S
100915M,ENTEL UK LTD==================,170149,1,9.00,RADIO,17/09/15,663.41,Information and Communication Technology,ICT
100915M,ENTEL UK LTD==================,170149,2,65.10,RADIO,17/09/15,,Information and Communication Technology,ICT
100915M,ENTEL UK LTD==================,170149,3,109.31,RADIO,17/09/15,,Information and Communication Technology,ICT
100915M,ENTEL UK LTD==================,170149,4,480.00,RADIO,17/09/15,,Information and Communication Technology,ICT
280815H,GREATER LONDON AUTHORITY======,1800005079,1,"3,900.00",SUBSCRIPTIONS,17/09/15,"3,900.00",Communications,Fire & Rescue
100915M,COMMUNITIES & LOCAL GOVERNMENT,1800021762,1,"122,993.53",RADIO,17/09/15,"131,734.42",Information and Communication Technology,ICT
100915M,COMMUNITIES & LOCAL GOVERNMENT,1800021762,2,"8,416.82",RADIO,17/09/15,,Information and Communication Technology,ICT
100915M,COMMUNITIES & LOCAL GOVERNMENT,1800021762,3,324.07,RADIO,17/09/15,,Information and Communication Technology,ICT
141180,ARTHUR J. GALLAGHER (UK),18570231,1,"2,369.58",PREMIUMS,17/09/15,"3,159.44",Central Finance,Consultancy
141180,ARTHUR J. GALLAGHER (UK),18570231,2,789.86,PAYMENTS IN ADVANCE,17/09/15,,Do not include,Consultancy
141178,THAMES WATER UTILITIES LTD====,2061155255H,1,347.24,WATER & SEWERAGE RATES,17/09/15,347.24,Technical And Service Support,Utilities
141178,EDF ENERGY===================,23682100008,1,"15,466.69",ELECTRICITY,17/09/15,"15,466.69",Technical And Service Support,Utilities
141180,NOMURA INTERNATIONAL PLC,26-465,1,"3,104.96",RENTS,17/09/15,"3,104.96",Technical And Service Support,Consultancy
800065683,ADECCO UK LIMITED=============,27097826,1,641.90,FRS STAFF AGENCY,17/09/15,641.90,Technical And Service Support,Human Resources
800065684,ADECCO UK LIMITED=============,27104462,1,641.90,FRS STAFF AGENCY,17/09/15,641.90,Technical And Service Support,Human Resources
800065739,ADECCO UK LIMITED=============,27111297,1,624.40,FRS STAFF AGENCY,17/09/15,624.40,Procurement,Human Resources
800065740,ADECCO UK LIMITED=============,27124002,1,499.52,FRS STAFF AGENCY,17/09/15,499.52,Procurement,Human Resources
800065687,ADECCO UK LIMITED=============,27130235,1,495.18,FRS STAFF AGENCY,17/09/15,495.18,Technical And Service Support,Human Resources
800065651,ADECCO UK LIMITED=============,27130242,1,499.52,PURCHASES-COMPUTER/EQUIPMENT,17/09/15,499.52,Information and Communication Technology,Human Resources
800065642,ADECCO UK LIMITED=============,27136304,1,624.40,FRS STAFF AGENCY,17/09/15,624.40,Technical And Service Support,Human Resources
800065652,ADECCO UK LIMITED=============,27143320,1,624.40,PURCHASES-COMPUTER/EQUIPMENT,17/09/15,624.40,Information and Communication Technology,Human Resources
800065643,ADECCO UK LIMITED=============,27143333,1,624.40,FRS STAFF AGENCY,17/09/15,624.40,Technical And Service Support,Human Resources
800065698,ADECCO UK LIMITED=============,27143349,1,753.76,FRS STAFF AGENCY,17/09/15,753.76,National Operational Guidance Project,Human Resources
800065653,ADECCO UK LIMITED=============,27149165,1,499.52,PURCHASES-COMPUTER/EQUIPMENT,17/09/15,499.52,Information and Communication Technology,Human Resources
800065699,ADECCO UK LIMITED=============,27149197,1,753.76,FRS STAFF AGENCY,17/09/15,753.76,National Operational Guidance Project,Human Resources
800065655,ADECCO UK LIMITED=============,27149198,1,614.60,FRS STAFF AGENCY,17/09/15,614.60,Procurement,Human Resources
800065700,ADECCO UK LIMITED=============,27155309,1,942.20,FRS STAFF AGENCY,17/09/15,942.20,National Operational Guidance Project,Human Resources
800065654,ADECCO UK LIMITED=============,27155310,1,768.25,FRS STAFF AGENCY,17/09/15,768.25,Procurement,Human Resources
800065656,ADECCO UK LIMITED=============,27155311,1,768.25,FRS STAFF AGENCY,17/09/15,768.25,Procurement,Human Resources
800065701,ADECCO UK LIMITED=============,27162076,1,942.20,FRS STAFF AGENCY,17/09/15,942.20,National Operational Guidance Project,Human Resources
800065657,ADECCO UK LIMITED=============,27162077,1,768.25,FRS STAFF AGENCY,17/09/15,768.25,Procurement,Human Resources
800065702,ADECCO UK LIMITED=============,27168534,1,753.76,FRS STAFF AGENCY,17/09/15,753.76,National Operational Guidance Project,Human Resources
800065658,ADECCO UK LIMITED=============,27168535,1,614.60,FRS STAFF AGENCY,17/09/15,614.60,Procurement,Human Resources
800065703,ADECCO UK LIMITED=============,27175051,1,942.20,FRS STAFF AGENCY,17/09/15,942.20,National Operational Guidance Project,Human Resources
800065659,ADECCO UK LIMITED=============,27175052,1,768.25,FRS STAFF AGENCY,17/09/15,768.25,Procurement,Human Resources
800065660,ADECCO UK LIMITED=============,27181422,1,768.25,FRS STAFF AGENCY,17/09/15,768.25,Procurement,Human Resources
800065637,ADECCO UK LIMITED=============,27181453,1,261.77,FRS STAFF AGENCY,17/09/15,261.77,National Operational Guidance Project,Human Resources
800065661,ADECCO UK LIMITED=============,27187685,1,768.25,FRS STAFF AGENCY,17/09/15,768.25,Procurement,Human Resources
800065662,ADECCO UK LIMITED=============,27193973,1,768.25,FRS STAFF AGENCY,17/09/15,768.25,Procurement,Human Resources
800065590,ADECCO UK LIMITED=============,27207036,1,624.40,FRS STAFF AGENCY,17/09/15,624.40,Technical And Service Support,Human Resources
800065591,ADECCO UK LIMITED=============,27213778,1,624.40,FRS STAFF AGENCY,17/09/15,624.40,Technical And Service Support,Human Resources
800065578,ADECCO UK LIMITED=============,27217220,1,"1,456.70",FRS STAFF AGENCY,17/09/15,"1,456.70",Technical and Service Support,Human Resources
800065592,ADECCO UK LIMITED=============,27220252,1,624.40,FRS STAFF AGENCY,17/09/15,624.40,Technical And Service Support,Human Resources
800065593,ADECCO UK LIMITED=============,27226571,1,499.52,FRS STAFF AGENCY,17/09/15,499.52,Technical And Service Support,Human Resources
800065595,ADECCO UK LIMITED=============,27239176,1,624.40,FRS STAFF AGENCY,17/09/15,624.40,Technical And Service Support,Human Resources
800065541,ADECCO UK LIMITED=============,27239188,1,644.00,FRS STAFF AGENCY,17/09/15,644.00,National Operational Guidance Project,Human Resources
800065556,ADECCO UK LIMITED=============,27245379,1,439.60,FRS STAFF AGENCY,17/09/15,439.60,HR Management,Human Resources
800065498,ADECCO UK LIMITED=============,27245380,1,401.92,FRS STAFF AGENCY,17/09/15,401.92,HR Management,Human Resources
110915M,ARKAS LIMITED=================,27572,1,308.00,TACTICAL DAY TO DAY,17/09/15,"1,259.08",Technical And Service Support,"Works - Construction, R&M"
110915M,ARKAS LIMITED=================,27572,2,510.60,TACTICAL DAY TO DAY,17/09/15,,Technical And Service Support,"Works - Construction, R&M"
110915M,ARKAS LIMITED=================,27572,3,173.73,STRATEGIC (CYCLICAL),17/09/15,,Technical And Service Support,"Works - Construction, R&M"
110915M,ARKAS LIMITED=================,27572,4,266.75,STRATEGIC (CYCLICAL),17/09/15,,Technical And Service Support,"Works - Construction, R&M"
110915M,ARKAS LIMITED=================,27573,1,181.00,TACTICAL DAY TO DAY,17/09/15,823.00,Technical And Service Support,"Works - Construction, R&M"
110915M,ARKAS LIMITED=================,27573,2,197.50,STRATEGIC (CYCLICAL),17/09/15,,Technical And Service Support,"Works - Construction, R&M"
110915M,ARKAS LIMITED=================,27573,3,230.50,STRATEGIC (CYCLICAL),17/09/15,,Technical And Service Support,"Works - Construction, R&M"
110915M,ARKAS LIMITED=================,27573,4,214.00,STRATEGIC (CYCLICAL),17/09/15,,Technical And Service Support,"Works - Construction, R&M"
110915M,ARKAS LIMITED=================,27574,1,197.50,STRATEGIC (CYCLICAL),17/09/15,856.00,Technical And Service Support,"Works - Construction, R&M"
110915M,ARKAS LIMITED=================,27574,2,214.00,STRATEGIC (CYCLICAL),17/09/15,,Technical And Service Support,"Works - Construction, R&M"
110915M,ARKAS LIMITED=================,27574,3,247.00,STRATEGIC (CYCLICAL),17/09/15,,Technical And Service Support,"Works - Construction, R&M"
110915M,ARKAS LIMITED=================,27574,4,197.50,STRATEGIC (CYCLICAL),17/09/15,,Technical And Service Support,"Works - Construction, R&M"
110915M,ARKAS LIMITED=================,27576,1,148.00,STRATEGIC (CYCLICAL),17/09/15,526.50,Technical And Service Support,"Works - Construction, R&M"
110915M,ARKAS LIMITED=================,27576,2,214.00,STRATEGIC (CYCLICAL),17/09/15,,Technical And Service Support,"Works - Construction, R&M"
110915M,ARKAS LIMITED=================,27576,3,164.50,STRATEGIC (CYCLICAL),17/09/15,,Technical And Service Support,"Works - Construction, R&M"
141178,THAMES WATER UTILITIES LTD====,2866033116H,1,504.14,WATER & SEWERAGE RATES,17/09/15,504.14,Technical And Service Support,Utilities
110915M,B NOKES CONTRACTS LTD,2878,1,"1,178.00",DAY TO DAY MINOR IMPS,17/09/15,"1,178.00",Property PFI,"Works - Construction, R&M"
100915M,B NOKES CONTRACTS LTD,2880,1,630.00,REFUSE COLLECTION,17/09/15,630.00,Technical And Service Support,"Works - Construction, R&M"
100915M,B NOKES CONTRACTS LTD,2884,1,937.50,TACTICAL DAY TO DAY,17/09/15,937.50,Technical And Service Support,"Works - Construction, R&M"
100915M,B NOKES CONTRACTS LTD,2889,1,495.00,TACTICAL DAY TO DAY,17/09/15,495.00,Technical And Service Support,"Works - Construction, R&M"
110915M,B NOKES CONTRACTS LTD,2892,1,"1,133.00",STRATEGIC (NON CYCLICAL),17/09/15,"1,133.00",Technical and Service Support,"Works - Construction, R&M"
141180,AMAS LTD======================,29/9/1524/12/15,1,"2,690.00",RENTS,17/09/15,"2,690.00",Technical And Service Support,Facilities & Management S
141180,BAA BUSINESS SUPPORT CENTRE===,290915241215,1,"27,500.00",RENTS,17/09/15,"27,500.00",Technical And Service Support,Financial Services
141180,L B OF BARKING & DAGENHAM,29915241215,1,"1,500.00",RENTS,17/09/15,"1,500.00",Technical And Service Support,Statutory Bodies
141178,EDF ENERGY===================,30152100008,1,"1,243.70",ELECTRICITY,17/09/15,"1,243.70",Technical And Service Support,Utilities
100915M,REGENT OFFICE CARE LTD========,30324,1,204.60,STRATEGIC (CYCLICAL),17/09/15,"6,138.00",Technical and Service Support,Cleaning & Janitorial
100915M,REGENT OFFICE CARE LTD========,30324,2,204.60,STRATEGIC (CYCLICAL),17/09/15,,Technical and Service Support,Cleaning & Janitorial
100915M,REGENT OFFICE CARE LTD========,30324,3,170.50,STRATEGIC (CYCLICAL),17/09/15,,Technical and Service Support,Cleaning & Janitorial
100915M,REGENT OFFICE CARE LTD========,30324,4,204.60,STRATEGIC (CYCLICAL),17/09/15,,Technical and Service Support,Cleaning & Janitorial
100915M,REGENT OFFICE CARE LTD========,30324,5,170.50,STRATEGIC (CYCLICAL),17/09/15,,Technical and Service Support,Cleaning & Janitorial
100915M,REGENT OFFICE CARE LTD========,30324,6,204.60,STRATEGIC (CYCLICAL),17/09/15,,Technical and Service Support,Cleaning & Janitorial
100915M,REGENT OFFICE CARE LTD========,30324,7,204.60,STRATEGIC (CYCLICAL),17/09/15,,Technical and Service Support,Cleaning & Janitorial
100915M,REGENT OFFICE CARE LTD========,30324,8,204.60,STRATEGIC (CYCLICAL),17/09/15,,Technical and Service Support,Cleaning & Janitorial
100915M,REGENT OFFICE CARE LTD========,30324,9,204.60,STRATEGIC (CYCLICAL),17/09/15,,Technical and Service Support,Cleaning & Janitorial
100915M,REGENT OFFICE CARE LTD========,30324,10,204.60,STRATEGIC (CYCLICAL),17/09/15,,Technical and Service Support,Cleaning & Janitorial
100915M,REGENT OFFICE CARE LTD========,30324,11,170.50,STRATEGIC (CYCLICAL),17/09/15,,Technical and Service Support,Cleaning & Janitorial
100915M,REGENT OFFICE CARE LTD========,30324,12,204.60,STRATEGIC (CYCLICAL),17/09/15,,Technical and Service Support,Cleaning & Janitorial
100915M,REGENT OFFICE CARE LTD========,30324,13,204.60,STRATEGIC (CYCLICAL),17/09/15,,Technical and Service Support,Cleaning & Janitorial
100915M,REGENT OFFICE CARE LTD========,30324,14,170.50,STRATEGIC (CYCLICAL),17/09/15,,Technical and Service Support,Cleaning & Janitorial
100915M,REGENT OFFICE CARE LTD========,30324,15,170.50,STRATEGIC (CYCLICAL),17/09/15,,Technical and Service Support,Cleaning & Janitorial
100915M,REGENT OFFICE CARE LTD========,30324,16,204.60,STRATEGIC (CYCLICAL),17/09/15,,Technical and Service Support,Cleaning & Janitorial
100915M,REGENT OFFICE CARE LTD========,30324,17,170.50,STRATEGIC (CYCLICAL),17/09/15,,Technical and Service Support,Cleaning & Janitorial
100915M,REGENT OFFICE CARE LTD========,30324,18,204.60,STRATEGIC (CYCLICAL),17/09/15,,Technical and Service Support,Cleaning & Janitorial
100915M,REGENT OFFICE CARE LTD========,30324,19,204.60,STRATEGIC (CYCLICAL),17/09/15,,Technical and Service Support,Cleaning & Janitorial
100915M,REGENT OFFICE CARE LTD========,30324,20,170.50,STRATEGIC (CYCLICAL),17/09/15,,Technical and Service Support,Cleaning & Janitorial
100915M,REGENT OFFICE CARE LTD========,30324,21,170.50,STRATEGIC (CYCLICAL),17/09/15,,Technical and Service Support,Cleaning & Janitorial
100915M,REGENT OFFICE CARE LTD========,30324,22,204.60,STRATEGIC (CYCLICAL),17/09/15,,Technical and Service Support,Cleaning & Janitorial
100915M,REGENT OFFICE CARE LTD========,30324,23,204.60,STRATEGIC (CYCLICAL),17/09/15,,Technical and Service Support,Cleaning & Janitorial
100915M,REGENT OFFICE CARE LTD========,30324,24,170.50,STRATEGIC (CYCLICAL),17/09/15,,Technical and Service Support,Cleaning & Janitorial
100915M,REGENT OFFICE CARE LTD========,30324,25,204.60,STRATEGIC (CYCLICAL),17/09/15,,Technical and Service Support,Cleaning & Janitorial
100915M,REGENT OFFICE CARE LTD========,30324,26,204.60,STRATEGIC (CYCLICAL),17/09/15,,Technical and Service Support,Cleaning & Janitorial
100915M,REGENT OFFICE CARE LTD========,30324,27,170.50,STRATEGIC (CYCLICAL),17/09/15,,Technical And Service Support,Cleaning & Janitorial
100915M,REGENT OFFICE CARE LTD========,30324,28,170.50,STRATEGIC (CYCLICAL),17/09/15,,Technical And Service Support,Cleaning & Janitorial
100915M,REGENT OFFICE CARE LTD========,30324,29,204.60,STRATEGIC (CYCLICAL),17/09/15,,Technical and Service Support,Cleaning & Janitorial
100915M,REGENT OFFICE CARE LTD========,30324,30,170.50,STRATEGIC (CYCLICAL),17/09/15,,Technical and Service Support,Cleaning & Janitorial
100915M,REGENT OFFICE CARE LTD========,30324,31,204.60,STRATEGIC (CYCLICAL),17/09/15,,Technical and Service Support,Cleaning & Janitorial
100915M,REGENT OFFICE CARE LTD========,30324,32,204.60,STRATEGIC (CYCLICAL),17/09/15,,Technical and Service Support,Cleaning & Janitorial
800065603,*H-SQUARED ELECTRONICS LTD,367118,1,480.00,OPERATIONAL EQUIP-PURCHASE,17/09/15,480.00,Technical And Service Support,Stationery
800065621,*H-SQUARED ELECTRONICS LTD,367440,1,172.00,OPERATIONAL EQUIP-PURCHASE,17/09/15,344.00,Operations Fire Stations,Stationery
800065621,*H-SQUARED ELECTRONICS LTD,367440,2,172.00,OPERATIONAL EQUIP-PURCHASE,17/09/15,,Operations Fire Stations,Stationery
100915M,DEALERSHIP SERVICES LTD,3700,1,16.95,CLOTHING,17/09/15,"1,018.00",Cadets,Clothing
100915M,DEALERSHIP SERVICES LTD,3700,2,113.70,CLOTHING,17/09/15,,Cadets,Clothing
100915M,DEALERSHIP SERVICES LTD,3700,3,170.55,CLOTHING,17/09/15,,Cadets,Clothing
100915M,DEALERSHIP SERVICES LTD,3700,4,58.00,CLOTHING,17/09/15,,Cadets,Clothing
100915M,DEALERSHIP SERVICES LTD,3700,5,101.50,CLOTHING,17/09/15,,Cadets,Clothing
100915M,DEALERSHIP SERVICES LTD,3700,6,43.50,CLOTHING,17/09/15,,Cadets,Clothing
100915M,DEALERSHIP SERVICES LTD,3700,7,29.00,CLOTHING,17/09/15,,Cadets,Clothing
100915M,DEALERSHIP SERVICES LTD,3700,8,3.45,CLOTHING,17/09/15,,Cadets,Clothing
100915M,DEALERSHIP SERVICES LTD,3700,9,20.70,CLOTHING,17/09/15,,Cadets,Clothing
100915M,DEALERSHIP SERVICES LTD,3700,10,31.05,CLOTHING,17/09/15,,Cadets,Clothing
100915M,DEALERSHIP SERVICES LTD,3700,11,187.95,CLOTHING,17/09/15,,Cadets,Clothing
100915M,DEALERSHIP SERVICES LTD,3700,12,241.65,CLOTHING,17/09/15,,Cadets,Clothing
110915M,MCGRATH BROS (WASTE CONTROL) L,374286,1,262.70,REFUSE COLLECTION,17/09/15,262.70,Technical And Service Support,Environmental Services
110915M,MCGRATH BROS (WASTE CONTROL) L,374289,1,254.50,REFUSE COLLECTION,17/09/15,254.50,Technical And Service Support,Environmental Services
110915M,MCGRATH BROS (WASTE CONTROL) L,376820,1,282.00,OPERATIONAL EQUIP-PURCHASE,17/09/15,282.00,Operations Non Fire Stations,Environmental Services
110915M,MCGRATH BROS (WASTE CONTROL) L,376823,1,255.32,REFUSE COLLECTION,17/09/15,569.56,Technical And Service Support,Environmental Services
110915M,MCGRATH BROS (WASTE CONTROL) L,376823,2,314.24,REFUSE COLLECTION,17/09/15,,Technical And Service Support,Environmental Services
110915M,MCGRATH BROS (WASTE CONTROL) L,376826,1,356.30,REFUSE COLLECTION,17/09/15,356.30,Technical And Service Support,Environmental Services
110915M,MCGRATH BROS (WASTE CONTROL) L,376830,1,464.00,REFUSE COLLECTION,17/09/15,464.00,Technical And Service Support,Environmental Services
110915M,COMPUTACENTRE================,3780027985,1,554.40,ACQUISITIONS,17/09/15,554.40,Information and Communication Technology,ICT
110915M,COMPUTACENTRE================,3780027986,1,375.00,ACQUISITIONS,17/09/15,501.00,Information and Communication Technology,ICT
110915M,COMPUTACENTRE================,3780027986,2,126.00,ACQUISITIONS,17/09/15,,Information and Communication Technology,ICT
110915M,COMPUTACENTRE================,3880515098,1,"1,050.00",ACQUISITIONS,17/09/15,"1,050.00",Information and Communication Technology,ICT
040915M,COMPUTACENTRE================,3880609874,1,"1,042.78",ACQUISITIONS,17/09/15,"2,278.18",Information and Communication Technology,ICT
040915M,COMPUTACENTRE================,3880609874,2,"1,115.40",ACQUISITIONS,17/09/15,,Information and Communication Technology,ICT
040915M,COMPUTACENTRE================,3880609874,3,120.00,ACQUISITIONS,17/09/15,,Information and Communication Technology,ICT
141178,CANON (UK) LTD===============,401678455,1,298.33,OFFICE EQUIPMENT,17/09/15,298.33,Technical And Service Support,ICT
110915M,CARPETS & FLOOR COVERS DIRECT=,4023,1,"2,365.00",STRATEGIC (NON CYCLICAL),17/09/15,"2,365.00",Technical and Service Support,Building Constr Materials
090915M,IN TUITION====================,40695,1,253.13,PROFESSIONAL DEVELOPMENT,17/09/15,253.13,Procurement,Facilities & Management S
080915M,MITIE SECURITY (LONDON) LTD===,45/595783,1,278.16,PREMISES SECURITY,17/09/15,278.16,Technical And Service Support,Facilities & Management S
080915M,MITIE SECURITY (LONDON) LTD===,45/595786,1,556.32,PREMISES SECURITY,17/09/15,556.32,Technical And Service Support,Facilities & Management S
110915M,FOCUS & VISION TECHNOLOGY LTD,47912,1,506.34,MEDICAL EXPENSES CONTRACT,17/09/15,506.34,HR Management,Healthcare
100915M,*OCS GROUP UK LTD,5000113203,1,687.72,CATERING,17/09/15,687.72,Technical And Service Support,Catering
100915M,*OCS GROUP UK LTD,5000113217,1,"3,278.55",CATERING,17/09/15,"3,694.95",Technical And Service Support,Catering
100915M,*OCS GROUP UK LTD,5000113217,2,188.90,CATERING,17/09/15,,Technical And Service Support,Catering
100915M,*OCS GROUP UK LTD,5000113217,3,227.50,CATERING,17/09/15,,Technical And Service Support,Catering
141178,EDF ENERGY===================,50152100008,1,"2,488.86",ELECTRICITY,17/09/15,"2,488.86",Technical And Service Support,Utilities
141180,PORT OF LONDON AUTHORITY======,5593673,1,"7,500.00",RENTS,17/09/15,"7,500.00",Technical And Service Support,Human Resources
040915M,CAPITA SECURE INFO SOLUTIONS,6017024479,1,"3,600.00",PROFESSIONAL SERVICES,17/09/15,"3,600.00",Technical And Service Support,ICT
141178,THAMES WATER UTILITIES LTD====,6131857448H,1,344.39,WATER & SEWERAGE RATES,17/09/15,344.39,Technical And Service Support,Utilities
141178,THAMES WATER UTILITIES LTD====,6138388400H,1,789.25,WATER & SEWERAGE RATES,17/09/15,789.25,Technical And Service Support,Utilities
090915M,AECOM INFRASTRUCTURE &,6271620,1,"6,323.48",STRATEGIC (NON CYCLICAL),17/09/15,"6,995.71",Technical and Service Support,Consultancy
090915M,AECOM INFRASTRUCTURE &,6271620,2,672.23,STRATEGIC (NON CYCLICAL),17/09/15,,Technical and Service Support,Consultancy
141178,AFFINITY WATER,63099421-D,1,"1,038.59",WATER & SEWERAGE RATES,17/09/15,"1,038.59",Technical And Service Support,Utilities
090915M,SWEETT  UK LTD,7059764,1,637.28,PROF FEES-MISCELLANEOUS,17/09/15,637.28,Technical and Service Support,"Works - Construction, R&M"
020915H,SWEETT  UK LTD,7061240,1,"3,855.00",PROF FEES-MISCELLANEOUS,17/09/15,"3,855.00",Technical and Service Support,"Works - Construction, R&M"
020915H,SWEETT  UK LTD,7061383,1,"3,855.00",PROF FEES-MISCELLANEOUS,17/09/15,"3,855.00",Technical and Service Support,"Works - Construction, R&M"
020915H,SWEETT  UK LTD,7061386,1,"3,855.00",PROF FEES-MISCELLANEOUS,17/09/15,"3,855.00",Technical and Service Support,"Works - Construction, R&M"
020915H,SWEETT  UK LTD,7061388,1,"3,855.00",PROF FEES-MISCELLANEOUS,17/09/15,"3,855.00",Technical and Service Support,"Works - Construction, R&M"
141180,THAMES WATER UTILITIES LTD====,7285003524I,1,418.95,WATER & SEWERAGE RATES,17/09/15,418.95,Technical And Service Support,Utilities
090915M,CANON (UK) LTD===============,770525781,1,279.26,OFFICE EQUIPMENT,17/09/15,"5,214.29",Technical And Service Support,ICT
090915M,CANON (UK) LTD===============,770525781,2,279.26,OFFICE EQUIPMENT,17/09/15,,Technical And Service Support,ICT
090915M,CANON (UK) LTD===============,770525781,3,279.26,OFFICE EQUIPMENT,17/09/15,,Technical And Service Support,ICT
090915M,CANON (UK) LTD===============,770525781,4,279.26,OFFICE EQUIPMENT,17/09/15,,Technical And Service Support,ICT
090915M,CANON (UK) LTD===============,770525781,5,279.26,OFFICE EQUIPMENT,17/09/15,,Technical And Service Support,ICT
090915M,CANON (UK) LTD===============,770525781,6,279.26,OFFICE EQUIPMENT,17/09/15,,Technical And Service Support,ICT
090915M,CANON (UK) LTD===============,770525781,7,279.26,OFFICE EQUIPMENT,17/09/15,,Technical And Service Support,ICT
090915M,CANON (UK) LTD===============,770525781,8,279.26,OFFICE EQUIPMENT,17/09/15,,Technical And Service Support,ICT
090915M,CANON (UK) LTD===============,770525781,9,279.26,OFFICE EQUIPMENT,17/09/15,,Technical And Service Support,ICT
090915M,CANON (UK) LTD===============,770525781,10,279.26,OFFICE EQUIPMENT,17/09/15,,Technical And Service Support,ICT
090915M,CANON (UK) LTD===============,770525781,11,279.26,OFFICE EQUIPMENT,17/09/15,,Technical And Service Support,ICT
090915M,CANON (UK) LTD===============,770525781,12,279.26,OFFICE EQUIPMENT,17/09/15,,Technical And Service Support,ICT
090915M,CANON (UK) LTD===============,770525781,13,279.26,OFFICE EQUIPMENT,17/09/15,,Technical And Service Support,ICT
090915M,CANON (UK) LTD===============,770525781,14,742.96,OFFICE EQUIPMENT,17/09/15,,Technical And Service Support,ICT
090915M,CANON (UK) LTD===============,770525781,15,450.11,OFFICE EQUIPMENT,17/09/15,,Operations Fire Stations,ICT
090915M,CANON (UK) LTD===============,770525781,16,390.84,OFFICE EQUIPMENT,17/09/15,,Control and Mobilising,ICT
090915M,OFCOM=========================,77869295,1,"3,748.77",RADIO,17/09/15,"3,748.77",Information and Communication Technology,ICT
110915M,*SP SERVICES,784762,1,828.80,HYGIENE,17/09/15,828.80,Operations Non Fire Stations,Healthcare
141178,THAMES WATER UTILITIES LTD====,7877482031H,1,534.06,WATER & SEWERAGE RATES,17/09/15,534.06,Technical And Service Support,Utilities
090915M,FREIGHT TRANSPORT ASSOCIATION=,8249238,1,116.58,GENERAL,17/09/15,505.20,Procurement,Public Transport
090915M,FREIGHT TRANSPORT ASSOCIATION=,8249238,2,388.62,GENERAL,17/09/15,,Procurement,Public Transport
141178,EDF ENERGY===================,83152100008,1,123.27,ELECTRICITY,17/09/15,"2,465.32",Technical And Service Support,Utilities
141178,EDF ENERGY===================,83152100008,2,"2,342.05",ELECTRICITY,17/09/15,,Technical And Service Support,Utilities
090915M,TWO SERVICES LTD==============,83256,1,487.23,TACTICAL DAY TO DAY,17/09/15,487.23,Technical And Service Support,Catering
141180,THAMES WATER UTILITIES LTD====,8864103111I,1,937.31,WATER & SEWERAGE RATES,17/09/15,937.31,Technical And Service Support,Utilities
090915M,NORTHUMBRIAN WATER LTD========,913526398,1,441.50,CURRENT HYDRANT COSTS,17/09/15,441.50,Operational Resilience,Utilities
090915M,NORTHUMBRIAN WATER LTD========,913526428,1,973.50,CURRENT HYDRANT COSTS,17/09/15,973.50,Operational Resilience,Utilities
090915M,NORTHUMBRIAN WATER LTD========,913526479,1,441.55,CURRENT HYDRANT COSTS,17/09/15,441.55,Operational Resilience,Utilities
100915M,NORTHUMBRIAN WATER LTD========,913526495,1,973.50,CURRENT HYDRANT COSTS,17/09/15,973.50,Operational Resilience,Utilities
090915M,NORTHUMBRIAN WATER LTD========,913526509,1,973.50,CURRENT HYDRANT COSTS,17/09/15,973.50,Operational Resilience,Utilities
090915M,NORTHUMBRIAN WATER LTD========,913526533,1,209.00,CURRENT HYDRANT COSTS,17/09/15,"1,043.00",Operational Resilience,Utilities
090915M,NORTHUMBRIAN WATER LTD========,913526533,2,834.00,CURRENT HYDRANT COSTS,17/09/15,,Operational Resilience,Utilities
090915M,NORTHUMBRIAN WATER LTD========,913526622,1,973.50,CURRENT HYDRANT COSTS,17/09/15,973.50,Operational Resilience,Utilities
090915M,NORTHUMBRIAN WATER LTD========,913526630,1,441.55,CURRENT HYDRANT COSTS,17/09/15,441.55,Operational Resilience,Utilities
090915M,NORTHUMBRIAN WATER LTD========,913526657,1,441.55,CURRENT HYDRANT COSTS,17/09/15,441.55,Operational Resilience,Utilities
090915M,NORTHUMBRIAN WATER LTD========,913526673,1,441.55,CURRENT HYDRANT COSTS,17/09/15,441.55,Operational Resilience,Utilities
090915M,NORTHUMBRIAN WATER LTD========,913526681,1,973.50,CURRENT HYDRANT COSTS,17/09/15,973.50,Operational Resilience,Utilities
090915M,NORTHUMBRIAN WATER LTD========,913526703,1,441.55,CURRENT HYDRANT COSTS,17/09/15,441.55,Operational Resilience,Utilities
090915M,NORTHUMBRIAN WATER LTD========,91352672X,1,973.50,CURRENT HYDRANT COSTS,17/09/15,973.50,Operational Resilience,Utilities
090915M,NORTHUMBRIAN WATER LTD========,913526738,1,674.10,CURRENT HYDRANT COSTS,17/09/15,883.10,Operational Resilience,Utilities
090915M,NORTHUMBRIAN WATER LTD========,913526738,2,209.00,CURRENT HYDRANT COSTS,17/09/15,,Operational Resilience,Utilities
100915M,NORTHUMBRIAN WATER LTD========,913552631,1,424.00,CURRENT HYDRANT COSTS,17/09/15,424.00,Operational Resilience,Utilities
100915M,NORTHUMBRIAN WATER LTD========,913552658,1,424.00,CURRENT HYDRANT COSTS,17/09/15,424.00,Operational Resilience,Utilities
100915M,NORTHUMBRIAN WATER LTD========,913552666,1,424.00,CURRENT HYDRANT COSTS,17/09/15,424.00,Operational Resilience,Utilities
100915M,NORTHUMBRIAN WATER LTD========,913552674,1,424.00,CURRENT HYDRANT COSTS,17/09/15,424.00,Operational Resilience,Utilities
100915M,NORTHUMBRIAN WATER LTD========,913552682,1,424.00,CURRENT HYDRANT COSTS,17/09/15,424.00,Operational Resilience,Utilities
100915M,NORTHUMBRIAN WATER LTD========,913552690,1,424.00,CURRENT HYDRANT COSTS,17/09/15,424.00,Operational Resilience,Utilities
141168,BRITISH GAS BUSINESS==========,9300307151,1,53.80,ELECTRICITY,17/09/15,702.39,Technical And Service Support,Utilities
141168,BRITISH GAS BUSINESS==========,9300307151,2,52.23,ELECTRICITY,17/09/15,,Technical And Service Support,Utilities
141168,BRITISH GAS BUSINESS==========,9300307151,3,79.80,ELECTRICITY,17/09/15,,Technical And Service Support,Utilities
141168,BRITISH GAS BUSINESS==========,9300307151,4,63.36,ELECTRICITY,17/09/15,,Technical And Service Support,Utilities
141168,BRITISH GAS BUSINESS==========,9300307151,5,22.87,ELECTRICITY,17/09/15,,Technical And Service Support,Utilities
141168,BRITISH GAS BUSINESS==========,9300307151,6,8.01,ELECTRICITY,17/09/15,,Technical And Service Support,Utilities
141168,BRITISH GAS BUSINESS==========,9300307151,7,11.43,ELECTRICITY,17/09/15,,Technical And Service Support,Utilities
141168,BRITISH GAS BUSINESS==========,9300307151,8,17.06,ELECTRICITY,17/09/15,,Technical And Service Support,Utilities
141168,BRITISH GAS BUSINESS==========,9300307151,9,13.73,ELECTRICITY,17/09/15,,Technical And Service Support,Utilities
141168,BRITISH GAS BUSINESS==========,9300307151,10,18.23,ELECTRICITY,17/09/15,,Technical And Service Support,Utilities
141168,BRITISH GAS BUSINESS==========,9300307151,11,9.94,ELECTRICITY,17/09/15,,Technical And Service Support,Utilities
141168,BRITISH GAS BUSINESS==========,9300307151,12,109.62,ELECTRICITY,17/09/15,,Technical And Service Support,Utilities
141168,BRITISH GAS BUSINESS==========,9300307151,13,27.39,ELECTRICITY,17/09/15,,Technical And Service Support,Utilities
141168,BRITISH GAS BUSINESS==========,9300307151,14,46.50,ELECTRICITY,17/09/15,,Technical And Service Support,Utilities
141168,BRITISH GAS BUSINESS==========,9300307151,15,38.83,ELECTRICITY,17/09/15,,Technical And Service Support,Utilities
141168,BRITISH GAS BUSINESS==========,9300307151,16,22.69,ELECTRICITY,17/09/15,,Technical And Service Support,Utilities
141168,BRITISH GAS BUSINESS==========,9300307151,17,17.33,ELECTRICITY,17/09/15,,Technical And Service Support,Utilities
141168,BRITISH GAS BUSINESS==========,9300307151,18,25.55,ELECTRICITY,17/09/15,,Technical And Service Support,Utilities
141168,BRITISH GAS BUSINESS==========,9300307151,19,14.01,ELECTRICITY,17/09/15,,Technical And Service Support,Utilities
141168,BRITISH GAS BUSINESS==========,9300307151,20,9.67,ELECTRICITY,17/09/15,,Technical And Service Support,Utilities
141168,BRITISH GAS BUSINESS==========,9300307151,21,9.30,ELECTRICITY,17/09/15,,Technical And Service Support,Utilities
141168,BRITISH GAS BUSINESS==========,9300307151,22,10.39,ELECTRICITY,17/09/15,,Technical And Service Support,Utilities
141168,BRITISH GAS BUSINESS==========,9300307151,23,10.48,ELECTRICITY,17/09/15,,Technical And Service Support,Utilities
141168,BRITISH GAS BUSINESS==========,9300307151,24,10.17,ELECTRICITY,17/09/15,,Technical And Service Support,Utilities
090915M,BSRIA LTD=====================,99696,1,450.00,BOOKS & JOURNALS,17/09/15,450.00,Technical And Service Support,Environmental Services
090915M,BRISTOL UNIFORMS LTD==========,BC-08-15-S1440,1,719.69,CLOTHING,17/09/15,719.69,Operations Non Fire Stations,Clothing
110915M,THAMES WATER UTILITIES LTD====,CBA1506997,1,"1,185.00",CURRENT HYDRANT COSTS,17/09/15,"1,185.00",Operational Resilience,Utilities
110915M,THAMES WATER UTILITIES LTD====,CBA1507071,1,"1,185.00",CURRENT HYDRANT COSTS,17/09/15,"1,185.00",Operational Resilience,Utilities
110915M,THAMES WATER UTILITIES LTD====,CBA1507124,1,"1,185.00",CURRENT HYDRANT COSTS,17/09/15,"1,185.00",Operational Resilience,Utilities
110915M,THAMES WATER UTILITIES LTD====,CBA1507276,1,"1,185.00",CURRENT HYDRANT COSTS,17/09/15,"1,185.00",Operational Resilience,Utilities
100915M,E&S B DAVIS LTD,DAV/56862,1,295.00,OPERATIONAL EQUIP-PURCHASE,17/09/15,295.00,Operations Fire Stations,Environmental Services
100915M,E&S B DAVIS LTD,DAV/56917,1,"1,065.00",OPERATIONAL EQUIP-PURCHASE,17/09/15,"1,065.00",Operations Fire Stations,Environmental Services
100915M,E&S B DAVIS LTD,DAV/57715,1,295.00,OPERATIONAL EQUIP-PURCHASE,17/09/15,295.00,Operations Fire Stations,Environmental Services
800065663,ALLSTAR BUSINESS SOLUTIONS LTD,E2005305982,1,639.36,FUEL,17/09/15,"14,657.75",Operations Non Fire Stations,Vehicle Management
800065663,ALLSTAR BUSINESS SOLUTIONS LTD,E2005305982,2,525.36,FUEL,17/09/15,,Procurement,Vehicle Management
800065663,ALLSTAR BUSINESS SOLUTIONS LTD,E2005305982,3,386.26,FUEL,17/09/15,,Operations Fire Stations,Vehicle Management
800065663,ALLSTAR BUSINESS SOLUTIONS LTD,E2005305982,4,370.07,FUEL,17/09/15,,Operations Fire Stations,Vehicle Management
800065663,ALLSTAR BUSINESS SOLUTIONS LTD,E2005305982,5,350.63,FUEL,17/09/15,,Operations Fire Stations,Vehicle Management
800065663,ALLSTAR BUSINESS SOLUTIONS LTD,E2005305982,6,344.18,FUEL,17/09/15,,Operations Fire Stations,Vehicle Management
800065663,ALLSTAR BUSINESS SOLUTIONS LTD,E2005305982,7,297.75,FUEL,17/09/15,,Operations Fire Stations,Vehicle Management
800065663,ALLSTAR BUSINESS SOLUTIONS LTD,E2005305982,8,294.36,FUEL,17/09/15,,Operations Fire Stations,Vehicle Management
800065663,ALLSTAR BUSINESS SOLUTIONS LTD,E2005305982,9,289.40,FUEL,17/09/15,,Operations Fire Stations,Vehicle Management
800065663,ALLSTAR BUSINESS SOLUTIONS LTD,E2005305982,10,281.76,FUEL,17/09/15,,Operations Fire Stations,Vehicle Management
800065663,ALLSTAR BUSINESS SOLUTIONS LTD,E2005305982,11,273.38,FUEL,17/09/15,,Operations Fire Stations,Vehicle Management
800065663,ALLSTAR BUSINESS SOLUTIONS LTD,E2005305982,12,268.54,FUEL,17/09/15,,Operations Fire Stations,Vehicle Management
800065663,ALLSTAR BUSINESS SOLUTIONS LTD,E2005305982,13,263.71,FUEL,17/09/15,,Operations Fire Stations,Vehicle Management
800065663,ALLSTAR BUSINESS SOLUTIONS LTD,E2005305982,14,263.49,FUEL,17/09/15,,Operations Fire Stations,Vehicle Management
800065663,ALLSTAR BUSINESS SOLUTIONS LTD,E2005305982,15,252.61,FUEL,17/09/15,,Operations Fire Stations,Vehicle Management
800065663,ALLSTAR BUSINESS SOLUTIONS LTD,E2005305982,16,243.70,FUEL,17/09/15,,Operations Fire Stations,Vehicle Management
800065663,ALLSTAR BUSINESS SOLUTIONS LTD,E2005305982,17,236.69,FUEL,17/09/15,,Operations Fire Stations,Vehicle Management
800065663,ALLSTAR BUSINESS SOLUTIONS LTD,E2005305982,18,235.95,FUEL,17/09/15,,Operations Fire Stations,Vehicle Management
800065663,ALLSTAR BUSINESS SOLUTIONS LTD,E2005305982,19,199.76,FUEL,17/09/15,,Operations Fire Stations,Vehicle Management
800065663,ALLSTAR BUSINESS SOLUTIONS LTD,E2005305982,20,197.51,FUEL,17/09/15,,Operations Fire Stations,Vehicle Management
800065663,ALLSTAR BUSINESS SOLUTIONS LTD,E2005305982,21,195.00,FUEL,17/09/15,,Operations Fire Stations,Vehicle Management
800065663,ALLSTAR BUSINESS SOLUTIONS LTD,E2005305982,22,191.60,FUEL,17/09/15,,Operations Fire Stations,Vehicle Management
800065663,ALLSTAR BUSINESS SOLUTIONS LTD,E2005305982,23,189.32,FUEL,17/09/15,,Operations Fire Stations,Vehicle Management
800065663,ALLSTAR BUSINESS SOLUTIONS LTD,E2005305982,24,186.56,FUEL,17/09/15,,Operations Fire Stations,Vehicle Management
800065663,ALLSTAR BUSINESS SOLUTIONS LTD,E2005305982,25,184.77,FUEL,17/09/15,,Operations Fire Stations,Vehicle Management
800065663,ALLSTAR BUSINESS SOLUTIONS LTD,E2005305982,26,182.92,FUEL,17/09/15,,Operations Fire Stations,Vehicle Management
800065663,ALLSTAR BUSINESS SOLUTIONS LTD,E2005305982,27,174.71,FUEL,17/09/15,,Operations Fire Stations,Vehicle Management
800065663,ALLSTAR BUSINESS SOLUTIONS LTD,E2005305982,28,171.91,FUEL,17/09/15,,Operations Fire Stations,Vehicle Management
800065663,ALLSTAR BUSINESS SOLUTIONS LTD,E2005305982,29,169.83,FUEL,17/09/15,,Operations Fire Stations,Vehicle Management
800065663,ALLSTAR BUSINESS SOLUTIONS LTD,E2005305982,30,167.94,FUEL,17/09/15,,Operations Fire Stations,Vehicle Management
800065663,ALLSTAR BUSINESS SOLUTIONS LTD,E2005305982,31,166.91,FUEL,17/09/15,,Operations Fire Stations,Vehicle Management
800065663,ALLSTAR BUSINESS SOLUTIONS LTD,E2005305982,32,166.09,FUEL,17/09/15,,Operations Fire Stations,Vehicle Management
800065663,ALLSTAR BUSINESS SOLUTIONS LTD,E2005305982,33,165.30,FUEL,17/09/15,,Operations Fire Stations,Vehicle Management
800065663,ALLSTAR BUSINESS SOLUTIONS LTD,E2005305982,34,164.32,FUEL,17/09/15,,Operations Fire Stations,Vehicle Management
800065663,ALLSTAR BUSINESS SOLUTIONS LTD,E2005305982,35,163.52,FUEL,17/09/15,,Operations Fire Stations,Vehicle Management
800065663,ALLSTAR BUSINESS SOLUTIONS LTD,E2005305982,36,163.31,FUEL,17/09/15,,Operations Fire Stations,Vehicle Management
800065663,ALLSTAR BUSINESS SOLUTIONS LTD,E2005305982,37,159.93,FUEL,17/09/15,,Operations Fire Stations,Vehicle Management
800065663,ALLSTAR BUSINESS SOLUTIONS LTD,E2005305982,38,155.01,FUEL,17/09/15,,Operations Fire Stations,Vehicle Management
800065663,ALLSTAR BUSINESS SOLUTIONS LTD,E2005305982,39,152.22,FUEL,17/09/15,,Command Units,Vehicle Management
800065663,ALLSTAR BUSINESS SOLUTIONS LTD,E2005305982,40,149.03,FUEL,17/09/15,,Operations Fire Stations,Vehicle Management
800065663,ALLSTAR BUSINESS SOLUTIONS LTD,E2005305982,41,145.46,FUEL,17/09/15,,Operations Fire Stations,Vehicle Management
800065663,ALLSTAR BUSINESS SOLUTIONS LTD,E2005305982,42,142.78,FUEL,17/09/15,,Operations Fire Stations,Vehicle Management
800065663,ALLSTAR BUSINESS SOLUTIONS LTD,E2005305982,43,136.01,FUEL,17/09/15,,Operations Fire Stations,Vehicle Management
800065663,ALLSTAR BUSINESS SOLUTIONS LTD,E2005305982,44,134.97,FUEL,17/09/15,,Operations Fire Stations,Vehicle Management
800065663,ALLSTAR BUSINESS SOLUTIONS LTD,E2005305982,45,133.95,FUEL,17/09/15,,Operations Fire Stations,Vehicle Management
800065663,ALLSTAR BUSINESS SOLUTIONS LTD,E2005305982,46,133.19,FUEL,17/09/15,,Operations Fire Stations,Vehicle Management
800065663,ALLSTAR BUSINESS SOLUTIONS LTD,E2005305982,47,131.27,FUEL,17/09/15,,Operations Fire Stations,Vehicle Management
800065663,ALLSTAR BUSINESS SOLUTIONS LTD,E2005305982,48,130.34,FUEL,17/09/15,,Operations Fire Stations,Vehicle Management
800065663,ALLSTAR BUSINESS SOLUTIONS LTD,E2005305982,49,129.12,FUEL,17/09/15,,Operations Fire Stations,Vehicle Management
800065663,ALLSTAR BUSINESS SOLUTIONS LTD,E2005305982,50,127.41,FUEL,17/09/15,,Operations Fire Stations,Vehicle Management
800065663,ALLSTAR BUSINESS SOLUTIONS LTD,E2005305982,51,121.08,FUEL,17/09/15,,Operations Fire Stations,Vehicle Management
800065663,ALLSTAR BUSINESS SOLUTIONS LTD,E2005305982,52,120.52,FUEL,17/09/15,,Operations Fire Stations,Vehicle Management
800065663,ALLSTAR BUSINESS SOLUTIONS LTD,E2005305982,53,117.50,FUEL,17/09/15,,Operations Fire Stations,Vehicle Management
800065663,ALLSTAR BUSINESS SOLUTIONS LTD,E2005305982,54,115.15,FUEL,17/09/15,,Operations Fire Stations,Vehicle Management
800065663,ALLSTAR BUSINESS SOLUTIONS LTD,E2005305982,55,113.68,FUEL,17/09/15,,Technical And Service Support,Vehicle Management
800065663,ALLSTAR BUSINESS SOLUTIONS LTD,E2005305982,56,109.21,FUEL,17/09/15,,Operations Fire Stations,Vehicle Management
800065663,ALLSTAR BUSINESS SOLUTIONS LTD,E2005305982,57,108.93,FUEL,17/09/15,,Command Units,Vehicle Management
800065663,ALLSTAR BUSINESS SOLUTIONS LTD,E2005305982,58,107.69,FUEL,17/09/15,,Operations Fire Stations,Vehicle Management
800065663,ALLSTAR BUSINESS SOLUTIONS LTD,E2005305982,59,105.31,FUEL,17/09/15,,Operations Fire Stations,Vehicle Management
800065663,ALLSTAR BUSINESS SOLUTIONS LTD,E2005305982,60,103.87,FUEL,17/09/15,,Operations Fire Stations,Vehicle Management
800065663,ALLSTAR BUSINESS SOLUTIONS LTD,E2005305982,61,102.42,FUEL,17/09/15,,Operations Fire Stations,Vehicle Management
800065663,ALLSTAR BUSINESS SOLUTIONS LTD,E2005305982,62,101.74,FUEL,17/09/15,,Operations Fire Stations,Vehicle Management
800065663,ALLSTAR BUSINESS SOLUTIONS LTD,E2005305982,63,100.77,FUEL,17/09/15,,Operations Fire Stations,Vehicle Management
800065663,ALLSTAR BUSINESS SOLUTIONS LTD,E2005305982,64,100.66,FUEL,17/09/15,,Operations Fire Stations,Vehicle Management
800065663,ALLSTAR BUSINESS SOLUTIONS LTD,E2005305982,65,99.55,FUEL,17/09/15,,Fire Safety Regulation,Vehicle Management
800065663,ALLSTAR BUSINESS SOLUTIONS LTD,E2005305982,66,98.85,FUEL,17/09/15,,Operations Fire Stations,Vehicle Management
800065663,ALLSTAR BUSINESS SOLUTIONS LTD,E2005305982,67,98.52,FUEL,17/09/15,,Command Units,Vehicle Management
800065663,ALLSTAR BUSINESS SOLUTIONS LTD,E2005305982,68,98.36,FUEL,17/09/15,,Operations Fire Stations,Vehicle Management
800065663,ALLSTAR BUSINESS SOLUTIONS LTD,E2005305982,69,97.29,FUEL,17/09/15,,Operations Fire Stations,Vehicle Management
800065663,ALLSTAR BUSINESS SOLUTIONS LTD,E2005305982,70,96.97,FUEL,17/09/15,,Operations Fire Stations,Vehicle Management
800065663,ALLSTAR BUSINESS SOLUTIONS LTD,E2005305982,71,96.13,FUEL,17/09/15,,Information and Communication Technology,Vehicle Management
800065663,ALLSTAR BUSINESS SOLUTIONS LTD,E2005305982,72,96.08,FUEL,17/09/15,,Operational Resilience,Vehicle Management
800065663,ALLSTAR BUSINESS SOLUTIONS LTD,E2005305982,73,95.79,FUEL,17/09/15,,Operations Fire Stations,Vehicle Management
800065663,ALLSTAR BUSINESS SOLUTIONS LTD,E2005305982,74,92.12,FUEL,17/09/15,,Operations Fire Stations,Vehicle Management
800065663,ALLSTAR BUSINESS SOLUTIONS LTD,E2005305982,75,90.56,FUEL,17/09/15,,Operations Fire Stations,Vehicle Management
800065663,ALLSTAR BUSINESS SOLUTIONS LTD,E2005305982,76,85.54,FUEL,17/09/15,,Operations Fire Stations,Vehicle Management
800065663,ALLSTAR BUSINESS SOLUTIONS LTD,E2005305982,77,79.87,FUEL,17/09/15,,Command Units,Vehicle Management
800065663,ALLSTAR BUSINESS SOLUTIONS LTD,E2005305982,78,78.02,FUEL,17/09/15,,Operations Fire Stations,Vehicle Management
800065663,ALLSTAR BUSINESS SOLUTIONS LTD,E2005305982,79,66.30,FUEL,17/09/15,,Operations Fire Stations,Vehicle Management
800065663,ALLSTAR BUSINESS SOLUTIONS LTD,E2005305982,80,65.86,FUEL,17/09/15,,Operations Fire Stations,Vehicle Management
800065663,ALLSTAR BUSINESS SOLUTIONS LTD,E2005305982,81,63.79,FUEL,17/09/15,,Operations Non Fire Stations,Vehicle Management
800065663,ALLSTAR BUSINESS SOLUTIONS LTD,E2005305982,82,61.30,FUEL,17/09/15,,Command Units,Vehicle Management
800065663,ALLSTAR BUSINESS SOLUTIONS LTD,E2005305982,83,57.95,FUEL,17/09/15,,Command Units,Vehicle Management
800065663,ALLSTAR BUSINESS SOLUTIONS LTD,E2005305982,84,57.59,FUEL,17/09/15,,Operations Fire Stations,Vehicle Management
800065663,ALLSTAR BUSINESS SOLUTIONS LTD,E2005305982,85,56.83,FUEL,17/09/15,,Operations Fire Stations,Vehicle Management
800065663,ALLSTAR BUSINESS SOLUTIONS LTD,E2005305982,86,54.95,FUEL,17/09/15,,Operations Fire Stations,Vehicle Management
800065663,ALLSTAR BUSINESS SOLUTIONS LTD,E2005305982,87,52.61,FUEL,17/09/15,,Operations Fire Stations,Vehicle Management
800065663,ALLSTAR BUSINESS SOLUTIONS LTD,E2005305982,88,45.85,FUEL,17/09/15,,Operations Fire Stations,Vehicle Management
800065663,ALLSTAR BUSINESS SOLUTIONS LTD,E2005305982,89,42.24,FUEL,17/09/15,,Operations Fire Stations,Vehicle Management
800065663,ALLSTAR BUSINESS SOLUTIONS LTD,E2005305982,90,42.23,FUEL,17/09/15,,Command Units,Vehicle Management
800065663,ALLSTAR BUSINESS SOLUTIONS LTD,E2005305982,91,38.50,FUEL,17/09/15,,Command Units,Vehicle Management
800065663,ALLSTAR BUSINESS SOLUTIONS LTD,E2005305982,92,34.38,FUEL,17/09/15,,Technical And Service Support,Vehicle Management
800065663,ALLSTAR BUSINESS SOLUTIONS LTD,E2005305982,93,29.86,FUEL,17/09/15,,Operational Policy,Vehicle Management
800065663,ALLSTAR BUSINESS SOLUTIONS LTD,E2005305982,94,20.16,FUEL,17/09/15,,CBRN RRT,Vehicle Management
800065663,ALLSTAR BUSINESS SOLUTIONS LTD,E2005305982,95,9.00,FUEL,17/09/15,,Operations Fire Stations,Vehicle Management
800065663,ALLSTAR BUSINESS SOLUTIONS LTD,E2005305982,96,7.00,FUEL,17/09/15,,Operations Fire Stations,Vehicle Management
800065663,ALLSTAR BUSINESS SOLUTIONS LTD,E2005305982,97,6.00,FUEL,17/09/15,,Operations Fire Stations,Vehicle Management
800065663,ALLSTAR BUSINESS SOLUTIONS LTD,E2005305982,98,5.00,FUEL,17/09/15,,Operational Resilience,Vehicle Management
800065663,ALLSTAR BUSINESS SOLUTIONS LTD,E2005305982,99,4.00,FUEL,17/09/15,,Operations Fire Stations,Vehicle Management
800065663,ALLSTAR BUSINESS SOLUTIONS LTD,E2005305982,100,3.00,FUEL,17/09/15,,Operations Fire Stations,Vehicle Management
800065663,ALLSTAR BUSINESS SOLUTIONS LTD,E2005305982,101,3.00,FUEL,17/09/15,,Operations Fire Stations,Vehicle Management
800065663,ALLSTAR BUSINESS SOLUTIONS LTD,E2005305982,102,3.00,FUEL,17/09/15,,Operations Fire Stations,Vehicle Management
800065663,ALLSTAR BUSINESS SOLUTIONS LTD,E2005305982,103,3.00,FUEL,17/09/15,,Operations Fire Stations,Vehicle Management
800065663,ALLSTAR BUSINESS SOLUTIONS LTD,E2005305982,104,3.00,FUEL,17/09/15,,Operations Fire Stations,Vehicle Management
800065663,ALLSTAR BUSINESS SOLUTIONS LTD,E2005305982,105,3.00,FUEL,17/09/15,,Operations Fire Stations,Vehicle Management
800065663,ALLSTAR BUSINESS SOLUTIONS LTD,E2005305982,106,3.00,FUEL,17/09/15,,LIFE - LFB Funded,Vehicle Management
800065663,ALLSTAR BUSINESS SOLUTIONS LTD,E2005305982,107,2.00,FUEL,17/09/15,,Operations Fire Stations,Vehicle Management
800065663,ALLSTAR BUSINESS SOLUTIONS LTD,E2005305982,108,1.00,FUEL,17/09/15,,Operations Non Fire Stations,Vehicle Management
800065663,ALLSTAR BUSINESS SOLUTIONS LTD,E2005305982,109,1.00,FUEL,17/09/15,,Targeted Development & Graduate Recruitment,Vehicle Management
100915M,JOANNE ABLACK=================,FB10-08-2015,1,600.00,CONSULTANTS,17/09/15,600.00,HR Management,Human Resources
110915M,HALL FUELS,I07801193,1,"1,749.60",FUEL,17/09/15,"1,749.60",Operations Fire Stations,Vehicle Management
110915M,HALL FUELS,I07812334,1,"2,601.60",FUEL,17/09/15,"2,601.60",Operations Fire Stations,Vehicle Management
110915M,HALL FUELS,I07822016,1,"2,601.60",FUEL,17/09/15,"2,601.60",Operations Fire Stations,Vehicle Management
100915M,INTUITIVE SYSTEMS AND NETWORKS,ISN00012191,1,"5,900.00",RADIO,17/09/15,"5,900.00",Information and Communication Technology,Consultancy
110915M,SMITH O'SULLIVAN LTD.=========,LFB/HFS/003B,1,"2,181.72",STRATEGIC (NON CYCLICAL),17/09/15,"2,181.72",Technical and Service Support,"Works - Construction, R&M"
141176,LPFA CONTRIBUTIONS ACCOUNT====,LPFA98,1,"4,306.59",PENSION SERVICES,17/09/15,"4,306.59",Central Finance,Financial Services
110915M,COFELY WORKPLACE LIMITED,M137209,1,440.72,STRATEGIC (NON CYCLICAL),17/09/15,440.72,Technical and Service Support,"Works - Construction, R&M"
090915M,MTI TECHNOLOGY LTD,OP/I356995,1,"20,000.00",PURCHASES-COMPUTER/EQUIPMENT,17/09/15,"116,540.22",Information and Communication Technology,ICT
090915M,MTI TECHNOLOGY LTD,OP/I356995,2,237.72,PURCHASES-COMPUTER/EQUIPMENT,17/09/15,,Information and Communication Technology,ICT
090915M,MTI TECHNOLOGY LTD,OP/I356995,3,"75,650.00",PURCHASES-COMPUTER/EQUIPMENT,17/09/15,,Information and Communication Technology,ICT
090915M,MTI TECHNOLOGY LTD,OP/I356995,4,"2,152.50",PURCHASES-COMPUTER/EQUIPMENT,17/09/15,,Information and Communication Technology,ICT
090915M,MTI TECHNOLOGY LTD,OP/I356995,5,"18,500.00",PURCHASES-COMPUTER/EQUIPMENT,17/09/15,,Information and Communication Technology,ICT
090915M,SECURITAS SECURITY SERVICES LT,S-SIN0349626,1,"329,131.34",GENERAL,17/09/15,"329,131.34",Procurement,Fire & Rescue
090915M,SECURITAS SECURITY SERVICES LT,S-SIN0349627,1,"33,121.25",GENERAL,17/09/15,"33,121.25",Procurement,Fire & Rescue
090915M,SECURITAS SECURITY SERVICES LT,S-SIN0349629,1,"93,726.72",GENERAL,17/09/15,"93,726.72",Business Continuity,Fire & Rescue
090915M,GEOWISE LTD,SIN001375,1,592.50,CONSULTANTS,17/09/15,592.50,Information Management,ICT
110915M,SABRE SAFETY LTD,SUKIN16052,1,510.00,PROTECTIVE EQUIPT - PARTS,17/09/15,522.50,Technical and Service Support,Fire & Rescue
110915M,SABRE SAFETY LTD,SUKIN16052,2,12.50,REPAIR & MAINTENANCE,17/09/15,,Technical And Service Support,Fire & Rescue
150915H,JEWERS SPECIALIST DOORS=======,0000003132,1,775.00,STRATEGIC (NON CYCLICAL),21/09/15,775.00,Technical and Service Support,"Works - Construction, R&M"
150915H,MOOLANDS LTD,00002939,1,"6,587.00",STRATEGIC (NON CYCLICAL),21/09/15,"6,587.00",Technical and Service Support,"Works - Construction, R&M"
160915M,NORTHUMBERLAND COUNTY COUNCIL,116430,1,"4,639.99",PROFESSIONAL DEVELOPMENT,21/09/15,"4,639.99",National Operational Guidance Project,Statutory Bodies
020915H,SAFEGUARD PEST CON. & ENV.LTD,137444,1,185.00,PEST CONTROL,21/09/15,925.00,Technical And Service Support,Environmental Services
020915H,SAFEGUARD PEST CON. & ENV.LTD,137444,2,185.00,PEST CONTROL,21/09/15,,Technical And Service Support,Environmental Services
020915H,SAFEGUARD PEST CON. & ENV.LTD,137444,3,185.00,PEST CONTROL,21/09/15,,Technical And Service Support,Environmental Services
020915H,SAFEGUARD PEST CON. & ENV.LTD,137444,4,185.00,PEST CONTROL,21/09/15,,Technical And Service Support,Environmental Services
020915H,SAFEGUARD PEST CON. & ENV.LTD,137444,5,185.00,PEST CONTROL,21/09/15,,Technical And Service Support,Environmental Services
020915M,SAFEGUARD PEST CON. & ENV.LTD,137678,1,42.00,PEST CONTROL,21/09/15,294.00,Technical And Service Support,Environmental Services
020915M,SAFEGUARD PEST CON. & ENV.LTD,137678,2,42.00,PEST CONTROL,21/09/15,,Technical And Service Support,Environmental Services
020915M,SAFEGUARD PEST CON. & ENV.LTD,137678,3,42.00,PEST CONTROL,21/09/15,,Technical And Service Support,Environmental Services
020915M,SAFEGUARD PEST CON. & ENV.LTD,137678,4,42.00,PEST CONTROL,21/09/15,,Technical And Service Support,Environmental Services
020915M,SAFEGUARD PEST CON. & ENV.LTD,137678,5,42.00,PEST CONTROL,21/09/15,,Technical And Service Support,Environmental Services
020915M,SAFEGUARD PEST CON. & ENV.LTD,137678,6,42.00,PEST CONTROL,21/09/15,,Technical And Service Support,Environmental Services
020915M,SAFEGUARD PEST CON. & ENV.LTD,137678,7,42.00,PEST CONTROL,21/09/15,,Technical And Service Support,Environmental Services
110915M,KIER BUILDING SERV ENGINEERS==,15020612,1,"13,978.12",STRATEGIC (CYCLICAL),21/09/15,"13,978.12",Technical And Service Support,"Works - Construction, R&M"
110915M,KIER BUILDING SERV ENGINEERS==,15020614,1,"31,352.62",TACTICAL DAY TO DAY,21/09/15,"70,134.01",Technical And Service Support,"Works - Construction, R&M"
110915M,KIER BUILDING SERV ENGINEERS==,15020614,2,567.26,TACTICAL DAY TO DAY,21/09/15,,Technical And Service Support,"Works - Construction, R&M"
110915M,KIER BUILDING SERV ENGINEERS==,15020614,3,"1,796.69",TACTICAL DAY TO DAY,21/09/15,,Technical And Service Support,"Works - Construction, R&M"
110915M,KIER BUILDING SERV ENGINEERS==,15020614,4,"2,268.24",TACTICAL DAY TO DAY,21/09/15,,Technical And Service Support,"Works - Construction, R&M"
110915M,KIER BUILDING SERV ENGINEERS==,15020614,5,"25,739.02",STRATEGIC (CYCLICAL),21/09/15,,Technical And Service Support,"Works - Construction, R&M"
110915M,KIER BUILDING SERV ENGINEERS==,15020614,6,849.13,STRATEGIC (CYCLICAL),21/09/15,,Technical And Service Support,"Works - Construction, R&M"
110915M,KIER BUILDING SERV ENGINEERS==,15020614,7,"1,619.86",STRATEGIC (CYCLICAL),21/09/15,,Technical And Service Support,"Works - Construction, R&M"
110915M,KIER BUILDING SERV ENGINEERS==,15020614,8,"5,941.19",STRATEGIC (CYCLICAL),21/09/15,,Technical And Service Support,"Works - Construction, R&M"
110915M,KIER BUILDING SERV ENGINEERS==,15020615,1,"13,978.12",STRATEGIC (CYCLICAL),21/09/15,"13,978.12",Technical And Service Support,"Works - Construction, R&M"
110915M,KIER BUILDING SERV ENGINEERS==,15020616,1,"13,978.12",STRATEGIC (CYCLICAL),21/09/15,"13,978.12",Technical And Service Support,"Works - Construction, R&M"
110915M,KIER BUILDING SERV ENGINEERS==,15020617,1,"13,978.12",STRATEGIC (CYCLICAL),21/09/15,"13,978.12",Technical And Service Support,"Works - Construction, R&M"
110915M,KIER BUILDING SERV ENGINEERS==,15020618,1,"31,352.62",TACTICAL DAY TO DAY,21/09/15,"69,134.01",Technical And Service Support,"Works - Construction, R&M"
110915M,KIER BUILDING SERV ENGINEERS==,15020618,2,567.26,TACTICAL DAY TO DAY,21/09/15,,Technical And Service Support,"Works - Construction, R&M"
110915M,KIER BUILDING SERV ENGINEERS==,15020618,3,"1,796.69",TACTICAL DAY TO DAY,21/09/15,,Technical And Service Support,"Works - Construction, R&M"
110915M,KIER BUILDING SERV ENGINEERS==,15020618,4,"2,268.24",TACTICAL DAY TO DAY,21/09/15,,Technical And Service Support,"Works - Construction, R&M"
110915M,KIER BUILDING SERV ENGINEERS==,15020618,5,"24,739.02",STRATEGIC (CYCLICAL),21/09/15,,Technical And Service Support,"Works - Construction, R&M"
110915M,KIER BUILDING SERV ENGINEERS==,15020618,6,849.13,STRATEGIC (CYCLICAL),21/09/15,,Technical And Service Support,"Works - Construction, R&M"
110915M,KIER BUILDING SERV ENGINEERS==,15020618,7,"1,619.86",STRATEGIC (CYCLICAL),21/09/15,,Technical And Service Support,"Works - Construction, R&M"
110915M,KIER BUILDING SERV ENGINEERS==,15020618,8,"5,941.19",STRATEGIC (CYCLICAL),21/09/15,,Technical And Service Support,"Works - Construction, R&M"
110915M,KIER BUILDING SERV ENGINEERS==,15020619,1,"31,352.62",TACTICAL DAY TO DAY,21/09/15,"69,964.01",Technical And Service Support,"Works - Construction, R&M"
110915M,KIER BUILDING SERV ENGINEERS==,15020619,2,567.26,TACTICAL DAY TO DAY,21/09/15,,Technical And Service Support,"Works - Construction, R&M"
110915M,KIER BUILDING SERV ENGINEERS==,15020619,3,"1,796.69",TACTICAL DAY TO DAY,21/09/15,,Technical And Service Support,"Works - Construction, R&M"
110915M,KIER BUILDING SERV ENGINEERS==,15020619,4,"2,268.24",TACTICAL DAY TO DAY,21/09/15,,Technical And Service Support,"Works - Construction, R&M"
110915M,KIER BUILDING SERV ENGINEERS==,15020619,5,"25,569.02",STRATEGIC (CYCLICAL),21/09/15,,Technical And Service Support,"Works - Construction, R&M"
110915M,KIER BUILDING SERV ENGINEERS==,15020619,6,849.13,STRATEGIC (CYCLICAL),21/09/15,,Technical And Service Support,"Works - Construction, R&M"
110915M,KIER BUILDING SERV ENGINEERS==,15020619,7,"1,619.86",STRATEGIC (CYCLICAL),21/09/15,,Technical And Service Support,"Works - Construction, R&M"
110915M,KIER BUILDING SERV ENGINEERS==,15020619,8,"5,941.19",STRATEGIC (CYCLICAL),21/09/15,,Technical And Service Support,"Works - Construction, R&M"
110915M,KIER BUILDING SERV ENGINEERS==,15020620,1,"31,352.62",TACTICAL DAY TO DAY,21/09/15,"69,964.01",Technical And Service Support,"Works - Construction, R&M"
110915M,KIER BUILDING SERV ENGINEERS==,15020620,2,567.26,TACTICAL DAY TO DAY,21/09/15,,Technical And Service Support,"Works - Construction, R&M"
110915M,KIER BUILDING SERV ENGINEERS==,15020620,3,"1,796.69",TACTICAL DAY TO DAY,21/09/15,,Technical And Service Support,"Works - Construction, R&M"
110915M,KIER BUILDING SERV ENGINEERS==,15020620,4,"2,268.24",TACTICAL DAY TO DAY,21/09/15,,Technical And Service Support,"Works - Construction, R&M"
110915M,KIER BUILDING SERV ENGINEERS==,15020620,5,"25,569.02",STRATEGIC (CYCLICAL),21/09/15,,Technical And Service Support,"Works - Construction, R&M"
110915M,KIER BUILDING SERV ENGINEERS==,15020620,6,849.13,STRATEGIC (CYCLICAL),21/09/15,,Technical And Service Support,"Works - Construction, R&M"
110915M,KIER BUILDING SERV ENGINEERS==,15020620,7,"1,619.86",STRATEGIC (CYCLICAL),21/09/15,,Technical And Service Support,"Works - Construction, R&M"
110915M,KIER BUILDING SERV ENGINEERS==,15020620,8,"5,941.19",STRATEGIC (CYCLICAL),21/09/15,,Technical And Service Support,"Works - Construction, R&M"
110915M,KIER BUILDING SERV ENGINEERS==,15020623,1,"31,352.62",TACTICAL DAY TO DAY,21/09/15,"70,134.01",Technical And Service Support,"Works - Construction, R&M"
110915M,KIER BUILDING SERV ENGINEERS==,15020623,2,567.26,TACTICAL DAY TO DAY,21/09/15,,Technical And Service Support,"Works - Construction, R&M"
110915M,KIER BUILDING SERV ENGINEERS==,15020623,3,"1,796.69",TACTICAL DAY TO DAY,21/09/15,,Technical And Service Support,"Works - Construction, R&M"
110915M,KIER BUILDING SERV ENGINEERS==,15020623,4,"2,268.24",TACTICAL DAY TO DAY,21/09/15,,Technical And Service Support,"Works - Construction, R&M"
110915M,KIER BUILDING SERV ENGINEERS==,15020623,5,"25,739.02",STRATEGIC (CYCLICAL),21/09/15,,Technical And Service Support,"Works - Construction, R&M"
110915M,KIER BUILDING SERV ENGINEERS==,15020623,6,849.13,STRATEGIC (CYCLICAL),21/09/15,,Technical And Service Support,"Works - Construction, R&M"
110915M,KIER BUILDING SERV ENGINEERS==,15020623,7,"1,619.86",STRATEGIC (CYCLICAL),21/09/15,,Technical And Service Support,"Works - Construction, R&M"
110915M,KIER BUILDING SERV ENGINEERS==,15020623,8,"5,941.19",STRATEGIC (CYCLICAL),21/09/15,,Technical And Service Support,"Works - Construction, R&M"
140915M,AIRSERVICES(UK)===============,18160,1,572.00,REPAIR & MAINTENANCE,21/09/15,572.00,Technical And Service Support,Fire & Rescue
141185,MISS AILSA WILLIAMSON=========,236241,1,"2,100.00",PROFESSIONAL FEES ENFORCEMENT,21/09/15,"2,100.00",Legal & Democratic Services,Legal Services
090915M,VODAFONE DATA SOLUTIONS======,238674,1,"1,015.00",TELECOMMUNICATIONS,21/09/15,"1,033.71",Information and Communication Technology,ICT
090915M,VODAFONE DATA SOLUTIONS======,238674,2,18.71,TELECOMMUNICATIONS,21/09/15,,Information and Communication Technology,ICT
800065743,ADECCO UK LIMITED=============,27149181,1,499.52,FRS STAFF AGENCY,21/09/15,499.52,Procurement,Human Resources
800065744,ADECCO UK LIMITED=============,27155293,1,570.88,FRS STAFF AGENCY,21/09/15,570.88,Procurement,Human Resources
800065745,ADECCO UK LIMITED=============,27162060,1,624.40,FRS STAFF AGENCY,21/09/15,624.40,Procurement,Human Resources
800065746,ADECCO UK LIMITED=============,27168520,1,499.52,FRS STAFF AGENCY,21/09/15,499.52,Procurement,Human Resources
800065747,ADECCO UK LIMITED=============,27175038,1,624.40,FRS STAFF AGENCY,21/09/15,624.40,Procurement,Human Resources
800065704,ADECCO UK LIMITED=============,27181421,1,942.20,FRS STAFF AGENCY,21/09/15,942.20,National Operational Guidance Project,Human Resources
800065748,ADECCO UK LIMITED=============,27181444,1,624.40,FRS STAFF AGENCY,21/09/15,624.40,Procurement,Human Resources
800065705,ADECCO UK LIMITED=============,27187684,1,942.20,FRS STAFF AGENCY,21/09/15,942.20,National Operational Guidance Project,Human Resources
800065749,ADECCO UK LIMITED=============,27187701,1,624.40,FRS STAFF AGENCY,21/09/15,624.40,Procurement,Human Resources
800065706,ADECCO UK LIMITED=============,27193972,1,942.20,FRS STAFF AGENCY,21/09/15,942.20,National Operational Guidance Project,Human Resources
150915H,ARKAS LIMITED=================,27577,1,"1,474.00",STRATEGIC (CYCLICAL),21/09/15,"1,474.00",Technical and Service Support,"Works - Construction, R&M"
100915M,B NOKES CONTRACTS LTD,2881,1,"1,156.00",TACTICAL DAY TO DAY,21/09/15,"1,156.00",Technical And Service Support,"Works - Construction, R&M"
150915H,B NOKES CONTRACTS LTD,2883,1,"9,817.50",STRATEGIC (NON CYCLICAL),21/09/15,"9,817.50",Technical and Service Support,"Works - Construction, R&M"
100915M,B NOKES CONTRACTS LTD,2888,1,295.00,TACTICAL DAY TO DAY,21/09/15,295.00,LIFE - LFB Funded,"Works - Construction, R&M"
160915M,B NOKES CONTRACTS LTD,2890,1,"1,210.50",STRATEGIC (NON CYCLICAL),21/09/15,"1,210.50",Technical and Service Support,"Works - Construction, R&M"
140915M,DRAEGER SAFETY UK LIMITED=====,2910027402,1,424.80,PROTECTIVE EQUIPT - PARTS,21/09/15,424.80,Technical and Service Support,Fire & Rescue
140915M,DRAEGER SAFETY UK LIMITED=====,2910027734,1,"1,209.35",PROTECTIVE EQUIPT - PARTS,21/09/15,"1,209.35",Technical and Service Support,Fire & Rescue
140915M,DRAEGER SAFETY UK LIMITED=====,2910028066,1,332.81,PROTECTIVE EQUIPT - PARTS,21/09/15,332.81,Technical and Service Support,Fire & Rescue
140915M,DRAEGER SAFETY UK LIMITED=====,2910028085,1,693.35,PROTECTIVE EQUIPT - PARTS,21/09/15,693.35,Technical and Service Support,Fire & Rescue
140915M,DRAEGER SAFETY UK LIMITED=====,2910028207,1,346.67,PROTECTIVE EQUIPT - PARTS,21/09/15,346.67,Technical and Service Support,Fire & Rescue
140915M,DRAEGER SAFETY UK LIMITED=====,2910028292,1,"3,757.44",PROTECTIVE EQUIPT - PARTS,21/09/15,"3,757.44",Technical and Service Support,Fire & Rescue
150915H,FRS COUNTRYWEAR LTD===========,344589,1,"1,032.00",UNIFORMS - POMS,21/09/15,"1,032.00",Procurement,Clothing
141180,HENRY STREETER (AUTOMOTIVE)==,3597,1,"32,596.00",RENTS,21/09/15,"32,596.00",Technical And Service Support,Financial Services
160915M,EVOLUTION ENVIRONMENTAL LTD,3927,1,710.00,PROF FEES-MISCELLANEOUS,21/09/15,710.00,Technical and Service Support,"Works - Construction, R&M"
090915M,VIGILANCE PROPERTIES,3931,1,"7,500.00",PREMISES SECURITY,21/09/15,"7,500.00",Technical And Service Support,Facilities & Management S
090915M,VIGILANCE PROPERTIES,3932,1,"4,750.00",PREMISES SECURITY,21/09/15,"4,750.00",Technical And Service Support,Facilities & Management S
090915M,VIGILANCE PROPERTIES,3933,1,"4,750.00",PREMISES SECURITY,21/09/15,"4,750.00",Technical And Service Support,Facilities & Management S
090915M,VIGILANCE PROPERTIES,3934,1,"7,125.00",PREMISES SECURITY,21/09/15,"7,125.00",Technical And Service Support,Facilities & Management S
090915M,VIGILANCE PROPERTIES,3935,1,"4,750.00",PREMISES SECURITY,21/09/15,"4,750.00",Technical And Service Support,Facilities & Management S
090915M,VIGILANCE PROPERTIES,3936,1,"4,750.00",PREMISES SECURITY,21/09/15,"4,750.00",Technical And Service Support,Facilities & Management S
150915H,LEVEL 3 COMMUNICATIONS UK,39445380/828317,1,"2,102.01",MAINTENANCE & SUPPORT,21/09/15,"2,102.01",Information and Communication Technology,ICT
150915H,LEVEL 3 COMMUNICATIONS UK,39700446/831145,1,"2,102.01",MAINTENANCE & SUPPORT,21/09/15,"16,117.92",Information and Communication Technology,ICT
150915H,LEVEL 3 COMMUNICATIONS UK,39700446/831145,2,"14,015.91",MAINTENANCE & SUPPORT,21/09/15,,Information and Communication Technology,ICT
070915M,UNDERSTANDING RECRUITMENT,4210,1,"8,740.00",FRS STAFF AGENCY,21/09/15,"8,740.00",Information and Communication Technology,Human Resources
100915M,UNDERSTANDING RECRUITMENT,4212,1,"8,400.00",FRS STAFF AGENCY,21/09/15,"8,400.00",Information and Communication Technology,Human Resources
100915M,UNDERSTANDING RECRUITMENT,4221,1,700.00,FRS STAFF AGENCY,21/09/15,700.00,Information and Communication Technology,Human Resources
141185,THOMSON REUTERS PROFESSIONAL,4500440105,1,876.00,BOOKS & JOURNALS,21/09/15,876.00,Legal & Democratic Services,Financial Services
160915M,*OCS GROUP UK LTD,5000129070,1,"3,278.55",CATERING,21/09/15,"4,382.67",Technical And Service Support,Catering
160915M,*OCS GROUP UK LTD,5000129070,2,188.90,CATERING,21/09/15,,Technical And Service Support,Catering
160915M,*OCS GROUP UK LTD,5000129070,3,687.72,CATERING,21/09/15,,Technical And Service Support,Catering
160915M,*OCS GROUP UK LTD,5000129070,4,227.50,CATERING,21/09/15,,Technical And Service Support,Catering
141178,ARQUIVA LIMITED===============,52028819,1,"3,629.00",RENTS,21/09/15,"3,629.00",Technical And Service Support,Building Constr Materials
150915H,FAHEY BUILDERS LTD============,5286,1,"15,400.00",STRATEGIC (NON CYCLICAL),21/09/15,"15,400.00",Technical and Service Support,"Works - Construction, R&M"
090915M,CK DIRECT,5635,1,"3,952.00",CATERING FIXTURES,21/09/15,"3,952.00",Technical And Service Support,Facilities & Management S
141181,BRITISH GAS BUSINESS==========,5802002151,1,613.45,ELECTRICITY,21/09/15,"22,358.85",Technical And Service Support,Utilities
141181,BRITISH GAS BUSINESS==========,5802002151,2,758.27,ELECTRICITY,21/09/15,,Technical And Service Support,Utilities
141181,BRITISH GAS BUSINESS==========,5802002151,3,779.26,ELECTRICITY,21/09/15,,Technical And Service Support,Utilities
141181,BRITISH GAS BUSINESS==========,5802002151,4,750.65,ELECTRICITY,21/09/15,,Technical And Service Support,Utilities
141181,BRITISH GAS BUSINESS==========,5802002151,5,174.77,ELECTRICITY,21/09/15,,Technical And Service Support,Utilities
141181,BRITISH GAS BUSINESS==========,5802002151,6,316.61,ELECTRICITY,21/09/15,,Technical And Service Support,Utilities
141181,BRITISH GAS BUSINESS==========,5802002151,7,"1,326.51",ELECTRICITY,21/09/15,,Technical And Service Support,Utilities
141181,BRITISH GAS BUSINESS==========,5802002151,8,460.78,ELECTRICITY,21/09/15,,Technical And Service Support,Utilities
141181,BRITISH GAS BUSINESS==========,5802002151,9,290.86,ELECTRICITY,21/09/15,,Technical And Service Support,Utilities
141181,BRITISH GAS BUSINESS==========,5802002151,10,468.62,ELECTRICITY,21/09/15,,Technical And Service Support,Utilities
141181,BRITISH GAS BUSINESS==========,5802002151,11,"1,488.01",ELECTRICITY,21/09/15,,Technical And Service Support,Utilities
141181,BRITISH GAS BUSINESS==========,5802002151,12,634.50,ELECTRICITY,21/09/15,,Technical And Service Support,Utilities
141181,BRITISH GAS BUSINESS==========,5802002151,13,384.48,ELECTRICITY,21/09/15,,Technical And Service Support,Utilities
141181,BRITISH GAS BUSINESS==========,5802002151,14,241.56,ELECTRICITY,21/09/15,,Technical And Service Support,Utilities
141181,BRITISH GAS BUSINESS==========,5802002151,15,330.36,ELECTRICITY,21/09/15,,Technical And Service Support,Utilities
141181,BRITISH GAS BUSINESS==========,5802002151,16,347.25,ELECTRICITY,21/09/15,,Technical And Service Support,Utilities
141181,BRITISH GAS BUSINESS==========,5802002151,17,460.74,ELECTRICITY,21/09/15,,Technical And Service Support,Utilities
141181,BRITISH GAS BUSINESS==========,5802002151,18,435.45,ELECTRICITY,21/09/15,,Technical And Service Support,Utilities
141181,BRITISH GAS BUSINESS==========,5802002151,19,175.57,ELECTRICITY,21/09/15,,Technical And Service Support,Utilities
141181,BRITISH GAS BUSINESS==========,5802002151,20,495.63,ELECTRICITY,21/09/15,,Technical And Service Support,Utilities
141181,BRITISH GAS BUSINESS==========,5802002151,21,401.95,ELECTRICITY,21/09/15,,Technical And Service Support,Utilities
141181,BRITISH GAS BUSINESS==========,5802002151,22,"1,007.92",ELECTRICITY,21/09/15,,Technical And Service Support,Utilities
141181,BRITISH GAS BUSINESS==========,5802002151,23,862.17,ELECTRICITY,21/09/15,,Technical And Service Support,Utilities
141181,BRITISH GAS BUSINESS==========,5802002151,24,373.81,ELECTRICITY,21/09/15,,Technical And Service Support,Utilities
141181,BRITISH GAS BUSINESS==========,5802002151,25,521.23,ELECTRICITY,21/09/15,,Technical And Service Support,Utilities
141181,BRITISH GAS BUSINESS==========,5802002151,26,778.06,ELECTRICITY,21/09/15,,Technical And Service Support,Utilities
141181,BRITISH GAS BUSINESS==========,5802002151,27,423.78,ELECTRICITY,21/09/15,,Technical And Service Support,Utilities
141181,BRITISH GAS BUSINESS==========,5802002151,28,699.02,ELECTRICITY,21/09/15,,Technical And Service Support,Utilities
141181,BRITISH GAS BUSINESS==========,5802002151,29,144.97,ELECTRICITY,21/09/15,,Technical And Service Support,Utilities
141181,BRITISH GAS BUSINESS==========,5802002151,30,395.22,ELECTRICITY,21/09/15,,Technical And Service Support,Utilities
141181,BRITISH GAS BUSINESS==========,5802002151,31,"2,732.36",ELECTRICITY,21/09/15,,Technical And Service Support,Utilities
141181,BRITISH GAS BUSINESS==========,5802002151,32,604.01,ELECTRICITY,21/09/15,,Technical And Service Support,Utilities
141181,BRITISH GAS BUSINESS==========,5802002151,33,406.42,ELECTRICITY,21/09/15,,Technical And Service Support,Utilities
141181,BRITISH GAS BUSINESS==========,5802002151,34,520.45,ELECTRICITY,21/09/15,,Technical And Service Support,Utilities
141181,BRITISH GAS BUSINESS==========,5802002151,35,448.88,ELECTRICITY,21/09/15,,Technical And Service Support,Utilities
141181,BRITISH GAS BUSINESS==========,5802002151,36,709.27,ELECTRICITY,21/09/15,,Technical And Service Support,Utilities
141181,BRITISH GAS BUSINESS==========,5802002151,37,396.00,ELECTRICITY,21/09/15,,Technical And Service Support,Utilities
141182,BRITISH GAS BUSINESS==========,5802002152,1,164.68,ELECTRICITY,21/09/15,"23,480.42",Technical And Service Support,Utilities
141182,BRITISH GAS BUSINESS==========,5802002152,2,546.90,ELECTRICITY,21/09/15,,Technical And Service Support,Utilities
141182,BRITISH GAS BUSINESS==========,5802002152,3,206.27,ELECTRICITY,21/09/15,,Technical And Service Support,Utilities
141182,BRITISH GAS BUSINESS==========,5802002152,4,669.11,ELECTRICITY,21/09/15,,Technical And Service Support,Utilities
141182,BRITISH GAS BUSINESS==========,5802002152,5,408.53,ELECTRICITY,21/09/15,,Technical And Service Support,Utilities
141182,BRITISH GAS BUSINESS==========,5802002152,6,249.43,ELECTRICITY,21/09/15,,Technical And Service Support,Utilities
141182,BRITISH GAS BUSINESS==========,5802002152,7,319.55,ELECTRICITY,21/09/15,,Technical And Service Support,Utilities
141182,BRITISH GAS BUSINESS==========,5802002152,8,337.87,ELECTRICITY,21/09/15,,Technical And Service Support,Utilities
141182,BRITISH GAS BUSINESS==========,5802002152,9,"1,101.13",ELECTRICITY,21/09/15,,Technical And Service Support,Utilities
141182,BRITISH GAS BUSINESS==========,5802002152,10,826.18,ELECTRICITY,21/09/15,,Technical And Service Support,Utilities
141182,BRITISH GAS BUSINESS==========,5802002152,11,252.55,ELECTRICITY,21/09/15,,Technical And Service Support,Utilities
141182,BRITISH GAS BUSINESS==========,5802002152,12,760.25,ELECTRICITY,21/09/15,,Technical And Service Support,Utilities
141182,BRITISH GAS BUSINESS==========,5802002152,13,274.19,ELECTRICITY,21/09/15,,Technical And Service Support,Utilities
141182,BRITISH GAS BUSINESS==========,5802002152,14,779.77,ELECTRICITY,21/09/15,,Technical And Service Support,Utilities
141182,BRITISH GAS BUSINESS==========,5802002152,15,612.13,ELECTRICITY,21/09/15,,Technical And Service Support,Utilities
141182,BRITISH GAS BUSINESS==========,5802002152,16,410.44,ELECTRICITY,21/09/15,,Technical And Service Support,Utilities
141182,BRITISH GAS BUSINESS==========,5802002152,17,558.82,ELECTRICITY,21/09/15,,Technical And Service Support,Utilities
141182,BRITISH GAS BUSINESS==========,5802002152,18,205.35,ELECTRICITY,21/09/15,,Technical And Service Support,Utilities
141182,BRITISH GAS BUSINESS==========,5802002152,19,"1,388.07",ELECTRICITY,21/09/15,,Technical And Service Support,Utilities
141182,BRITISH GAS BUSINESS==========,5802002152,20,770.87,ELECTRICITY,21/09/15,,Technical And Service Support,Utilities
141182,BRITISH GAS BUSINESS==========,5802002152,21,557.87,ELECTRICITY,21/09/15,,Technical And Service Support,Utilities
141182,BRITISH GAS BUSINESS==========,5802002152,22,778.18,ELECTRICITY,21/09/15,,Technical And Service Support,Utilities
141182,BRITISH GAS BUSINESS==========,5802002152,23,405.60,ELECTRICITY,21/09/15,,Technical And Service Support,Utilities
141182,BRITISH GAS BUSINESS==========,5802002152,24,657.03,ELECTRICITY,21/09/15,,Technical And Service Support,Utilities
141182,BRITISH GAS BUSINESS==========,5802002152,25,334.01,ELECTRICITY,21/09/15,,Technical And Service Support,Utilities
141182,BRITISH GAS BUSINESS==========,5802002152,26,689.04,ELECTRICITY,21/09/15,,Technical And Service Support,Utilities
141182,BRITISH GAS BUSINESS==========,5802002152,27,794.81,ELECTRICITY,21/09/15,,Technical And Service Support,Utilities
141182,BRITISH GAS BUSINESS==========,5802002152,28,232.84,ELECTRICITY,21/09/15,,Technical And Service Support,Utilities
141182,BRITISH GAS BUSINESS==========,5802002152,29,815.94,ELECTRICITY,21/09/15,,Technical And Service Support,Utilities
141182,BRITISH GAS BUSINESS==========,5802002152,30,"1,188.96",ELECTRICITY,21/09/15,,Technical And Service Support,Utilities
141182,BRITISH GAS BUSINESS==========,5802002152,31,403.58,ELECTRICITY,21/09/15,,Technical And Service Support,Utilities
141182,BRITISH GAS BUSINESS==========,5802002152,32,560.27,ELECTRICITY,21/09/15,,Technical And Service Support,Utilities
141182,BRITISH GAS BUSINESS==========,5802002152,33,482.93,ELECTRICITY,21/09/15,,Technical And Service Support,Utilities
141182,BRITISH GAS BUSINESS==========,5802002152,34,"2,620.63",ELECTRICITY,21/09/15,,Technical And Service Support,Utilities
141182,BRITISH GAS BUSINESS==========,5802002152,35,"1,667.16",ELECTRICITY,21/09/15,,Technical And Service Support,Utilities
141182,BRITISH GAS BUSINESS==========,5802002152,36,353.61,ELECTRICITY,21/09/15,,Technical And Service Support,Utilities
141182,BRITISH GAS BUSINESS==========,5802002152,37,95.87,ELECTRICITY,21/09/15,,Technical And Service Support,Utilities
141183,BRITISH GAS BUSINESS==========,5802002153,1,351.56,ELECTRICITY,21/09/15,"11,472.98",Technical And Service Support,Utilities
141183,BRITISH GAS BUSINESS==========,5802002153,2,"1,758.03",ELECTRICITY,21/09/15,,Technical And Service Support,Utilities
141183,BRITISH GAS BUSINESS==========,5802002153,3,578.60,ELECTRICITY,21/09/15,,Technical And Service Support,Utilities
141183,BRITISH GAS BUSINESS==========,5802002153,4,666.01,ELECTRICITY,21/09/15,,Technical And Service Support,Utilities
141183,BRITISH GAS BUSINESS==========,5802002153,5,722.24,ELECTRICITY,21/09/15,,Technical And Service Support,Utilities
141183,BRITISH GAS BUSINESS==========,5802002153,6,479.99,ELECTRICITY,21/09/15,,Technical And Service Support,Utilities
141183,BRITISH GAS BUSINESS==========,5802002153,7,892.45,ELECTRICITY,21/09/15,,Technical And Service Support,Utilities
141183,BRITISH GAS BUSINESS==========,5802002153,8,406.47,ELECTRICITY,21/09/15,,Technical And Service Support,Utilities
141183,BRITISH GAS BUSINESS==========,5802002153,9,374.79,ELECTRICITY,21/09/15,,Technical And Service Support,Utilities
141183,BRITISH GAS BUSINESS==========,5802002153,10,348.23,ELECTRICITY,21/09/15,,Technical And Service Support,Utilities
141183,BRITISH GAS BUSINESS==========,5802002153,11,99.75,ELECTRICITY,21/09/15,,Technical And Service Support,Utilities
141183,BRITISH GAS BUSINESS==========,5802002153,12,303.67,ELECTRICITY,21/09/15,,Technical And Service Support,Utilities
141183,BRITISH GAS BUSINESS==========,5802002153,13,470.06,ELECTRICITY,21/09/15,,Technical And Service Support,Utilities
141183,BRITISH GAS BUSINESS==========,5802002153,14,374.05,ELECTRICITY,21/09/15,,Technical And Service Support,Utilities
141183,BRITISH GAS BUSINESS==========,5802002153,15,402.81,ELECTRICITY,21/09/15,,Technical And Service Support,Utilities
141183,BRITISH GAS BUSINESS==========,5802002153,16,461.38,ELECTRICITY,21/09/15,,Technical And Service Support,Utilities
141183,BRITISH GAS BUSINESS==========,5802002153,17,469.21,ELECTRICITY,21/09/15,,Technical And Service Support,Utilities
141183,BRITISH GAS BUSINESS==========,5802002153,18,388.87,ELECTRICITY,21/09/15,,Technical And Service Support,Utilities
141183,BRITISH GAS BUSINESS==========,5802002153,19,676.99,ELECTRICITY,21/09/15,,Technical And Service Support,Utilities
141183,BRITISH GAS BUSINESS==========,5802002153,20,545.84,ELECTRICITY,21/09/15,,Technical And Service Support,Utilities
141183,BRITISH GAS BUSINESS==========,5802002153,21,493.37,ELECTRICITY,21/09/15,,Technical And Service Support,Utilities
141183,BRITISH GAS BUSINESS==========,5802002153,22,208.61,ELECTRICITY,21/09/15,,Technical And Service Support,Utilities
160915M,AECOM INFRASTRUCTURE &,62788696,1,"2,441.15",PROF FEES-MISCELLANEOUS,21/09/15,"2,441.15",Technical and Service Support,Consultancy
150915H,AECOM INFRASTRUCTURE &,6280721,1,"7,498.09",CONSULTANTS,21/09/15,"18,635.59",Technical And Service Support,Consultancy
150915H,AECOM INFRASTRUCTURE &,6280721,2,"11,137.50",CONSULTANTS,21/09/15,,Technical And Service Support,Consultancy
